{"text_format":"3","workbook":"xlsx","n_sheets":4,"sheets":["Παρακολούθηση βαθμολογίας","Οι επιδόσεις σας","Ρυθμίσεις","Υπολογισμοί"],"not_rendered":{"defined_names":3,"comments":1},"read":"whole","date_system":"1900"}

{"sheet":"Παρακολούθηση βαθμολογίας","index":0,"n_rows":14,"n_cols":6,"rows_kept":14}
[null,"Πληκτρολογήστε τις βαθμολογίες σας εδώ"]
[]
[null,null,"Μάθημα","Τύπος","Περιγραφή","Βαθμολογία"]
[null,null,"Γαλλικά","Εργασία για το σπίτι","Ιστορία 2ου ΠΠ",{"v":0.8,"d":"80%"}]
[null,null,"Προχωρημένος προγραμματισμός σε Java","Εξάμηνο",null,{"v":0.75,"d":"75%"}]
[null,null,"Ισπανικά","Εργασία για το σπίτι",null,{"v":0.5,"d":"50%"}]
[null,null,"Θεωρητική Φυσική","Εργασία για το σπίτι",null,{"v":0.95,"d":"95%"}]
[null,null,"Γαλλικά","Εργασία για το σπίτι","Ιστορία 1ου ΠΠ",{"v":0.9,"d":"90%"}]
[null,null,"Γαλλικά","Εργασία για το σπίτι","Σελίδες 30 - 41",{"v":0.8,"d":"80%"}]
[null,null,"Έκθεση","Εργασία","Πραγματεία",{"v":0.95,"d":"95%"}]
[null,null,"Μαθηματικά 1","Εργασία για το σπίτι","Σελίδες 21 και 26",{"v":0.8,"d":"80%"}]
[null,null,"Μαθηματικά 2","Εργασία για το σπίτι","Σελίδες 15 και 18",{"v":0.85,"d":"85%"}]
[null,null,"Μαθηματικά 1","Εργασία για το σπίτι","Σελίδες 34 - 36",{"v":0.8,"d":"80%"}]
[null,null,"Μαθηματικά 2","Διαγώνισμα",null,{"v":0.95,"d":"95%"}]

{"sheet":"Οι επιδόσεις σας","index":1,"n_rows":31,"n_cols":8,"rows_kept":31}
[null,"Οι επιδόσεις σας"]
[]
[null,null,"Σύνολα"]
[null,null,{"$f":"\"Ώρες: \"&SUM(tblClasses[Ώρες παρακολούθησης])","v":"Ώρες: 24"},{"$f":"AVERAGE(D7:D31)","v":{"v":0.8104761904761906,"d":"81%"}},{"$f":"AVERAGE(E7:E31)","v":{"v":2.7142857142857144,"d":"2.71"}},{"$f":"SUM(F7:F31)","v":{"v":2.625,"d":"2.63"}},{"$f":"IFERROR(HLOOKUP(D4,lstGPAMapping,2),\"\")","v":"B-"}]
[]
[null,null,"Μαθήματα","%","Μέσος όρος","Σταθμ. μέσος όρος","Γράμμα","Συνολική επίδοση"]
[null,null,{"$f":"Υπολογισμοί!C6","v":"Γαλλικά"},{"$f":"Υπολογισμοί!AL6","v":{"v":0.8333333333333334,"d":"83%"}},{"$f":"Υπολογισμοί!AM6","v":{"v":3,"d":"3.00"}},{"$f":"IFERROR(E7*Ρυθμίσεις!D9/SUM(tblClasses[Ώρες παρακολούθησης]),\"\")","v":{"v":0.375,"d":"0.38"}},{"$f":"Υπολογισμοί!AN6","v":"B"}]
[null,null,{"$f":"Υπολογισμοί!C7","v":"Θεωρητική Φυσική"},{"$f":"Υπολογισμοί!AL7","v":{"v":0.95,"d":"95%"}},{"$f":"Υπολογισμοί!AM7","v":{"v":4,"d":"4.00"}},{"$f":"IFERROR(E8*Ρυθμίσεις!D10/SUM(tblClasses[Ώρες παρακολούθησης]),\"\")","v":{"v":0.5,"d":"0.50"}},{"$f":"Υπολογισμοί!AN7","v":"A"}]
[null,null,{"$f":"Υπολογισμοί!C8","v":"Μαθηματικά 1"},{"$f":"Υπολογισμοί!AL8","v":{"v":0.8000000000000002,"d":"80%"}},{"$f":"Υπολογισμοί!AM8","v":2.67},{"$f":"IFERROR(E9*Ρυθμίσεις!D11/SUM(tblClasses[Ώρες παρακολούθησης]),\"\")","v":{"v":0.445,"d":"0.45"}},{"$f":"Υπολογισμοί!AN8","v":"B-"}]
[null,null,{"$f":"Υπολογισμοί!C9","v":"Μαθηματικά 2"},{"$f":"Υπολογισμοί!AL9","v":{"v":0.89,"d":"89%"}},{"$f":"Υπολογισμοί!AM9","v":3.33},{"$f":"IFERROR(E10*Ρυθμίσεις!D12/SUM(tblClasses[Ώρες παρακολούθησης]),\"\")","v":{"v":0.555,"d":"0.56"}},{"$f":"Υπολογισμοί!AN9","v":"B+"}]
[null,null,{"$f":"Υπολογισμοί!C10","v":"Προχωρημένος προγραμματισμός σε Java"},{"$f":"Υπολογισμοί!AL10","v":{"v":0.7500000000000001,"d":"75%"}},{"$f":"Υπολογισμοί!AM10","v":{"v":2,"d":"2.00"}},{"$f":"IFERROR(E11*Ρυθμίσεις!D13/SUM(tblClasses[Ώρες παρακολούθησης]),\"\")","v":{"v":0.4166666666666667,"d":"0.42"}},{"$f":"Υπολογισμοί!AN10","v":"C"}]
[null,null,{"$f":"Υπολογισμοί!C11","v":"Ισπανικά"},{"$f":"Υπολογισμοί!AL11","v":{"v":0.5,"d":"50%"}},{"$f":"Υπολογισμοί!AM11","v":{"v":0,"d":"0.00"}},{"$f":"IFERROR(E12*Ρυθμίσεις!D14/SUM(tblClasses[Ώρες παρακολούθησης]),\"\")","v":{"v":0,"d":"0.00"}},{"$f":"Υπολογισμοί!AN11","v":"F"}]
[null,null,{"$f":"Υπολογισμοί!C12","v":"Έκθεση"},{"$f":"Υπολογισμοί!AL12","v":{"v":0.95,"d":"95%"}},{"$f":"Υπολογισμοί!AM12","v":{"v":4,"d":"4.00"}},{"$f":"IFERROR(E13*Ρυθμίσεις!D15/SUM(tblClasses[Ώρες παρακολούθησης]),\"\")","v":{"v":0.3333333333333333,"d":"0.33"}},{"$f":"Υπολογισμοί!AN12","v":"A"}]
[null,null,{"$f":"Υπολογισμοί!C13","v":""},{"$f":"Υπολογισμοί!AL13","v":""},{"$f":"Υπολογισμοί!AM13","v":""},{"$f":"IFERROR(E14*Ρυθμίσεις!D16/SUM(tblClasses[Ώρες παρακολούθησης]),\"\")","v":""},{"$f":"Υπολογισμοί!AN13","v":""}]
[null,null,{"$f":"Υπολογισμοί!C14","v":""},{"$f":"Υπολογισμοί!AL14","v":""},{"$f":"Υπολογισμοί!AM14","v":""},{"$f":"IFERROR(E15*Ρυθμίσεις!D17/SUM(tblClasses[Ώρες παρακολούθησης]),\"\")","v":""},{"$f":"Υπολογισμοί!AN14","v":""}]
[null,null,{"$f":"Υπολογισμοί!C15","v":""},{"$f":"Υπολογισμοί!AL15","v":""},{"$f":"Υπολογισμοί!AM15","v":""},{"$f":"IFERROR(E16*Ρυθμίσεις!D18/SUM(tblClasses[Ώρες παρακολούθησης]),\"\")","v":""},{"$f":"Υπολογισμοί!AN15","v":""}]
[null,null,{"$f":"Υπολογισμοί!C16","v":""},{"$f":"Υπολογισμοί!AL16","v":""},{"$f":"Υπολογισμοί!AM16","v":""},{"$f":"IFERROR(E17*Ρυθμίσεις!D19/SUM(tblClasses[Ώρες παρακολούθησης]),\"\")","v":""},{"$f":"Υπολογισμοί!AN16","v":""}]
[null,null,{"$f":"Υπολογισμοί!C17","v":""},{"$f":"Υπολογισμοί!AL17","v":""},{"$f":"Υπολογισμοί!AM17","v":""},{"$f":"IFERROR(E18*Ρυθμίσεις!D20/SUM(tblClasses[Ώρες παρακολούθησης]),\"\")","v":""},{"$f":"Υπολογισμοί!AN17","v":""}]
[null,null,{"$f":"Υπολογισμοί!C18","v":""},{"$f":"Υπολογισμοί!AL18","v":""},{"$f":"Υπολογισμοί!AM18","v":""},{"$f":"IFERROR(E19*Ρυθμίσεις!D21/SUM(tblClasses[Ώρες παρακολούθησης]),\"\")","v":""},{"$f":"Υπολογισμοί!AN18","v":""}]
[null,null,{"$f":"Υπολογισμοί!C19","v":""},{"$f":"Υπολογισμοί!AL19","v":""},{"$f":"Υπολογισμοί!AM19","v":""},{"$f":"IFERROR(E20*Ρυθμίσεις!D22/SUM(tblClasses[Ώρες παρακολούθησης]),\"\")","v":""},{"$f":"Υπολογισμοί!AN19","v":""}]
[null,null,{"$f":"Υπολογισμοί!C20","v":""},{"$f":"Υπολογισμοί!AL20","v":""},{"$f":"Υπολογισμοί!AM20","v":""},{"$f":"IFERROR(E21*Ρυθμίσεις!D23/SUM(tblClasses[Ώρες παρακολούθησης]),\"\")","v":""},{"$f":"Υπολογισμοί!AN20","v":""}]
[null,null,{"$f":"Υπολογισμοί!C21","v":""},{"$f":"Υπολογισμοί!AL21","v":""},{"$f":"Υπολογισμοί!AM21","v":""},{"$f":"IFERROR(E22*Ρυθμίσεις!D24/SUM(tblClasses[Ώρες παρακολούθησης]),\"\")","v":""},{"$f":"Υπολογισμοί!AN21","v":""}]
[null,null,{"$f":"Υπολογισμοί!C22","v":""},{"$f":"Υπολογισμοί!AL22","v":""},{"$f":"Υπολογισμοί!AM22","v":""},{"$f":"IFERROR(E23*Ρυθμίσεις!D25/SUM(tblClasses[Ώρες παρακολούθησης]),\"\")","v":""},{"$f":"Υπολογισμοί!AN22","v":""}]
[null,null,{"$f":"Υπολογισμοί!C23","v":""},{"$f":"Υπολογισμοί!AL23","v":""},{"$f":"Υπολογισμοί!AM23","v":""},{"$f":"IFERROR(E24*Ρυθμίσεις!D26/SUM(tblClasses[Ώρες παρακολούθησης]),\"\")","v":""},{"$f":"Υπολογισμοί!AN23","v":""}]
[null,null,{"$f":"Υπολογισμοί!C24","v":""},{"$f":"Υπολογισμοί!AL24","v":""},{"$f":"Υπολογισμοί!AM24","v":""},{"$f":"IFERROR(E25*Ρυθμίσεις!D27/SUM(tblClasses[Ώρες παρακολούθησης]),\"\")","v":""},{"$f":"Υπολογισμοί!AN24","v":""}]
[null,null,{"$f":"Υπολογισμοί!C25","v":""},{"$f":"Υπολογισμοί!AL25","v":""},{"$f":"Υπολογισμοί!AM25","v":""},{"$f":"IFERROR(E26*Ρυθμίσεις!D28/SUM(tblClasses[Ώρες παρακολούθησης]),\"\")","v":""},{"$f":"Υπολογισμοί!AN25","v":""}]
[null,null,{"$f":"Υπολογισμοί!C26","v":""},{"$f":"Υπολογισμοί!AL26","v":""},{"$f":"Υπολογισμοί!AM26","v":""},{"$f":"IFERROR(E27*Ρυθμίσεις!D29/SUM(tblClasses[Ώρες παρακολούθησης]),\"\")","v":""},{"$f":"Υπολογισμοί!AN26","v":""}]
[null,null,{"$f":"Υπολογισμοί!C27","v":""},{"$f":"Υπολογισμοί!AL27","v":""},{"$f":"Υπολογισμοί!AM27","v":""},{"$f":"IFERROR(E28*Ρυθμίσεις!D30/SUM(tblClasses[Ώρες παρακολούθησης]),\"\")","v":""},{"$f":"Υπολογισμοί!AN27","v":""}]
[null,null,{"$f":"Υπολογισμοί!C28","v":""},{"$f":"Υπολογισμοί!AL28","v":""},{"$f":"Υπολογισμοί!AM28","v":""},{"$f":"IFERROR(E29*Ρυθμίσεις!D31/SUM(tblClasses[Ώρες παρακολούθησης]),\"\")","v":""},{"$f":"Υπολογισμοί!AN28","v":""}]
[null,null,{"$f":"Υπολογισμοί!C29","v":""},{"$f":"Υπολογισμοί!AL29","v":""},{"$f":"Υπολογισμοί!AM29","v":""},{"$f":"IFERROR(E30*Ρυθμίσεις!D32/SUM(tblClasses[Ώρες παρακολούθησης]),\"\")","v":""},{"$f":"Υπολογισμοί!AN29","v":""}]
[null,null,{"$f":"Υπολογισμοί!C30","v":""},{"$f":"Υπολογισμοί!AL30","v":""},{"$f":"Υπολογισμοί!AM30","v":""},{"$f":"IFERROR(E31*Ρυθμίσεις!D33/SUM(tblClasses[Ώρες παρακολούθησης]),\"\")","v":""},{"$f":"Υπολογισμοί!AN30","v":""}]

{"sheet":"Ρυθμίσεις","index":2,"n_rows":15,"n_cols":16,"rows_kept":15,"merged":[[5,2,5,15]]}
[null,"Ρυθμίσεις"]
[null,null,"Βαθμολογίες και αντιστοίχιση μέσου όρου"]
[null,null,"Ποσοστό",{"v":0,"d":"0%"},{"v":0.6,"d":"60%"},{"v":0.63,"d":"63%"},{"v":0.67,"d":"67%"},{"v":0.7,"d":"70%"},{"v":0.73,"d":"73%"},{"v":0.77,"d":"77%"},{"v":0.8,"d":"80%"},{"v":0.83,"d":"83%"},{"v":0.87,"d":"87%"},{"v":0.9,"d":"90%"},{"v":0.93,"d":"93%"},{"v":0.97,"d":"97%"}]
[null,null,"Αλφαβητικός βαθμός","F","D-","D","D+","C-","C","C+","B-","B","B+","A-","A","A+"]
[null,null,"Μέσος όρος",0,0.67,1,1.33,1.67,2,2.33,2.67,3,3.33,3.67,4,4]
[]
[null,null,"Σταθμισμένες βαθμολογίες για έως και 25 μαθήματα"]
[null,null,"Μαθήματα που παρακολουθείτε","Ώρες παρακολούθησης","Εργασία για το σπίτι","Έκθεση-δοκίμιο","Διαγώνισμα","Εργασία","Εξάμηνο","Τελική εξέταση","Άλλο","% συνόλου"]
[null,null,"Γαλλικά",{"v":3,"d":"3.0"},{"v":0.1,"d":"10%"},{"v":0.15,"d":"15%"},{"v":0.15,"d":"15%"},{"v":0.1,"d":"10%"},{"v":0.2,"d":"20%"},{"v":0.3,"d":"30%"},null,{"$f":"SUM(tblClasses[[#This Row],[Εργασία για το σπίτι]:[Άλλο]])","v":{"v":1,"d":"100%"}}]
[null,null,"Θεωρητική Φυσική",{"v":3,"d":"3.0"},{"v":0.15,"d":"15%"},{"v":0.15,"d":"15%"},{"v":0.1,"d":"10%"},{"v":0.1,"d":"10%"},{"v":0.15,"d":"15%"},{"v":0.3,"d":"30%"},{"v":0.05,"d":"5%"},{"$f":"SUM(tblClasses[[#This Row],[Εργασία για το σπίτι]:[Άλλο]])","v":{"v":1,"d":"100%"}}]
[null,null,"Μαθηματικά 1",{"v":4,"d":"4.0"},{"v":0.1,"d":"10%"},{"v":0.15,"d":"15%"},{"v":0.15,"d":"15%"},{"v":0.1,"d":"10%"},{"v":0.2,"d":"20%"},{"v":0.3,"d":"30%"},null,{"$f":"SUM(tblClasses[[#This Row],[Εργασία για το σπίτι]:[Άλλο]])","v":{"v":1,"d":"100%"}}]
[null,null,"Μαθηματικά 2",{"v":4,"d":"4.0"},{"v":0.15,"d":"15%"},{"v":0.15,"d":"15%"},{"v":0.1,"d":"10%"},{"v":0.1,"d":"10%"},{"v":0.15,"d":"15%"},{"v":0.3,"d":"30%"},{"v":0.05,"d":"5%"},{"$f":"SUM(tblClasses[[#This Row],[Εργασία για το σπίτι]:[Άλλο]])","v":{"v":1,"d":"100%"}}]
[null,null,"Προχωρημένος προγραμματισμός σε Java",{"v":5,"d":"5.0"},{"v":0.15,"d":"15%"},{"v":0.15,"d":"15%"},{"v":0.1,"d":"10%"},{"v":0.1,"d":"10%"},{"v":0.2,"d":"20%"},{"v":0.3,"d":"30%"},null,{"$f":"SUM(tblClasses[[#This Row],[Εργασία για το σπίτι]:[Άλλο]])","v":{"v":1,"d":"100%"}}]
[null,null,"Ισπανικά",{"v":3,"d":"3.0"},{"v":0.1,"d":"10%"},{"v":0.15,"d":"15%"},{"v":0.17,"d":"17%"},{"v":0.13,"d":"13%"},{"v":0.2,"d":"20%"},{"v":0.2,"d":"20%"},{"v":0.05,"d":"5%"},{"$f":"SUM(tblClasses[[#This Row],[Εργασία για το σπίτι]:[Άλλο]])","v":{"v":1,"d":"100%"}}]
[null,null,"Έκθεση",{"v":2,"d":"2.0"},{"v":0.15,"d":"15%"},{"v":0.15,"d":"15%"},{"v":0.12,"d":"12%"},{"v":0.15,"d":"15%"},{"v":0.15,"d":"15%"},{"v":0.25,"d":"25%"},{"v":0.03,"d":"3%"},{"$f":"SUM(tblClasses[[#This Row],[Εργασία για το σπίτι]:[Άλλο]])","v":{"v":1,"d":"100%"}}]

{"sheet":"Υπολογισμοί","index":3,"n_rows":657,"n_cols":40,"rows_kept":657,"hidden":true}
[null,"Υπολογισμοί"]
[null,null,"Αυτό το φύλλο εργασίας παρέχει υπολογισμούς για τους βαθμούς και το μέσο όρο σας και πρέπει να παραμείνει κρυφό. Τυχόν αλλαγές σε αυτό το φύλλο ενδέχεται να προκαλέσουν σφάλματα."]
[]
[null,null,"Τρέχουσα λίστα μαθημάτων","Βαθμολογίες (από 1)",{"$nulls":24},"Υπολογισμός βαθμολογίας"]
[null,null,"Μάθημα",1,2,3,4,5,6,7,8,9,10,11,12,13,14,15,16,17,18,19,20,21,22,23,24,25,{"$f":"tblClasses[[#Headers],[Εργασία για το σπίτι]]","v":"Εργασία για το σπίτι"},{"$f":"tblClasses[[#Headers],[Έκθεση-δοκίμιο]]","v":"Έκθεση-δοκίμιο"},{"$f":"tblClasses[[#Headers],[Διαγώνισμα]]","v":"Διαγώνισμα"},{"$f":"tblClasses[[#Headers],[Εργασία]]","v":"Εργασία"},{"$f":"tblClasses[[#Headers],[Εξάμηνο]]","v":"Εξάμηνο"},{"$f":"tblClasses[[#Headers],[Τελική εξέταση]]","v":"Τελική εξέταση"},{"$f":"tblClasses[[#Headers],[Άλλο]]","v":"Άλλο"},"Σύνολο","Οι πιθανές συνολικές μονάδες","Συνολικό %","Βαθμοί","Αλφαβητικός βαθμός"]
[null,null,"Γαλλικά",{"$f":"IFERROR(INDEX(tblClassScores[],MATCH($C6:$C30&D$5:AB$5,Υπολογισμοί!$C$33:$C$657,0),4),\"\")","v":{"v":0.8,"d":"80%"}},{"v":0.9,"d":"90%"},{"v":0.8,"d":"80%"},"","","","","","","","","","","","","","","","","","","","","","",{"$f":"IFERROR(AVERAGEIFS(tblClassScores[Βαθμολογία],tblClassScores[Μάθημα],Υπολογισμοί!$C6,tblClassScores[Τύπος],Υπολογισμοί!AC$5)*Ρυθμίσεις!E9,\"\")","v":0.08333333333333334},{"$f":"IFERROR(AVERAGEIFS(tblClassScores[Βαθμολογία],tblClassScores[Μάθημα],Υπολογισμοί!$C6,tblClassScores[Τύπος],Υπολογισμοί!AD$5)*Ρυθμίσεις!F9,\"\")","v":""},{"$f":"IFERROR(AVERAGEIFS(tblClassScores[Βαθμολογία],tblClassScores[Μάθημα],Υπολογισμοί!$C6,tblClassScores[Τύπος],Υπολογισμοί!AE$5)*Ρυθμίσεις!G9,\"\")","v":""},{"$f":"IFERROR(AVERAGEIFS(tblClassScores[Βαθμολογία],tblClassScores[Μάθημα],Υπολογισμοί!$C6,tblClassScores[Τύπος],Υπολογισμοί!AF$5)*Ρυθμίσεις!H9,\"\")","v":""},{"$f":"IFERROR(AVERAGEIFS(tblClassScores[Βαθμολογία],tblClassScores[Μάθημα],Υπολογισμοί!$C6,tblClassScores[Τύπος],Υπολογισμοί!AG$5)*Ρυθμίσεις!I9,\"\")","v":""},{"$f":"IFERROR(AVERAGEIFS(tblClassScores[Βαθμολογία],tblClassScores[Μάθημα],Υπολογισμοί!$C6,tblClassScores[Τύπος],Υπολογισμοί!AH$5)*Ρυθμίσεις!J9,\"\")","v":""},{"$f":"IFERROR(AVERAGEIFS(tblClassScores[Βαθμολογία],tblClassScores[Μάθημα],Υπολογισμοί!$C6,tblClassScores[Τύπος],Υπολογισμοί!AI$5)*Ρυθμίσεις!K9,\"\")","v":""},{"$f":"SUM(AC6:AI6)","v":0.08333333333333334},{"$f":"SUMIFS(Ρυθμίσεις!E9:K9,Υπολογισμοί!AC6:AI6,\">0\")","v":0.1},{"$f":"IFERROR(AJ6/AK6,\"\")","v":{"v":0.8333333333333334,"d":"83%"}},{"$f":"IFERROR(HLOOKUP(AL6,lstGPAMapping,3),\"\")","v":3},{"$f":"IFERROR(HLOOKUP(AL6,lstGPAMapping,2),\"\")","v":"B"}]
[null,null,"Θεωρητική Φυσική",{"v":0.95,"d":"95%"},"","","","","","","","","","","","","","","","","","","","","","","","",{"$f":"IFERROR(AVERAGEIFS(tblClassScores[Βαθμολογία],tblClassScores[Μάθημα],Υπολογισμοί!$C7,tblClassScores[Τύπος],Υπολογισμοί!AC$5)*Ρυθμίσεις!E10,\"\")","v":0.1425},{"$f":"IFERROR(AVERAGEIFS(tblClassScores[Βαθμολογία],tblClassScores[Μάθημα],Υπολογισμοί!$C7,tblClassScores[Τύπος],Υπολογισμοί!AD$5)*Ρυθμίσεις!F10,\"\")","v":""},{"$f":"IFERROR(AVERAGEIFS(tblClassScores[Βαθμολογία],tblClassScores[Μάθημα],Υπολογισμοί!$C7,tblClassScores[Τύπος],Υπολογισμοί!AE$5)*Ρυθμίσεις!G10,\"\")","v":""},{"$f":"IFERROR(AVERAGEIFS(tblClassScores[Βαθμολογία],tblClassScores[Μάθημα],Υπολογισμοί!$C7,tblClassScores[Τύπος],Υπολογισμοί!AF$5)*Ρυθμίσεις!H10,\"\")","v":""},{"$f":"IFERROR(AVERAGEIFS(tblClassScores[Βαθμολογία],tblClassScores[Μάθημα],Υπολογισμοί!$C7,tblClassScores[Τύπος],Υπολογισμοί!AG$5)*Ρυθμίσεις!I10,\"\")","v":""},{"$f":"IFERROR(AVERAGEIFS(tblClassScores[Βαθμολογία],tblClassScores[Μάθημα],Υπολογισμοί!$C7,tblClassScores[Τύπος],Υπολογισμοί!AH$5)*Ρυθμίσεις!J10,\"\")","v":""},{"$f":"IFERROR(AVERAGEIFS(tblClassScores[Βαθμολογία],tblClassScores[Μάθημα],Υπολογισμοί!$C7,tblClassScores[Τύπος],Υπολογισμοί!AI$5)*Ρυθμίσεις!K10,\"\")","v":""},{"$f":"SUM(AC7:AI7)","v":0.1425},{"$f":"SUMIFS(Ρυθμίσεις!E10:K10,Υπολογισμοί!AC7:AI7,\">0\")","v":0.15},{"$f":"IFERROR(AJ7/AK7,\"\")","v":{"v":0.95,"d":"95%"}},4,"A"]
[null,null,"Μαθηματικά 1",{"v":0.8,"d":"80%"},{"v":0.8,"d":"80%"},"","","","","","","","","","","","","","","","","","","","","","","",{"$f":"IFERROR(AVERAGEIFS(tblClassScores[Βαθμολογία],tblClassScores[Μάθημα],Υπολογισμοί!$C8,tblClassScores[Τύπος],Υπολογισμοί!AC$5)*Ρυθμίσεις!E11,\"\")","v":0.08000000000000002},{"$f":"IFERROR(AVERAGEIFS(tblClassScores[Βαθμολογία],tblClassScores[Μάθημα],Υπολογισμοί!$C8,tblClassScores[Τύπος],Υπολογισμοί!AD$5)*Ρυθμίσεις!F11,\"\")","v":""},{"$f":"IFERROR(AVERAGEIFS(tblClassScores[Βαθμολογία],tblClassScores[Μάθημα],Υπολογισμοί!$C8,tblClassScores[Τύπος],Υπολογισμοί!AE$5)*Ρυθμίσεις!G11,\"\")","v":""},{"$f":"IFERROR(AVERAGEIFS(tblClassScores[Βαθμολογία],tblClassScores[Μάθημα],Υπολογισμοί!$C8,tblClassScores[Τύπος],Υπολογισμοί!AF$5)*Ρυθμίσεις!H11,\"\")","v":""},{"$f":"IFERROR(AVERAGEIFS(tblClassScores[Βαθμολογία],tblClassScores[Μάθημα],Υπολογισμοί!$C8,tblClassScores[Τύπος],Υπολογισμοί!AG$5)*Ρυθμίσεις!I11,\"\")","v":""},{"$f":"IFERROR(AVERAGEIFS(tblClassScores[Βαθμολογία],tblClassScores[Μάθημα],Υπολογισμοί!$C8,tblClassScores[Τύπος],Υπολογισμοί!AH$5)*Ρυθμίσεις!J11,\"\")","v":""},{"$f":"IFERROR(AVERAGEIFS(tblClassScores[Βαθμολογία],tblClassScores[Μάθημα],Υπολογισμοί!$C8,tblClassScores[Τύπος],Υπολογισμοί!AI$5)*Ρυθμίσεις!K11,\"\")","v":""},0.08000000000000002,{"$f":"SUMIFS(Ρυθμίσεις!E11:K11,Υπολογισμοί!AC8:AI8,\">0\")","v":0.1},{"v":0.8000000000000002,"d":"80%"},2.67,"B-"]
[null,null,"Μαθηματικά 2",{"v":0.85,"d":"85%"},{"v":0.95,"d":"95%"},"","","","","","","","","","","","","","","","","","","","","","","",{"$f":"IFERROR(AVERAGEIFS(tblClassScores[Βαθμολογία],tblClassScores[Μάθημα],Υπολογισμοί!$C9,tblClassScores[Τύπος],Υπολογισμοί!AC$5)*Ρυθμίσεις!E12,\"\")","v":0.1275},{"$f":"IFERROR(AVERAGEIFS(tblClassScores[Βαθμολογία],tblClassScores[Μάθημα],Υπολογισμοί!$C9,tblClassScores[Τύπος],Υπολογισμοί!AD$5)*Ρυθμίσεις!F12,\"\")","v":""},{"$f":"IFERROR(AVERAGEIFS(tblClassScores[Βαθμολογία],tblClassScores[Μάθημα],Υπολογισμοί!$C9,tblClassScores[Τύπος],Υπολογισμοί!AE$5)*Ρυθμίσεις!G12,\"\")","v":0.095},{"$f":"IFERROR(AVERAGEIFS(tblClassScores[Βαθμολογία],tblClassScores[Μάθημα],Υπολογισμοί!$C9,tblClassScores[Τύπος],Υπολογισμοί!AF$5)*Ρυθμίσεις!H12,\"\")","v":""},{"$f":"IFERROR(AVERAGEIFS(tblClassScores[Βαθμολογία],tblClassScores[Μάθημα],Υπολογισμοί!$C9,tblClassScores[Τύπος],Υπολογισμοί!AG$5)*Ρυθμίσεις!I12,\"\")","v":""},{"$f":"IFERROR(AVERAGEIFS(tblClassScores[Βαθμολογία],tblClassScores[Μάθημα],Υπολογισμοί!$C9,tblClassScores[Τύπος],Υπολογισμοί!AH$5)*Ρυθμίσεις!J12,\"\")","v":""},{"$f":"IFERROR(AVERAGEIFS(tblClassScores[Βαθμολογία],tblClassScores[Μάθημα],Υπολογισμοί!$C9,tblClassScores[Τύπος],Υπολογισμοί!AI$5)*Ρυθμίσεις!K12,\"\")","v":""},0.2225,{"$f":"SUMIFS(Ρυθμίσεις!E12:K12,Υπολογισμοί!AC9:AI9,\">0\")","v":0.25},{"v":0.89,"d":"89%"},3.33,"B+"]
[null,null,"Προχωρημένος προγραμματισμός σε Java",{"v":0.75,"d":"75%"},"","","","","","","","","","","","","","","","","","","","","","","","",{"$f":"IFERROR(AVERAGEIFS(tblClassScores[Βαθμολογία],tblClassScores[Μάθημα],Υπολογισμοί!$C10,tblClassScores[Τύπος],Υπολογισμοί!AC$5)*Ρυθμίσεις!E13,\"\")","v":""},{"$f":"IFERROR(AVERAGEIFS(tblClassScores[Βαθμολογία],tblClassScores[Μάθημα],Υπολογισμοί!$C10,tblClassScores[Τύπος],Υπολογισμοί!AD$5)*Ρυθμίσεις!F13,\"\")","v":""},{"$f":"IFERROR(AVERAGEIFS(tblClassScores[Βαθμολογία],tblClassScores[Μάθημα],Υπολογισμοί!$C10,tblClassScores[Τύπος],Υπολογισμοί!AE$5)*Ρυθμίσεις!G13,\"\")","v":""},{"$f":"IFERROR(AVERAGEIFS(tblClassScores[Βαθμολογία],tblClassScores[Μάθημα],Υπολογισμοί!$C10,tblClassScores[Τύπος],Υπολογισμοί!AF$5)*Ρυθμίσεις!H13,\"\")","v":""},{"$f":"IFERROR(AVERAGEIFS(tblClassScores[Βαθμολογία],tblClassScores[Μάθημα],Υπολογισμοί!$C10,tblClassScores[Τύπος],Υπολογισμοί!AG$5)*Ρυθμίσεις!I13,\"\")","v":0.15000000000000002},{"$f":"IFERROR(AVERAGEIFS(tblClassScores[Βαθμολογία],tblClassScores[Μάθημα],Υπολογισμοί!$C10,tblClassScores[Τύπος],Υπολογισμοί!AH$5)*Ρυθμίσεις!J13,\"\")","v":""},{"$f":"IFERROR(AVERAGEIFS(tblClassScores[Βαθμολογία],tblClassScores[Μάθημα],Υπολογισμοί!$C10,tblClassScores[Τύπος],Υπολογισμοί!AI$5)*Ρυθμίσεις!K13,\"\")","v":""},0.15000000000000002,{"$f":"SUMIFS(Ρυθμίσεις!E13:K13,Υπολογισμοί!AC10:AI10,\">0\")","v":0.2},{"v":0.7500000000000001,"d":"75%"},2,"C"]
[null,null,"Ισπανικά",{"v":0.5,"d":"50%"},"","","","","","","","","","","","","","","","","","","","","","","","",{"$f":"IFERROR(AVERAGEIFS(tblClassScores[Βαθμολογία],tblClassScores[Μάθημα],Υπολογισμοί!$C11,tblClassScores[Τύπος],Υπολογισμοί!AC$5)*Ρυθμίσεις!E14,\"\")","v":0.05},{"$f":"IFERROR(AVERAGEIFS(tblClassScores[Βαθμολογία],tblClassScores[Μάθημα],Υπολογισμοί!$C11,tblClassScores[Τύπος],Υπολογισμοί!AD$5)*Ρυθμίσεις!F14,\"\")","v":""},{"$f":"IFERROR(AVERAGEIFS(tblClassScores[Βαθμολογία],tblClassScores[Μάθημα],Υπολογισμοί!$C11,tblClassScores[Τύπος],Υπολογισμοί!AE$5)*Ρυθμίσεις!G14,\"\")","v":""},{"$f":"IFERROR(AVERAGEIFS(tblClassScores[Βαθμολογία],tblClassScores[Μάθημα],Υπολογισμοί!$C11,tblClassScores[Τύπος],Υπολογισμοί!AF$5)*Ρυθμίσεις!H14,\"\")","v":""},{"$f":"IFERROR(AVERAGEIFS(tblClassScores[Βαθμολογία],tblClassScores[Μάθημα],Υπολογισμοί!$C11,tblClassScores[Τύπος],Υπολογισμοί!AG$5)*Ρυθμίσεις!I14,\"\")","v":""},{"$f":"IFERROR(AVERAGEIFS(tblClassScores[Βαθμολογία],tblClassScores[Μάθημα],Υπολογισμοί!$C11,tblClassScores[Τύπος],Υπολογισμοί!AH$5)*Ρυθμίσεις!J14,\"\")","v":""},{"$f":"IFERROR(AVERAGEIFS(tblClassScores[Βαθμολογία],tblClassScores[Μάθημα],Υπολογισμοί!$C11,tblClassScores[Τύπος],Υπολογισμοί!AI$5)*Ρυθμίσεις!K14,\"\")","v":""},0.05,{"$f":"SUMIFS(Ρυθμίσεις!E14:K14,Υπολογισμοί!AC11:AI11,\">0\")","v":0.1},{"v":0.5,"d":"50%"},0,"F"]
[null,null,"Έκθεση",{"v":0.95,"d":"95%"},"","","","","","","","","","","","","","","","","","","","","","","","",{"$f":"IFERROR(AVERAGEIFS(tblClassScores[Βαθμολογία],tblClassScores[Μάθημα],Υπολογισμοί!$C12,tblClassScores[Τύπος],Υπολογισμοί!AC$5)*Ρυθμίσεις!E15,\"\")","v":""},{"$f":"IFERROR(AVERAGEIFS(tblClassScores[Βαθμολογία],tblClassScores[Μάθημα],Υπολογισμοί!$C12,tblClassScores[Τύπος],Υπολογισμοί!AD$5)*Ρυθμίσεις!F15,\"\")","v":""},{"$f":"IFERROR(AVERAGEIFS(tblClassScores[Βαθμολογία],tblClassScores[Μάθημα],Υπολογισμοί!$C12,tblClassScores[Τύπος],Υπολογισμοί!AE$5)*Ρυθμίσεις!G15,\"\")","v":""},{"$f":"IFERROR(AVERAGEIFS(tblClassScores[Βαθμολογία],tblClassScores[Μάθημα],Υπολογισμοί!$C12,tblClassScores[Τύπος],Υπολογισμοί!AF$5)*Ρυθμίσεις!H15,\"\")","v":0.1425},{"$f":"IFERROR(AVERAGEIFS(tblClassScores[Βαθμολογία],tblClassScores[Μάθημα],Υπολογισμοί!$C12,tblClassScores[Τύπος],Υπολογισμοί!AG$5)*Ρυθμίσεις!I15,\"\")","v":""},{"$f":"IFERROR(AVERAGEIFS(tblClassScores[Βαθμολογία],tblClassScores[Μάθημα],Υπολογισμοί!$C12,tblClassScores[Τύπος],Υπολογισμοί!AH$5)*Ρυθμίσεις!J15,\"\")","v":""},{"$f":"IFERROR(AVERAGEIFS(tblClassScores[Βαθμολογία],tblClassScores[Μάθημα],Υπολογισμοί!$C12,tblClassScores[Τύπος],Υπολογισμοί!AI$5)*Ρυθμίσεις!K15,\"\")","v":""},0.1425,{"$f":"SUMIFS(Ρυθμίσεις!E15:K15,Υπολογισμοί!AC12:AI12,\">0\")","v":0.15},{"v":0.95,"d":"95%"},4,"A"]
[null,null,{"$f":"IF(Ρυθμίσεις!C16=\"\",\"\",Ρυθμίσεις!C16)","v":""},"","","","","","","","","","","","","","","","","","","","","","","","","",{"$f":"IFERROR(AVERAGEIFS(tblClassScores[Βαθμολογία],tblClassScores[Μάθημα],Υπολογισμοί!$C13,tblClassScores[Τύπος],Υπολογισμοί!AC$5)*Ρυθμίσεις!#REF!,\"\")","v":""},{"$f":"IFERROR(AVERAGEIFS(tblClassScores[Βαθμολογία],tblClassScores[Μάθημα],Υπολογισμοί!$C13,tblClassScores[Τύπος],Υπολογισμοί!AD$5)*Ρυθμίσεις!#REF!,\"\")","v":""},{"$f":"IFERROR(AVERAGEIFS(tblClassScores[Βαθμολογία],tblClassScores[Μάθημα],Υπολογισμοί!$C13,tblClassScores[Τύπος],Υπολογισμοί!AE$5)*Ρυθμίσεις!#REF!,\"\")","v":""},{"$f":"IFERROR(AVERAGEIFS(tblClassScores[Βαθμολογία],tblClassScores[Μάθημα],Υπολογισμοί!$C13,tblClassScores[Τύπος],Υπολογισμοί!AF$5)*Ρυθμίσεις!#REF!,\"\")","v":""},{"$f":"IFERROR(AVERAGEIFS(tblClassScores[Βαθμολογία],tblClassScores[Μάθημα],Υπολογισμοί!$C13,tblClassScores[Τύπος],Υπολογισμοί!AG$5)*Ρυθμίσεις!#REF!,\"\")","v":""},{"$f":"IFERROR(AVERAGEIFS(tblClassScores[Βαθμολογία],tblClassScores[Μάθημα],Υπολογισμοί!$C13,tblClassScores[Τύπος],Υπολογισμοί!AH$5)*Ρυθμίσεις!#REF!,\"\")","v":""},{"$f":"IFERROR(AVERAGEIFS(tblClassScores[Βαθμολογία],tblClassScores[Μάθημα],Υπολογισμοί!$C13,tblClassScores[Τύπος],Υπολογισμοί!AI$5)*Ρυθμίσεις!#REF!,\"\")","v":""},0,{"$f":"SUMIFS(Ρυθμίσεις!E16:K16,Υπολογισμοί!AC13:AI13,\">0\")","v":0},"","",""]
[null,null,{"$f":"IF(Ρυθμίσεις!C17=\"\",\"\",Ρυθμίσεις!C17)","v":""},"","","","","","","","","","","","","","","","","","","","","","","","","",{"$f":"IFERROR(AVERAGEIFS(tblClassScores[Βαθμολογία],tblClassScores[Μάθημα],Υπολογισμοί!$C14,tblClassScores[Τύπος],Υπολογισμοί!AC$5)*Ρυθμίσεις!#REF!,\"\")","v":""},{"$f":"IFERROR(AVERAGEIFS(tblClassScores[Βαθμολογία],tblClassScores[Μάθημα],Υπολογισμοί!$C14,tblClassScores[Τύπος],Υπολογισμοί!AD$5)*Ρυθμίσεις!#REF!,\"\")","v":""},{"$f":"IFERROR(AVERAGEIFS(tblClassScores[Βαθμολογία],tblClassScores[Μάθημα],Υπολογισμοί!$C14,tblClassScores[Τύπος],Υπολογισμοί!AE$5)*Ρυθμίσεις!#REF!,\"\")","v":""},{"$f":"IFERROR(AVERAGEIFS(tblClassScores[Βαθμολογία],tblClassScores[Μάθημα],Υπολογισμοί!$C14,tblClassScores[Τύπος],Υπολογισμοί!AF$5)*Ρυθμίσεις!#REF!,\"\")","v":""},{"$f":"IFERROR(AVERAGEIFS(tblClassScores[Βαθμολογία],tblClassScores[Μάθημα],Υπολογισμοί!$C14,tblClassScores[Τύπος],Υπολογισμοί!AG$5)*Ρυθμίσεις!#REF!,\"\")","v":""},{"$f":"IFERROR(AVERAGEIFS(tblClassScores[Βαθμολογία],tblClassScores[Μάθημα],Υπολογισμοί!$C14,tblClassScores[Τύπος],Υπολογισμοί!AH$5)*Ρυθμίσεις!#REF!,\"\")","v":""},{"$f":"IFERROR(AVERAGEIFS(tblClassScores[Βαθμολογία],tblClassScores[Μάθημα],Υπολογισμοί!$C14,tblClassScores[Τύπος],Υπολογισμοί!AI$5)*Ρυθμίσεις!#REF!,\"\")","v":""},0,{"$f":"SUMIFS(Ρυθμίσεις!E17:K17,Υπολογισμοί!AC14:AI14,\">0\")","v":0},"","",""]
[null,null,{"$f":"IF(Ρυθμίσεις!C18=\"\",\"\",Ρυθμίσεις!C18)","v":""},"","","","","","","","","","","","","","","","","","","","","","","","","",{"$f":"IFERROR(AVERAGEIFS(tblClassScores[Βαθμολογία],tblClassScores[Μάθημα],Υπολογισμοί!$C15,tblClassScores[Τύπος],Υπολογισμοί!AC$5)*Ρυθμίσεις!#REF!,\"\")","v":""},{"$f":"IFERROR(AVERAGEIFS(tblClassScores[Βαθμολογία],tblClassScores[Μάθημα],Υπολογισμοί!$C15,tblClassScores[Τύπος],Υπολογισμοί!AD$5)*Ρυθμίσεις!#REF!,\"\")","v":""},{"$f":"IFERROR(AVERAGEIFS(tblClassScores[Βαθμολογία],tblClassScores[Μάθημα],Υπολογισμοί!$C15,tblClassScores[Τύπος],Υπολογισμοί!AE$5)*Ρυθμίσεις!#REF!,\"\")","v":""},{"$f":"IFERROR(AVERAGEIFS(tblClassScores[Βαθμολογία],tblClassScores[Μάθημα],Υπολογισμοί!$C15,tblClassScores[Τύπος],Υπολογισμοί!AF$5)*Ρυθμίσεις!#REF!,\"\")","v":""},{"$f":"IFERROR(AVERAGEIFS(tblClassScores[Βαθμολογία],tblClassScores[Μάθημα],Υπολογισμοί!$C15,tblClassScores[Τύπος],Υπολογισμοί!AG$5)*Ρυθμίσεις!#REF!,\"\")","v":""},{"$f":"IFERROR(AVERAGEIFS(tblClassScores[Βαθμολογία],tblClassScores[Μάθημα],Υπολογισμοί!$C15,tblClassScores[Τύπος],Υπολογισμοί!AH$5)*Ρυθμίσεις!#REF!,\"\")","v":""},{"$f":"IFERROR(AVERAGEIFS(tblClassScores[Βαθμολογία],tblClassScores[Μάθημα],Υπολογισμοί!$C15,tblClassScores[Τύπος],Υπολογισμοί!AI$5)*Ρυθμίσεις!#REF!,\"\")","v":""},0,{"$f":"SUMIFS(Ρυθμίσεις!E18:K18,Υπολογισμοί!AC15:AI15,\">0\")","v":0},"","",""]
[null,null,{"$f":"IF(Ρυθμίσεις!C19=\"\",\"\",Ρυθμίσεις!C19)","v":""},"","","","","","","","","","","","","","","","","","","","","","","","","",{"$f":"IFERROR(AVERAGEIFS(tblClassScores[Βαθμολογία],tblClassScores[Μάθημα],Υπολογισμοί!$C16,tblClassScores[Τύπος],Υπολογισμοί!AC$5)*Ρυθμίσεις!#REF!,\"\")","v":""},{"$f":"IFERROR(AVERAGEIFS(tblClassScores[Βαθμολογία],tblClassScores[Μάθημα],Υπολογισμοί!$C16,tblClassScores[Τύπος],Υπολογισμοί!AD$5)*Ρυθμίσεις!#REF!,\"\")","v":""},{"$f":"IFERROR(AVERAGEIFS(tblClassScores[Βαθμολογία],tblClassScores[Μάθημα],Υπολογισμοί!$C16,tblClassScores[Τύπος],Υπολογισμοί!AE$5)*Ρυθμίσεις!#REF!,\"\")","v":""},{"$f":"IFERROR(AVERAGEIFS(tblClassScores[Βαθμολογία],tblClassScores[Μάθημα],Υπολογισμοί!$C16,tblClassScores[Τύπος],Υπολογισμοί!AF$5)*Ρυθμίσεις!#REF!,\"\")","v":""},{"$f":"IFERROR(AVERAGEIFS(tblClassScores[Βαθμολογία],tblClassScores[Μάθημα],Υπολογισμοί!$C16,tblClassScores[Τύπος],Υπολογισμοί!AG$5)*Ρυθμίσεις!#REF!,\"\")","v":""},{"$f":"IFERROR(AVERAGEIFS(tblClassScores[Βαθμολογία],tblClassScores[Μάθημα],Υπολογισμοί!$C16,tblClassScores[Τύπος],Υπολογισμοί!AH$5)*Ρυθμίσεις!#REF!,\"\")","v":""},{"$f":"IFERROR(AVERAGEIFS(tblClassScores[Βαθμολογία],tblClassScores[Μάθημα],Υπολογισμοί!$C16,tblClassScores[Τύπος],Υπολογισμοί!AI$5)*Ρυθμίσεις!#REF!,\"\")","v":""},0,{"$f":"SUMIFS(Ρυθμίσεις!E19:K19,Υπολογισμοί!AC16:AI16,\">0\")","v":0},"","",""]
[null,null,{"$f":"IF(Ρυθμίσεις!C20=\"\",\"\",Ρυθμίσεις!C20)","v":""},"","","","","","","","","","","","","","","","","","","","","","","","","",{"$f":"IFERROR(AVERAGEIFS(tblClassScores[Βαθμολογία],tblClassScores[Μάθημα],Υπολογισμοί!$C17,tblClassScores[Τύπος],Υπολογισμοί!AC$5)*Ρυθμίσεις!#REF!,\"\")","v":""},{"$f":"IFERROR(AVERAGEIFS(tblClassScores[Βαθμολογία],tblClassScores[Μάθημα],Υπολογισμοί!$C17,tblClassScores[Τύπος],Υπολογισμοί!AD$5)*Ρυθμίσεις!#REF!,\"\")","v":""},{"$f":"IFERROR(AVERAGEIFS(tblClassScores[Βαθμολογία],tblClassScores[Μάθημα],Υπολογισμοί!$C17,tblClassScores[Τύπος],Υπολογισμοί!AE$5)*Ρυθμίσεις!#REF!,\"\")","v":""},{"$f":"IFERROR(AVERAGEIFS(tblClassScores[Βαθμολογία],tblClassScores[Μάθημα],Υπολογισμοί!$C17,tblClassScores[Τύπος],Υπολογισμοί!AF$5)*Ρυθμίσεις!#REF!,\"\")","v":""},{"$f":"IFERROR(AVERAGEIFS(tblClassScores[Βαθμολογία],tblClassScores[Μάθημα],Υπολογισμοί!$C17,tblClassScores[Τύπος],Υπολογισμοί!AG$5)*Ρυθμίσεις!#REF!,\"\")","v":""},{"$f":"IFERROR(AVERAGEIFS(tblClassScores[Βαθμολογία],tblClassScores[Μάθημα],Υπολογισμοί!$C17,tblClassScores[Τύπος],Υπολογισμοί!AH$5)*Ρυθμίσεις!#REF!,\"\")","v":""},{"$f":"IFERROR(AVERAGEIFS(tblClassScores[Βαθμολογία],tblClassScores[Μάθημα],Υπολογισμοί!$C17,tblClassScores[Τύπος],Υπολογισμοί!AI$5)*Ρυθμίσεις!#REF!,\"\")","v":""},0,{"$f":"SUMIFS(Ρυθμίσεις!E20:K20,Υπολογισμοί!AC17:AI17,\">0\")","v":0},"","",""]
[null,null,{"$f":"IF(Ρυθμίσεις!C21=\"\",\"\",Ρυθμίσεις!C21)","v":""},"","","","","","","","","","","","","","","","","","","","","","","","","",{"$f":"IFERROR(AVERAGEIFS(tblClassScores[Βαθμολογία],tblClassScores[Μάθημα],Υπολογισμοί!$C18,tblClassScores[Τύπος],Υπολογισμοί!AC$5)*Ρυθμίσεις!#REF!,\"\")","v":""},{"$f":"IFERROR(AVERAGEIFS(tblClassScores[Βαθμολογία],tblClassScores[Μάθημα],Υπολογισμοί!$C18,tblClassScores[Τύπος],Υπολογισμοί!AD$5)*Ρυθμίσεις!#REF!,\"\")","v":""},{"$f":"IFERROR(AVERAGEIFS(tblClassScores[Βαθμολογία],tblClassScores[Μάθημα],Υπολογισμοί!$C18,tblClassScores[Τύπος],Υπολογισμοί!AE$5)*Ρυθμίσεις!#REF!,\"\")","v":""},{"$f":"IFERROR(AVERAGEIFS(tblClassScores[Βαθμολογία],tblClassScores[Μάθημα],Υπολογισμοί!$C18,tblClassScores[Τύπος],Υπολογισμοί!AF$5)*Ρυθμίσεις!#REF!,\"\")","v":""},{"$f":"IFERROR(AVERAGEIFS(tblClassScores[Βαθμολογία],tblClassScores[Μάθημα],Υπολογισμοί!$C18,tblClassScores[Τύπος],Υπολογισμοί!AG$5)*Ρυθμίσεις!#REF!,\"\")","v":""},{"$f":"IFERROR(AVERAGEIFS(tblClassScores[Βαθμολογία],tblClassScores[Μάθημα],Υπολογισμοί!$C18,tblClassScores[Τύπος],Υπολογισμοί!AH$5)*Ρυθμίσεις!#REF!,\"\")","v":""},{"$f":"IFERROR(AVERAGEIFS(tblClassScores[Βαθμολογία],tblClassScores[Μάθημα],Υπολογισμοί!$C18,tblClassScores[Τύπος],Υπολογισμοί!AI$5)*Ρυθμίσεις!#REF!,\"\")","v":""},0,{"$f":"SUMIFS(Ρυθμίσεις!E21:K21,Υπολογισμοί!AC18:AI18,\">0\")","v":0},"","",""]
[null,null,{"$f":"IF(Ρυθμίσεις!C22=\"\",\"\",Ρυθμίσεις!C22)","v":""},"","","","","","","","","","","","","","","","","","","","","","","","","",{"$f":"IFERROR(AVERAGEIFS(tblClassScores[Βαθμολογία],tblClassScores[Μάθημα],Υπολογισμοί!$C19,tblClassScores[Τύπος],Υπολογισμοί!AC$5)*Ρυθμίσεις!#REF!,\"\")","v":""},{"$f":"IFERROR(AVERAGEIFS(tblClassScores[Βαθμολογία],tblClassScores[Μάθημα],Υπολογισμοί!$C19,tblClassScores[Τύπος],Υπολογισμοί!AD$5)*Ρυθμίσεις!#REF!,\"\")","v":""},{"$f":"IFERROR(AVERAGEIFS(tblClassScores[Βαθμολογία],tblClassScores[Μάθημα],Υπολογισμοί!$C19,tblClassScores[Τύπος],Υπολογισμοί!AE$5)*Ρυθμίσεις!#REF!,\"\")","v":""},{"$f":"IFERROR(AVERAGEIFS(tblClassScores[Βαθμολογία],tblClassScores[Μάθημα],Υπολογισμοί!$C19,tblClassScores[Τύπος],Υπολογισμοί!AF$5)*Ρυθμίσεις!#REF!,\"\")","v":""},{"$f":"IFERROR(AVERAGEIFS(tblClassScores[Βαθμολογία],tblClassScores[Μάθημα],Υπολογισμοί!$C19,tblClassScores[Τύπος],Υπολογισμοί!AG$5)*Ρυθμίσεις!#REF!,\"\")","v":""},{"$f":"IFERROR(AVERAGEIFS(tblClassScores[Βαθμολογία],tblClassScores[Μάθημα],Υπολογισμοί!$C19,tblClassScores[Τύπος],Υπολογισμοί!AH$5)*Ρυθμίσεις!#REF!,\"\")","v":""},{"$f":"IFERROR(AVERAGEIFS(tblClassScores[Βαθμολογία],tblClassScores[Μάθημα],Υπολογισμοί!$C19,tblClassScores[Τύπος],Υπολογισμοί!AI$5)*Ρυθμίσεις!#REF!,\"\")","v":""},0,{"$f":"SUMIFS(Ρυθμίσεις!E22:K22,Υπολογισμοί!AC19:AI19,\">0\")","v":0},"","",""]
[null,null,{"$f":"IF(Ρυθμίσεις!C23=\"\",\"\",Ρυθμίσεις!C23)","v":""},"","","","","","","","","","","","","","","","","","","","","","","","","",{"$f":"IFERROR(AVERAGEIFS(tblClassScores[Βαθμολογία],tblClassScores[Μάθημα],Υπολογισμοί!$C20,tblClassScores[Τύπος],Υπολογισμοί!AC$5)*Ρυθμίσεις!#REF!,\"\")","v":""},{"$f":"IFERROR(AVERAGEIFS(tblClassScores[Βαθμολογία],tblClassScores[Μάθημα],Υπολογισμοί!$C20,tblClassScores[Τύπος],Υπολογισμοί!AD$5)*Ρυθμίσεις!#REF!,\"\")","v":""},{"$f":"IFERROR(AVERAGEIFS(tblClassScores[Βαθμολογία],tblClassScores[Μάθημα],Υπολογισμοί!$C20,tblClassScores[Τύπος],Υπολογισμοί!AE$5)*Ρυθμίσεις!#REF!,\"\")","v":""},{"$f":"IFERROR(AVERAGEIFS(tblClassScores[Βαθμολογία],tblClassScores[Μάθημα],Υπολογισμοί!$C20,tblClassScores[Τύπος],Υπολογισμοί!AF$5)*Ρυθμίσεις!#REF!,\"\")","v":""},{"$f":"IFERROR(AVERAGEIFS(tblClassScores[Βαθμολογία],tblClassScores[Μάθημα],Υπολογισμοί!$C20,tblClassScores[Τύπος],Υπολογισμοί!AG$5)*Ρυθμίσεις!#REF!,\"\")","v":""},{"$f":"IFERROR(AVERAGEIFS(tblClassScores[Βαθμολογία],tblClassScores[Μάθημα],Υπολογισμοί!$C20,tblClassScores[Τύπος],Υπολογισμοί!AH$5)*Ρυθμίσεις!#REF!,\"\")","v":""},{"$f":"IFERROR(AVERAGEIFS(tblClassScores[Βαθμολογία],tblClassScores[Μάθημα],Υπολογισμοί!$C20,tblClassScores[Τύπος],Υπολογισμοί!AI$5)*Ρυθμίσεις!#REF!,\"\")","v":""},0,{"$f":"SUMIFS(Ρυθμίσεις!E23:K23,Υπολογισμοί!AC20:AI20,\">0\")","v":0},"","",""]
[null,null,{"$f":"IF(Ρυθμίσεις!C24=\"\",\"\",Ρυθμίσεις!C24)","v":""},"","","","","","","","","","","","","","","","","","","","","","","","","",{"$f":"IFERROR(AVERAGEIFS(tblClassScores[Βαθμολογία],tblClassScores[Μάθημα],Υπολογισμοί!$C21,tblClassScores[Τύπος],Υπολογισμοί!AC$5)*Ρυθμίσεις!#REF!,\"\")","v":""},{"$f":"IFERROR(AVERAGEIFS(tblClassScores[Βαθμολογία],tblClassScores[Μάθημα],Υπολογισμοί!$C21,tblClassScores[Τύπος],Υπολογισμοί!AD$5)*Ρυθμίσεις!#REF!,\"\")","v":""},{"$f":"IFERROR(AVERAGEIFS(tblClassScores[Βαθμολογία],tblClassScores[Μάθημα],Υπολογισμοί!$C21,tblClassScores[Τύπος],Υπολογισμοί!AE$5)*Ρυθμίσεις!#REF!,\"\")","v":""},{"$f":"IFERROR(AVERAGEIFS(tblClassScores[Βαθμολογία],tblClassScores[Μάθημα],Υπολογισμοί!$C21,tblClassScores[Τύπος],Υπολογισμοί!AF$5)*Ρυθμίσεις!#REF!,\"\")","v":""},{"$f":"IFERROR(AVERAGEIFS(tblClassScores[Βαθμολογία],tblClassScores[Μάθημα],Υπολογισμοί!$C21,tblClassScores[Τύπος],Υπολογισμοί!AG$5)*Ρυθμίσεις!#REF!,\"\")","v":""},{"$f":"IFERROR(AVERAGEIFS(tblClassScores[Βαθμολογία],tblClassScores[Μάθημα],Υπολογισμοί!$C21,tblClassScores[Τύπος],Υπολογισμοί!AH$5)*Ρυθμίσεις!#REF!,\"\")","v":""},{"$f":"IFERROR(AVERAGEIFS(tblClassScores[Βαθμολογία],tblClassScores[Μάθημα],Υπολογισμοί!$C21,tblClassScores[Τύπος],Υπολογισμοί!AI$5)*Ρυθμίσεις!#REF!,\"\")","v":""},0,{"$f":"SUMIFS(Ρυθμίσεις!E24:K24,Υπολογισμοί!AC21:AI21,\">0\")","v":0},"","",""]
[null,null,{"$f":"IF(Ρυθμίσεις!C25=\"\",\"\",Ρυθμίσεις!C25)","v":""},"","","","","","","","","","","","","","","","","","","","","","","","","",{"$f":"IFERROR(AVERAGEIFS(tblClassScores[Βαθμολογία],tblClassScores[Μάθημα],Υπολογισμοί!$C22,tblClassScores[Τύπος],Υπολογισμοί!AC$5)*Ρυθμίσεις!#REF!,\"\")","v":""},{"$f":"IFERROR(AVERAGEIFS(tblClassScores[Βαθμολογία],tblClassScores[Μάθημα],Υπολογισμοί!$C22,tblClassScores[Τύπος],Υπολογισμοί!AD$5)*Ρυθμίσεις!#REF!,\"\")","v":""},{"$f":"IFERROR(AVERAGEIFS(tblClassScores[Βαθμολογία],tblClassScores[Μάθημα],Υπολογισμοί!$C22,tblClassScores[Τύπος],Υπολογισμοί!AE$5)*Ρυθμίσεις!#REF!,\"\")","v":""},{"$f":"IFERROR(AVERAGEIFS(tblClassScores[Βαθμολογία],tblClassScores[Μάθημα],Υπολογισμοί!$C22,tblClassScores[Τύπος],Υπολογισμοί!AF$5)*Ρυθμίσεις!#REF!,\"\")","v":""},{"$f":"IFERROR(AVERAGEIFS(tblClassScores[Βαθμολογία],tblClassScores[Μάθημα],Υπολογισμοί!$C22,tblClassScores[Τύπος],Υπολογισμοί!AG$5)*Ρυθμίσεις!#REF!,\"\")","v":""},{"$f":"IFERROR(AVERAGEIFS(tblClassScores[Βαθμολογία],tblClassScores[Μάθημα],Υπολογισμοί!$C22,tblClassScores[Τύπος],Υπολογισμοί!AH$5)*Ρυθμίσεις!#REF!,\"\")","v":""},{"$f":"IFERROR(AVERAGEIFS(tblClassScores[Βαθμολογία],tblClassScores[Μάθημα],Υπολογισμοί!$C22,tblClassScores[Τύπος],Υπολογισμοί!AI$5)*Ρυθμίσεις!#REF!,\"\")","v":""},0,{"$f":"SUMIFS(Ρυθμίσεις!E25:K25,Υπολογισμοί!AC22:AI22,\">0\")","v":0},"","",""]
[null,null,{"$f":"IF(Ρυθμίσεις!C26=\"\",\"\",Ρυθμίσεις!C26)","v":""},"","","","","","","","","","","","","","","","","","","","","","","","","",{"$f":"IFERROR(AVERAGEIFS(tblClassScores[Βαθμολογία],tblClassScores[Μάθημα],Υπολογισμοί!$C23,tblClassScores[Τύπος],Υπολογισμοί!AC$5)*Ρυθμίσεις!#REF!,\"\")","v":""},{"$f":"IFERROR(AVERAGEIFS(tblClassScores[Βαθμολογία],tblClassScores[Μάθημα],Υπολογισμοί!$C23,tblClassScores[Τύπος],Υπολογισμοί!AD$5)*Ρυθμίσεις!#REF!,\"\")","v":""},{"$f":"IFERROR(AVERAGEIFS(tblClassScores[Βαθμολογία],tblClassScores[Μάθημα],Υπολογισμοί!$C23,tblClassScores[Τύπος],Υπολογισμοί!AE$5)*Ρυθμίσεις!#REF!,\"\")","v":""},{"$f":"IFERROR(AVERAGEIFS(tblClassScores[Βαθμολογία],tblClassScores[Μάθημα],Υπολογισμοί!$C23,tblClassScores[Τύπος],Υπολογισμοί!AF$5)*Ρυθμίσεις!#REF!,\"\")","v":""},{"$f":"IFERROR(AVERAGEIFS(tblClassScores[Βαθμολογία],tblClassScores[Μάθημα],Υπολογισμοί!$C23,tblClassScores[Τύπος],Υπολογισμοί!AG$5)*Ρυθμίσεις!#REF!,\"\")","v":""},{"$f":"IFERROR(AVERAGEIFS(tblClassScores[Βαθμολογία],tblClassScores[Μάθημα],Υπολογισμοί!$C23,tblClassScores[Τύπος],Υπολογισμοί!AH$5)*Ρυθμίσεις!#REF!,\"\")","v":""},{"$f":"IFERROR(AVERAGEIFS(tblClassScores[Βαθμολογία],tblClassScores[Μάθημα],Υπολογισμοί!$C23,tblClassScores[Τύπος],Υπολογισμοί!AI$5)*Ρυθμίσεις!#REF!,\"\")","v":""},0,{"$f":"SUMIFS(Ρυθμίσεις!E26:K26,Υπολογισμοί!AC23:AI23,\">0\")","v":0},"","",""]
[null,null,{"$f":"IF(Ρυθμίσεις!C27=\"\",\"\",Ρυθμίσεις!C27)","v":""},"","","","","","","","","","","","","","","","","","","","","","","","","",{"$f":"IFERROR(AVERAGEIFS(tblClassScores[Βαθμολογία],tblClassScores[Μάθημα],Υπολογισμοί!$C24,tblClassScores[Τύπος],Υπολογισμοί!AC$5)*Ρυθμίσεις!#REF!,\"\")","v":""},{"$f":"IFERROR(AVERAGEIFS(tblClassScores[Βαθμολογία],tblClassScores[Μάθημα],Υπολογισμοί!$C24,tblClassScores[Τύπος],Υπολογισμοί!AD$5)*Ρυθμίσεις!#REF!,\"\")","v":""},{"$f":"IFERROR(AVERAGEIFS(tblClassScores[Βαθμολογία],tblClassScores[Μάθημα],Υπολογισμοί!$C24,tblClassScores[Τύπος],Υπολογισμοί!AE$5)*Ρυθμίσεις!#REF!,\"\")","v":""},{"$f":"IFERROR(AVERAGEIFS(tblClassScores[Βαθμολογία],tblClassScores[Μάθημα],Υπολογισμοί!$C24,tblClassScores[Τύπος],Υπολογισμοί!AF$5)*Ρυθμίσεις!#REF!,\"\")","v":""},{"$f":"IFERROR(AVERAGEIFS(tblClassScores[Βαθμολογία],tblClassScores[Μάθημα],Υπολογισμοί!$C24,tblClassScores[Τύπος],Υπολογισμοί!AG$5)*Ρυθμίσεις!#REF!,\"\")","v":""},{"$f":"IFERROR(AVERAGEIFS(tblClassScores[Βαθμολογία],tblClassScores[Μάθημα],Υπολογισμοί!$C24,tblClassScores[Τύπος],Υπολογισμοί!AH$5)*Ρυθμίσεις!#REF!,\"\")","v":""},{"$f":"IFERROR(AVERAGEIFS(tblClassScores[Βαθμολογία],tblClassScores[Μάθημα],Υπολογισμοί!$C24,tblClassScores[Τύπος],Υπολογισμοί!AI$5)*Ρυθμίσεις!#REF!,\"\")","v":""},0,{"$f":"SUMIFS(Ρυθμίσεις!E27:K27,Υπολογισμοί!AC24:AI24,\">0\")","v":0},"","",""]
[null,null,{"$f":"IF(Ρυθμίσεις!C28=\"\",\"\",Ρυθμίσεις!C28)","v":""},"","","","","","","","","","","","","","","","","","","","","","","","","",{"$f":"IFERROR(AVERAGEIFS(tblClassScores[Βαθμολογία],tblClassScores[Μάθημα],Υπολογισμοί!$C25,tblClassScores[Τύπος],Υπολογισμοί!AC$5)*Ρυθμίσεις!#REF!,\"\")","v":""},{"$f":"IFERROR(AVERAGEIFS(tblClassScores[Βαθμολογία],tblClassScores[Μάθημα],Υπολογισμοί!$C25,tblClassScores[Τύπος],Υπολογισμοί!AD$5)*Ρυθμίσεις!#REF!,\"\")","v":""},{"$f":"IFERROR(AVERAGEIFS(tblClassScores[Βαθμολογία],tblClassScores[Μάθημα],Υπολογισμοί!$C25,tblClassScores[Τύπος],Υπολογισμοί!AE$5)*Ρυθμίσεις!#REF!,\"\")","v":""},{"$f":"IFERROR(AVERAGEIFS(tblClassScores[Βαθμολογία],tblClassScores[Μάθημα],Υπολογισμοί!$C25,tblClassScores[Τύπος],Υπολογισμοί!AF$5)*Ρυθμίσεις!#REF!,\"\")","v":""},{"$f":"IFERROR(AVERAGEIFS(tblClassScores[Βαθμολογία],tblClassScores[Μάθημα],Υπολογισμοί!$C25,tblClassScores[Τύπος],Υπολογισμοί!AG$5)*Ρυθμίσεις!#REF!,\"\")","v":""},{"$f":"IFERROR(AVERAGEIFS(tblClassScores[Βαθμολογία],tblClassScores[Μάθημα],Υπολογισμοί!$C25,tblClassScores[Τύπος],Υπολογισμοί!AH$5)*Ρυθμίσεις!#REF!,\"\")","v":""},{"$f":"IFERROR(AVERAGEIFS(tblClassScores[Βαθμολογία],tblClassScores[Μάθημα],Υπολογισμοί!$C25,tblClassScores[Τύπος],Υπολογισμοί!AI$5)*Ρυθμίσεις!#REF!,\"\")","v":""},0,{"$f":"SUMIFS(Ρυθμίσεις!E28:K28,Υπολογισμοί!AC25:AI25,\">0\")","v":0},"","",""]
[null,null,{"$f":"IF(Ρυθμίσεις!C29=\"\",\"\",Ρυθμίσεις!C29)","v":""},"","","","","","","","","","","","","","","","","","","","","","","","","",{"$f":"IFERROR(AVERAGEIFS(tblClassScores[Βαθμολογία],tblClassScores[Μάθημα],Υπολογισμοί!$C26,tblClassScores[Τύπος],Υπολογισμοί!AC$5)*Ρυθμίσεις!#REF!,\"\")","v":""},{"$f":"IFERROR(AVERAGEIFS(tblClassScores[Βαθμολογία],tblClassScores[Μάθημα],Υπολογισμοί!$C26,tblClassScores[Τύπος],Υπολογισμοί!AD$5)*Ρυθμίσεις!#REF!,\"\")","v":""},{"$f":"IFERROR(AVERAGEIFS(tblClassScores[Βαθμολογία],tblClassScores[Μάθημα],Υπολογισμοί!$C26,tblClassScores[Τύπος],Υπολογισμοί!AE$5)*Ρυθμίσεις!#REF!,\"\")","v":""},{"$f":"IFERROR(AVERAGEIFS(tblClassScores[Βαθμολογία],tblClassScores[Μάθημα],Υπολογισμοί!$C26,tblClassScores[Τύπος],Υπολογισμοί!AF$5)*Ρυθμίσεις!#REF!,\"\")","v":""},{"$f":"IFERROR(AVERAGEIFS(tblClassScores[Βαθμολογία],tblClassScores[Μάθημα],Υπολογισμοί!$C26,tblClassScores[Τύπος],Υπολογισμοί!AG$5)*Ρυθμίσεις!#REF!,\"\")","v":""},{"$f":"IFERROR(AVERAGEIFS(tblClassScores[Βαθμολογία],tblClassScores[Μάθημα],Υπολογισμοί!$C26,tblClassScores[Τύπος],Υπολογισμοί!AH$5)*Ρυθμίσεις!#REF!,\"\")","v":""},{"$f":"IFERROR(AVERAGEIFS(tblClassScores[Βαθμολογία],tblClassScores[Μάθημα],Υπολογισμοί!$C26,tblClassScores[Τύπος],Υπολογισμοί!AI$5)*Ρυθμίσεις!#REF!,\"\")","v":""},0,{"$f":"SUMIFS(Ρυθμίσεις!E29:K29,Υπολογισμοί!AC26:AI26,\">0\")","v":0},"","",""]
[null,null,{"$f":"IF(Ρυθμίσεις!C30=\"\",\"\",Ρυθμίσεις!C30)","v":""},"","","","","","","","","","","","","","","","","","","","","","","","","",{"$f":"IFERROR(AVERAGEIFS(tblClassScores[Βαθμολογία],tblClassScores[Μάθημα],Υπολογισμοί!$C27,tblClassScores[Τύπος],Υπολογισμοί!AC$5)*Ρυθμίσεις!#REF!,\"\")","v":""},{"$f":"IFERROR(AVERAGEIFS(tblClassScores[Βαθμολογία],tblClassScores[Μάθημα],Υπολογισμοί!$C27,tblClassScores[Τύπος],Υπολογισμοί!AD$5)*Ρυθμίσεις!#REF!,\"\")","v":""},{"$f":"IFERROR(AVERAGEIFS(tblClassScores[Βαθμολογία],tblClassScores[Μάθημα],Υπολογισμοί!$C27,tblClassScores[Τύπος],Υπολογισμοί!AE$5)*Ρυθμίσεις!#REF!,\"\")","v":""},{"$f":"IFERROR(AVERAGEIFS(tblClassScores[Βαθμολογία],tblClassScores[Μάθημα],Υπολογισμοί!$C27,tblClassScores[Τύπος],Υπολογισμοί!AF$5)*Ρυθμίσεις!#REF!,\"\")","v":""},{"$f":"IFERROR(AVERAGEIFS(tblClassScores[Βαθμολογία],tblClassScores[Μάθημα],Υπολογισμοί!$C27,tblClassScores[Τύπος],Υπολογισμοί!AG$5)*Ρυθμίσεις!#REF!,\"\")","v":""},{"$f":"IFERROR(AVERAGEIFS(tblClassScores[Βαθμολογία],tblClassScores[Μάθημα],Υπολογισμοί!$C27,tblClassScores[Τύπος],Υπολογισμοί!AH$5)*Ρυθμίσεις!#REF!,\"\")","v":""},{"$f":"IFERROR(AVERAGEIFS(tblClassScores[Βαθμολογία],tblClassScores[Μάθημα],Υπολογισμοί!$C27,tblClassScores[Τύπος],Υπολογισμοί!AI$5)*Ρυθμίσεις!#REF!,\"\")","v":""},0,{"$f":"SUMIFS(Ρυθμίσεις!E30:K30,Υπολογισμοί!AC27:AI27,\">0\")","v":0},"","",""]
[null,null,{"$f":"IF(Ρυθμίσεις!C31=\"\",\"\",Ρυθμίσεις!C31)","v":""},"","","","","","","","","","","","","","","","","","","","","","","","","",{"$f":"IFERROR(AVERAGEIFS(tblClassScores[Βαθμολογία],tblClassScores[Μάθημα],Υπολογισμοί!$C28,tblClassScores[Τύπος],Υπολογισμοί!AC$5)*Ρυθμίσεις!#REF!,\"\")","v":""},{"$f":"IFERROR(AVERAGEIFS(tblClassScores[Βαθμολογία],tblClassScores[Μάθημα],Υπολογισμοί!$C28,tblClassScores[Τύπος],Υπολογισμοί!AD$5)*Ρυθμίσεις!#REF!,\"\")","v":""},{"$f":"IFERROR(AVERAGEIFS(tblClassScores[Βαθμολογία],tblClassScores[Μάθημα],Υπολογισμοί!$C28,tblClassScores[Τύπος],Υπολογισμοί!AE$5)*Ρυθμίσεις!#REF!,\"\")","v":""},{"$f":"IFERROR(AVERAGEIFS(tblClassScores[Βαθμολογία],tblClassScores[Μάθημα],Υπολογισμοί!$C28,tblClassScores[Τύπος],Υπολογισμοί!AF$5)*Ρυθμίσεις!#REF!,\"\")","v":""},{"$f":"IFERROR(AVERAGEIFS(tblClassScores[Βαθμολογία],tblClassScores[Μάθημα],Υπολογισμοί!$C28,tblClassScores[Τύπος],Υπολογισμοί!AG$5)*Ρυθμίσεις!#REF!,\"\")","v":""},{"$f":"IFERROR(AVERAGEIFS(tblClassScores[Βαθμολογία],tblClassScores[Μάθημα],Υπολογισμοί!$C28,tblClassScores[Τύπος],Υπολογισμοί!AH$5)*Ρυθμίσεις!#REF!,\"\")","v":""},{"$f":"IFERROR(AVERAGEIFS(tblClassScores[Βαθμολογία],tblClassScores[Μάθημα],Υπολογισμοί!$C28,tblClassScores[Τύπος],Υπολογισμοί!AI$5)*Ρυθμίσεις!#REF!,\"\")","v":""},0,{"$f":"SUMIFS(Ρυθμίσεις!E31:K31,Υπολογισμοί!AC28:AI28,\">0\")","v":0},"","",""]
[null,null,{"$f":"IF(Ρυθμίσεις!C32=\"\",\"\",Ρυθμίσεις!C32)","v":""},"","","","","","","","","","","","","","","","","","","","","","","","","",{"$f":"IFERROR(AVERAGEIFS(tblClassScores[Βαθμολογία],tblClassScores[Μάθημα],Υπολογισμοί!$C29,tblClassScores[Τύπος],Υπολογισμοί!AC$5)*Ρυθμίσεις!#REF!,\"\")","v":""},{"$f":"IFERROR(AVERAGEIFS(tblClassScores[Βαθμολογία],tblClassScores[Μάθημα],Υπολογισμοί!$C29,tblClassScores[Τύπος],Υπολογισμοί!AD$5)*Ρυθμίσεις!#REF!,\"\")","v":""},{"$f":"IFERROR(AVERAGEIFS(tblClassScores[Βαθμολογία],tblClassScores[Μάθημα],Υπολογισμοί!$C29,tblClassScores[Τύπος],Υπολογισμοί!AE$5)*Ρυθμίσεις!#REF!,\"\")","v":""},{"$f":"IFERROR(AVERAGEIFS(tblClassScores[Βαθμολογία],tblClassScores[Μάθημα],Υπολογισμοί!$C29,tblClassScores[Τύπος],Υπολογισμοί!AF$5)*Ρυθμίσεις!#REF!,\"\")","v":""},{"$f":"IFERROR(AVERAGEIFS(tblClassScores[Βαθμολογία],tblClassScores[Μάθημα],Υπολογισμοί!$C29,tblClassScores[Τύπος],Υπολογισμοί!AG$5)*Ρυθμίσεις!#REF!,\"\")","v":""},{"$f":"IFERROR(AVERAGEIFS(tblClassScores[Βαθμολογία],tblClassScores[Μάθημα],Υπολογισμοί!$C29,tblClassScores[Τύπος],Υπολογισμοί!AH$5)*Ρυθμίσεις!#REF!,\"\")","v":""},{"$f":"IFERROR(AVERAGEIFS(tblClassScores[Βαθμολογία],tblClassScores[Μάθημα],Υπολογισμοί!$C29,tblClassScores[Τύπος],Υπολογισμοί!AI$5)*Ρυθμίσεις!#REF!,\"\")","v":""},0,{"$f":"SUMIFS(Ρυθμίσεις!E32:K32,Υπολογισμοί!AC29:AI29,\">0\")","v":0},"","",""]
[null,null,{"$f":"IF(Ρυθμίσεις!C33=\"\",\"\",Ρυθμίσεις!C33)","v":""},"","","","","","","","","","","","","","","","","","","","","","","","","",{"$f":"IFERROR(AVERAGEIFS(tblClassScores[Βαθμολογία],tblClassScores[Μάθημα],Υπολογισμοί!$C30,tblClassScores[Τύπος],Υπολογισμοί!AC$5)*Ρυθμίσεις!#REF!,\"\")","v":""},{"$f":"IFERROR(AVERAGEIFS(tblClassScores[Βαθμολογία],tblClassScores[Μάθημα],Υπολογισμοί!$C30,tblClassScores[Τύπος],Υπολογισμοί!AD$5)*Ρυθμίσεις!#REF!,\"\")","v":""},{"$f":"IFERROR(AVERAGEIFS(tblClassScores[Βαθμολογία],tblClassScores[Μάθημα],Υπολογισμοί!$C30,tblClassScores[Τύπος],Υπολογισμοί!AE$5)*Ρυθμίσεις!#REF!,\"\")","v":""},{"$f":"IFERROR(AVERAGEIFS(tblClassScores[Βαθμολογία],tblClassScores[Μάθημα],Υπολογισμοί!$C30,tblClassScores[Τύπος],Υπολογισμοί!AF$5)*Ρυθμίσεις!#REF!,\"\")","v":""},{"$f":"IFERROR(AVERAGEIFS(tblClassScores[Βαθμολογία],tblClassScores[Μάθημα],Υπολογισμοί!$C30,tblClassScores[Τύπος],Υπολογισμοί!AG$5)*Ρυθμίσεις!#REF!,\"\")","v":""},{"$f":"IFERROR(AVERAGEIFS(tblClassScores[Βαθμολογία],tblClassScores[Μάθημα],Υπολογισμοί!$C30,tblClassScores[Τύπος],Υπολογισμοί!AH$5)*Ρυθμίσεις!#REF!,\"\")","v":""},{"$f":"IFERROR(AVERAGEIFS(tblClassScores[Βαθμολογία],tblClassScores[Μάθημα],Υπολογισμοί!$C30,tblClassScores[Τύπος],Υπολογισμοί!AI$5)*Ρυθμίσεις!#REF!,\"\")","v":""},0,{"$f":"SUMIFS(Ρυθμίσεις!E33:K33,Υπολογισμοί!AC30:AI30,\">0\")","v":0},"","",""]
[]
[]
[null,1,{"$f":"'Παρακολούθηση βαθμολογίας'!C4&COUNTIF('Παρακολούθηση βαθμολογίας'!$C$4:C4,'Παρακολούθηση βαθμολογίας'!C4)","v":"Γαλλικά1"}]
[null,2,{"$f":"'Παρακολούθηση βαθμολογίας'!C5&COUNTIF('Παρακολούθηση βαθμολογίας'!$C$4:C5,'Παρακολούθηση βαθμολογίας'!C5)","v":"Προχωρημένος προγραμματισμός σε Java1"}]
[null,3,{"$f":"'Παρακολούθηση βαθμολογίας'!C6&COUNTIF('Παρακολούθηση βαθμολογίας'!$C$4:C6,'Παρακολούθηση βαθμολογίας'!C6)","v":"Ισπανικά1"}]
[null,4,{"$f":"'Παρακολούθηση βαθμολογίας'!C7&COUNTIF('Παρακολούθηση βαθμολογίας'!$C$4:C7,'Παρακολούθηση βαθμολογίας'!C7)","v":"Θεωρητική Φυσική1"}]
[null,5,{"$f":"'Παρακολούθηση βαθμολογίας'!C8&COUNTIF('Παρακολούθηση βαθμολογίας'!$C$4:C8,'Παρακολούθηση βαθμολογίας'!C8)","v":"Γαλλικά2"}]
[null,6,{"$f":"'Παρακολούθηση βαθμολογίας'!C9&COUNTIF('Παρακολούθηση βαθμολογίας'!$C$4:C9,'Παρακολούθηση βαθμολογίας'!C9)","v":"Γαλλικά3"}]
[null,7,{"$f":"'Παρακολούθηση βαθμολογίας'!C10&COUNTIF('Παρακολούθηση βαθμολογίας'!$C$4:C10,'Παρακολούθηση βαθμολογίας'!C10)","v":"Έκθεση1"}]
[null,8,{"$f":"'Παρακολούθηση βαθμολογίας'!C11&COUNTIF('Παρακολούθηση βαθμολογίας'!$C$4:C11,'Παρακολούθηση βαθμολογίας'!C11)","v":"Μαθηματικά 11"}]
[null,9,{"$f":"'Παρακολούθηση βαθμολογίας'!C12&COUNTIF('Παρακολούθηση βαθμολογίας'!$C$4:C12,'Παρακολούθηση βαθμολογίας'!C12)","v":"Μαθηματικά 21"}]
[null,10,{"$f":"'Παρακολούθηση βαθμολογίας'!C13&COUNTIF('Παρακολούθηση βαθμολογίας'!$C$4:C14,'Παρακολούθηση βαθμολογίας'!C13)","v":"Μαθηματικά 12"}]
[null,11,{"$f":"'Παρακολούθηση βαθμολογίας'!C14&COUNTIF('Παρακολούθηση βαθμολογίας'!$C$4:C14,'Παρακολούθηση βαθμολογίας'!C14)","v":"Μαθηματικά 22"}]
[null,12,{"$f":"'Παρακολούθηση βαθμολογίας'!C15&COUNTIF('Παρακολούθηση βαθμολογίας'!$C$4:C15,'Παρακολούθηση βαθμολογίας'!C15)","v":"0"}]
[null,13,{"$f":"'Παρακολούθηση βαθμολογίας'!C16&COUNTIF('Παρακολούθηση βαθμολογίας'!$C$4:C16,'Παρακολούθηση βαθμολογίας'!C16)","v":"0"}]
[null,14,{"$f":"'Παρακολούθηση βαθμολογίας'!C17&COUNTIF('Παρακολούθηση βαθμολογίας'!$C$4:C17,'Παρακολούθηση βαθμολογίας'!C17)","v":"0"}]
[null,15,{"$f":"'Παρακολούθηση βαθμολογίας'!C18&COUNTIF('Παρακολούθηση βαθμολογίας'!$C$4:C18,'Παρακολούθηση βαθμολογίας'!C18)","v":"0"}]
[null,16,{"$f":"'Παρακολούθηση βαθμολογίας'!C19&COUNTIF('Παρακολούθηση βαθμολογίας'!$C$4:C19,'Παρακολούθηση βαθμολογίας'!C19)","v":"0"}]
[null,17,{"$f":"'Παρακολούθηση βαθμολογίας'!C20&COUNTIF('Παρακολούθηση βαθμολογίας'!$C$4:C20,'Παρακολούθηση βαθμολογίας'!C20)","v":"0"}]
[null,18,{"$f":"'Παρακολούθηση βαθμολογίας'!C21&COUNTIF('Παρακολούθηση βαθμολογίας'!$C$4:C21,'Παρακολούθηση βαθμολογίας'!C21)","v":"0"}]
[null,19,{"$f":"'Παρακολούθηση βαθμολογίας'!C22&COUNTIF('Παρακολούθηση βαθμολογίας'!$C$4:C22,'Παρακολούθηση βαθμολογίας'!C22)","v":"0"}]
[null,20,{"$f":"'Παρακολούθηση βαθμολογίας'!C23&COUNTIF('Παρακολούθηση βαθμολογίας'!$C$4:C23,'Παρακολούθηση βαθμολογίας'!C23)","v":"0"}]
[null,21,{"$f":"'Παρακολούθηση βαθμολογίας'!C24&COUNTIF('Παρακολούθηση βαθμολογίας'!$C$4:C24,'Παρακολούθηση βαθμολογίας'!C24)","v":"0"}]
[null,22,{"$f":"'Παρακολούθηση βαθμολογίας'!C25&COUNTIF('Παρακολούθηση βαθμολογίας'!$C$4:C25,'Παρακολούθηση βαθμολογίας'!C25)","v":"0"}]
[null,23,{"$f":"'Παρακολούθηση βαθμολογίας'!C26&COUNTIF('Παρακολούθηση βαθμολογίας'!$C$4:C26,'Παρακολούθηση βαθμολογίας'!C26)","v":"0"}]
[null,24,{"$f":"'Παρακολούθηση βαθμολογίας'!C27&COUNTIF('Παρακολούθηση βαθμολογίας'!$C$4:C27,'Παρακολούθηση βαθμολογίας'!C27)","v":"0"}]
[null,25,{"$f":"'Παρακολούθηση βαθμολογίας'!C28&COUNTIF('Παρακολούθηση βαθμολογίας'!$C$4:C28,'Παρακολούθηση βαθμολογίας'!C28)","v":"0"}]
[null,26,{"$f":"'Παρακολούθηση βαθμολογίας'!C29&COUNTIF('Παρακολούθηση βαθμολογίας'!$C$4:C29,'Παρακολούθηση βαθμολογίας'!C29)","v":"0"}]
[null,27,{"$f":"'Παρακολούθηση βαθμολογίας'!C30&COUNTIF('Παρακολούθηση βαθμολογίας'!$C$4:C30,'Παρακολούθηση βαθμολογίας'!C30)","v":"0"}]
[null,28,{"$f":"'Παρακολούθηση βαθμολογίας'!C31&COUNTIF('Παρακολούθηση βαθμολογίας'!$C$4:C31,'Παρακολούθηση βαθμολογίας'!C31)","v":"0"}]
[null,29,{"$f":"'Παρακολούθηση βαθμολογίας'!C32&COUNTIF('Παρακολούθηση βαθμολογίας'!$C$4:C32,'Παρακολούθηση βαθμολογίας'!C32)","v":"0"}]
[null,30,{"$f":"'Παρακολούθηση βαθμολογίας'!C33&COUNTIF('Παρακολούθηση βαθμολογίας'!$C$4:C33,'Παρακολούθηση βαθμολογίας'!C33)","v":"0"}]
[null,31,{"$f":"'Παρακολούθηση βαθμολογίας'!C34&COUNTIF('Παρακολούθηση βαθμολογίας'!$C$4:C34,'Παρακολούθηση βαθμολογίας'!C34)","v":"0"}]
[null,32,{"$f":"'Παρακολούθηση βαθμολογίας'!C35&COUNTIF('Παρακολούθηση βαθμολογίας'!$C$4:C35,'Παρακολούθηση βαθμολογίας'!C35)","v":"0"}]
[null,33,{"$f":"'Παρακολούθηση βαθμολογίας'!C36&COUNTIF('Παρακολούθηση βαθμολογίας'!$C$4:C36,'Παρακολούθηση βαθμολογίας'!C36)","v":"0"}]
[null,34,{"$f":"'Παρακολούθηση βαθμολογίας'!C37&COUNTIF('Παρακολούθηση βαθμολογίας'!$C$4:C37,'Παρακολούθηση βαθμολογίας'!C37)","v":"0"}]
[null,35,{"$f":"'Παρακολούθηση βαθμολογίας'!C38&COUNTIF('Παρακολούθηση βαθμολογίας'!$C$4:C38,'Παρακολούθηση βαθμολογίας'!C38)","v":"0"}]
[null,36,{"$f":"'Παρακολούθηση βαθμολογίας'!C39&COUNTIF('Παρακολούθηση βαθμολογίας'!$C$4:C39,'Παρακολούθηση βαθμολογίας'!C39)","v":"0"}]
[null,37,{"$f":"'Παρακολούθηση βαθμολογίας'!C40&COUNTIF('Παρακολούθηση βαθμολογίας'!$C$4:C40,'Παρακολούθηση βαθμολογίας'!C40)","v":"0"}]
[null,38,{"$f":"'Παρακολούθηση βαθμολογίας'!C41&COUNTIF('Παρακολούθηση βαθμολογίας'!$C$4:C41,'Παρακολούθηση βαθμολογίας'!C41)","v":"0"}]
[null,39,{"$f":"'Παρακολούθηση βαθμολογίας'!C42&COUNTIF('Παρακολούθηση βαθμολογίας'!$C$4:C42,'Παρακολούθηση βαθμολογίας'!C42)","v":"0"}]
[null,40,{"$f":"'Παρακολούθηση βαθμολογίας'!C43&COUNTIF('Παρακολούθηση βαθμολογίας'!$C$4:C43,'Παρακολούθηση βαθμολογίας'!C43)","v":"0"}]
[null,41,{"$f":"'Παρακολούθηση βαθμολογίας'!C44&COUNTIF('Παρακολούθηση βαθμολογίας'!$C$4:C44,'Παρακολούθηση βαθμολογίας'!C44)","v":"0"}]
[null,42,{"$f":"'Παρακολούθηση βαθμολογίας'!C45&COUNTIF('Παρακολούθηση βαθμολογίας'!$C$4:C45,'Παρακολούθηση βαθμολογίας'!C45)","v":"0"}]
[null,43,{"$f":"'Παρακολούθηση βαθμολογίας'!C46&COUNTIF('Παρακολούθηση βαθμολογίας'!$C$4:C46,'Παρακολούθηση βαθμολογίας'!C46)","v":"0"}]
[null,44,{"$f":"'Παρακολούθηση βαθμολογίας'!C47&COUNTIF('Παρακολούθηση βαθμολογίας'!$C$4:C47,'Παρακολούθηση βαθμολογίας'!C47)","v":"0"}]
[null,45,{"$f":"'Παρακολούθηση βαθμολογίας'!C48&COUNTIF('Παρακολούθηση βαθμολογίας'!$C$4:C48,'Παρακολούθηση βαθμολογίας'!C48)","v":"0"}]
[null,46,{"$f":"'Παρακολούθηση βαθμολογίας'!C49&COUNTIF('Παρακολούθηση βαθμολογίας'!$C$4:C49,'Παρακολούθηση βαθμολογίας'!C49)","v":"0"}]
[null,47,{"$f":"'Παρακολούθηση βαθμολογίας'!C50&COUNTIF('Παρακολούθηση βαθμολογίας'!$C$4:C50,'Παρακολούθηση βαθμολογίας'!C50)","v":"0"}]
[null,48,{"$f":"'Παρακολούθηση βαθμολογίας'!C51&COUNTIF('Παρακολούθηση βαθμολογίας'!$C$4:C51,'Παρακολούθηση βαθμολογίας'!C51)","v":"0"}]
[null,49,{"$f":"'Παρακολούθηση βαθμολογίας'!C52&COUNTIF('Παρακολούθηση βαθμολογίας'!$C$4:C52,'Παρακολούθηση βαθμολογίας'!C52)","v":"0"}]
[null,50,{"$f":"'Παρακολούθηση βαθμολογίας'!C53&COUNTIF('Παρακολούθηση βαθμολογίας'!$C$4:C53,'Παρακολούθηση βαθμολογίας'!C53)","v":"0"}]
[null,51,{"$f":"'Παρακολούθηση βαθμολογίας'!C54&COUNTIF('Παρακολούθηση βαθμολογίας'!$C$4:C54,'Παρακολούθηση βαθμολογίας'!C54)","v":"0"}]
[null,52,{"$f":"'Παρακολούθηση βαθμολογίας'!C55&COUNTIF('Παρακολούθηση βαθμολογίας'!$C$4:C55,'Παρακολούθηση βαθμολογίας'!C55)","v":"0"}]
[null,53,{"$f":"'Παρακολούθηση βαθμολογίας'!C56&COUNTIF('Παρακολούθηση βαθμολογίας'!$C$4:C56,'Παρακολούθηση βαθμολογίας'!C56)","v":"0"}]
[null,54,{"$f":"'Παρακολούθηση βαθμολογίας'!C57&COUNTIF('Παρακολούθηση βαθμολογίας'!$C$4:C57,'Παρακολούθηση βαθμολογίας'!C57)","v":"0"}]
[null,55,{"$f":"'Παρακολούθηση βαθμολογίας'!C58&COUNTIF('Παρακολούθηση βαθμολογίας'!$C$4:C58,'Παρακολούθηση βαθμολογίας'!C58)","v":"0"}]
[null,56,{"$f":"'Παρακολούθηση βαθμολογίας'!C59&COUNTIF('Παρακολούθηση βαθμολογίας'!$C$4:C59,'Παρακολούθηση βαθμολογίας'!C59)","v":"0"}]
[null,57,{"$f":"'Παρακολούθηση βαθμολογίας'!C60&COUNTIF('Παρακολούθηση βαθμολογίας'!$C$4:C60,'Παρακολούθηση βαθμολογίας'!C60)","v":"0"}]
[null,58,{"$f":"'Παρακολούθηση βαθμολογίας'!C61&COUNTIF('Παρακολούθηση βαθμολογίας'!$C$4:C61,'Παρακολούθηση βαθμολογίας'!C61)","v":"0"}]
[null,59,{"$f":"'Παρακολούθηση βαθμολογίας'!C62&COUNTIF('Παρακολούθηση βαθμολογίας'!$C$4:C62,'Παρακολούθηση βαθμολογίας'!C62)","v":"0"}]
[null,60,{"$f":"'Παρακολούθηση βαθμολογίας'!C63&COUNTIF('Παρακολούθηση βαθμολογίας'!$C$4:C63,'Παρακολούθηση βαθμολογίας'!C63)","v":"0"}]
[null,61,{"$f":"'Παρακολούθηση βαθμολογίας'!C64&COUNTIF('Παρακολούθηση βαθμολογίας'!$C$4:C64,'Παρακολούθηση βαθμολογίας'!C64)","v":"0"}]
[null,62,{"$f":"'Παρακολούθηση βαθμολογίας'!C65&COUNTIF('Παρακολούθηση βαθμολογίας'!$C$4:C65,'Παρακολούθηση βαθμολογίας'!C65)","v":"0"}]
[null,63,{"$f":"'Παρακολούθηση βαθμολογίας'!C66&COUNTIF('Παρακολούθηση βαθμολογίας'!$C$4:C66,'Παρακολούθηση βαθμολογίας'!C66)","v":"0"}]
[null,64,{"$f":"'Παρακολούθηση βαθμολογίας'!C67&COUNTIF('Παρακολούθηση βαθμολογίας'!$C$4:C67,'Παρακολούθηση βαθμολογίας'!C67)","v":"0"}]
[null,65,{"$f":"'Παρακολούθηση βαθμολογίας'!C68&COUNTIF('Παρακολούθηση βαθμολογίας'!$C$4:C68,'Παρακολούθηση βαθμολογίας'!C68)","v":"0"}]
[null,66,{"$f":"'Παρακολούθηση βαθμολογίας'!C69&COUNTIF('Παρακολούθηση βαθμολογίας'!$C$4:C69,'Παρακολούθηση βαθμολογίας'!C69)","v":"0"}]
[null,67,{"$f":"'Παρακολούθηση βαθμολογίας'!C70&COUNTIF('Παρακολούθηση βαθμολογίας'!$C$4:C70,'Παρακολούθηση βαθμολογίας'!C70)","v":"0"}]
[null,68,{"$f":"'Παρακολούθηση βαθμολογίας'!C71&COUNTIF('Παρακολούθηση βαθμολογίας'!$C$4:C71,'Παρακολούθηση βαθμολογίας'!C71)","v":"0"}]
[null,69,{"$f":"'Παρακολούθηση βαθμολογίας'!C72&COUNTIF('Παρακολούθηση βαθμολογίας'!$C$4:C72,'Παρακολούθηση βαθμολογίας'!C72)","v":"0"}]
[null,70,{"$f":"'Παρακολούθηση βαθμολογίας'!C73&COUNTIF('Παρακολούθηση βαθμολογίας'!$C$4:C73,'Παρακολούθηση βαθμολογίας'!C73)","v":"0"}]
[null,71,{"$f":"'Παρακολούθηση βαθμολογίας'!C74&COUNTIF('Παρακολούθηση βαθμολογίας'!$C$4:C74,'Παρακολούθηση βαθμολογίας'!C74)","v":"0"}]
[null,72,{"$f":"'Παρακολούθηση βαθμολογίας'!C75&COUNTIF('Παρακολούθηση βαθμολογίας'!$C$4:C75,'Παρακολούθηση βαθμολογίας'!C75)","v":"0"}]
[null,73,{"$f":"'Παρακολούθηση βαθμολογίας'!C76&COUNTIF('Παρακολούθηση βαθμολογίας'!$C$4:C76,'Παρακολούθηση βαθμολογίας'!C76)","v":"0"}]
[null,74,{"$f":"'Παρακολούθηση βαθμολογίας'!C77&COUNTIF('Παρακολούθηση βαθμολογίας'!$C$4:C77,'Παρακολούθηση βαθμολογίας'!C77)","v":"0"}]
[null,75,{"$f":"'Παρακολούθηση βαθμολογίας'!C78&COUNTIF('Παρακολούθηση βαθμολογίας'!$C$4:C78,'Παρακολούθηση βαθμολογίας'!C78)","v":"0"}]
[null,76,{"$f":"'Παρακολούθηση βαθμολογίας'!C79&COUNTIF('Παρακολούθηση βαθμολογίας'!$C$4:C79,'Παρακολούθηση βαθμολογίας'!C79)","v":"0"}]
[null,77,{"$f":"'Παρακολούθηση βαθμολογίας'!C80&COUNTIF('Παρακολούθηση βαθμολογίας'!$C$4:C80,'Παρακολούθηση βαθμολογίας'!C80)","v":"0"}]
[null,78,{"$f":"'Παρακολούθηση βαθμολογίας'!C81&COUNTIF('Παρακολούθηση βαθμολογίας'!$C$4:C81,'Παρακολούθηση βαθμολογίας'!C81)","v":"0"}]
[null,79,{"$f":"'Παρακολούθηση βαθμολογίας'!C82&COUNTIF('Παρακολούθηση βαθμολογίας'!$C$4:C82,'Παρακολούθηση βαθμολογίας'!C82)","v":"0"}]
[null,80,{"$f":"'Παρακολούθηση βαθμολογίας'!C83&COUNTIF('Παρακολούθηση βαθμολογίας'!$C$4:C83,'Παρακολούθηση βαθμολογίας'!C83)","v":"0"}]
[null,81,{"$f":"'Παρακολούθηση βαθμολογίας'!C84&COUNTIF('Παρακολούθηση βαθμολογίας'!$C$4:C84,'Παρακολούθηση βαθμολογίας'!C84)","v":"0"}]
[null,82,{"$f":"'Παρακολούθηση βαθμολογίας'!C85&COUNTIF('Παρακολούθηση βαθμολογίας'!$C$4:C85,'Παρακολούθηση βαθμολογίας'!C85)","v":"0"}]
[null,83,{"$f":"'Παρακολούθηση βαθμολογίας'!C86&COUNTIF('Παρακολούθηση βαθμολογίας'!$C$4:C86,'Παρακολούθηση βαθμολογίας'!C86)","v":"0"}]
[null,84,{"$f":"'Παρακολούθηση βαθμολογίας'!C87&COUNTIF('Παρακολούθηση βαθμολογίας'!$C$4:C87,'Παρακολούθηση βαθμολογίας'!C87)","v":"0"}]
[null,85,{"$f":"'Παρακολούθηση βαθμολογίας'!C88&COUNTIF('Παρακολούθηση βαθμολογίας'!$C$4:C88,'Παρακολούθηση βαθμολογίας'!C88)","v":"0"}]
[null,86,{"$f":"'Παρακολούθηση βαθμολογίας'!C89&COUNTIF('Παρακολούθηση βαθμολογίας'!$C$4:C89,'Παρακολούθηση βαθμολογίας'!C89)","v":"0"}]
[null,87,{"$f":"'Παρακολούθηση βαθμολογίας'!C90&COUNTIF('Παρακολούθηση βαθμολογίας'!$C$4:C90,'Παρακολούθηση βαθμολογίας'!C90)","v":"0"}]
[null,88,{"$f":"'Παρακολούθηση βαθμολογίας'!C91&COUNTIF('Παρακολούθηση βαθμολογίας'!$C$4:C91,'Παρακολούθηση βαθμολογίας'!C91)","v":"0"}]
[null,89,{"$f":"'Παρακολούθηση βαθμολογίας'!C92&COUNTIF('Παρακολούθηση βαθμολογίας'!$C$4:C92,'Παρακολούθηση βαθμολογίας'!C92)","v":"0"}]
[null,90,{"$f":"'Παρακολούθηση βαθμολογίας'!C93&COUNTIF('Παρακολούθηση βαθμολογίας'!$C$4:C93,'Παρακολούθηση βαθμολογίας'!C93)","v":"0"}]
[null,91,{"$f":"'Παρακολούθηση βαθμολογίας'!C94&COUNTIF('Παρακολούθηση βαθμολογίας'!$C$4:C94,'Παρακολούθηση βαθμολογίας'!C94)","v":"0"}]
[null,92,{"$f":"'Παρακολούθηση βαθμολογίας'!C95&COUNTIF('Παρακολούθηση βαθμολογίας'!$C$4:C95,'Παρακολούθηση βαθμολογίας'!C95)","v":"0"}]
[null,93,{"$f":"'Παρακολούθηση βαθμολογίας'!C96&COUNTIF('Παρακολούθηση βαθμολογίας'!$C$4:C96,'Παρακολούθηση βαθμολογίας'!C96)","v":"0"}]
[null,94,{"$f":"'Παρακολούθηση βαθμολογίας'!C97&COUNTIF('Παρακολούθηση βαθμολογίας'!$C$4:C97,'Παρακολούθηση βαθμολογίας'!C97)","v":"0"}]
[null,95,{"$f":"'Παρακολούθηση βαθμολογίας'!C98&COUNTIF('Παρακολούθηση βαθμολογίας'!$C$4:C98,'Παρακολούθηση βαθμολογίας'!C98)","v":"0"}]
[null,96,{"$f":"'Παρακολούθηση βαθμολογίας'!C99&COUNTIF('Παρακολούθηση βαθμολογίας'!$C$4:C99,'Παρακολούθηση βαθμολογίας'!C99)","v":"0"}]
[null,97,{"$f":"'Παρακολούθηση βαθμολογίας'!C100&COUNTIF('Παρακολούθηση βαθμολογίας'!$C$4:C100,'Παρακολούθηση βαθμολογίας'!C100)","v":"0"}]
[null,98,{"$f":"'Παρακολούθηση βαθμολογίας'!C101&COUNTIF('Παρακολούθηση βαθμολογίας'!$C$4:C101,'Παρακολούθηση βαθμολογίας'!C101)","v":"0"}]
[null,99,{"$f":"'Παρακολούθηση βαθμολογίας'!C102&COUNTIF('Παρακολούθηση βαθμολογίας'!$C$4:C102,'Παρακολούθηση βαθμολογίας'!C102)","v":"0"}]
[null,100,{"$f":"'Παρακολούθηση βαθμολογίας'!C103&COUNTIF('Παρακολούθηση βαθμολογίας'!$C$4:C103,'Παρακολούθηση βαθμολογίας'!C103)","v":"0"}]
[null,101,{"$f":"'Παρακολούθηση βαθμολογίας'!C104&COUNTIF('Παρακολούθηση βαθμολογίας'!$C$4:C104,'Παρακολούθηση βαθμολογίας'!C104)","v":"0"}]
[null,102,{"$f":"'Παρακολούθηση βαθμολογίας'!C105&COUNTIF('Παρακολούθηση βαθμολογίας'!$C$4:C105,'Παρακολούθηση βαθμολογίας'!C105)","v":"0"}]
[null,103,{"$f":"'Παρακολούθηση βαθμολογίας'!C106&COUNTIF('Παρακολούθηση βαθμολογίας'!$C$4:C106,'Παρακολούθηση βαθμολογίας'!C106)","v":"0"}]
[null,104,{"$f":"'Παρακολούθηση βαθμολογίας'!C107&COUNTIF('Παρακολούθηση βαθμολογίας'!$C$4:C107,'Παρακολούθηση βαθμολογίας'!C107)","v":"0"}]
[null,105,{"$f":"'Παρακολούθηση βαθμολογίας'!C108&COUNTIF('Παρακολούθηση βαθμολογίας'!$C$4:C108,'Παρακολούθηση βαθμολογίας'!C108)","v":"0"}]
[null,106,{"$f":"'Παρακολούθηση βαθμολογίας'!C109&COUNTIF('Παρακολούθηση βαθμολογίας'!$C$4:C109,'Παρακολούθηση βαθμολογίας'!C109)","v":"0"}]
[null,107,{"$f":"'Παρακολούθηση βαθμολογίας'!C110&COUNTIF('Παρακολούθηση βαθμολογίας'!$C$4:C110,'Παρακολούθηση βαθμολογίας'!C110)","v":"0"}]
[null,108,{"$f":"'Παρακολούθηση βαθμολογίας'!C111&COUNTIF('Παρακολούθηση βαθμολογίας'!$C$4:C111,'Παρακολούθηση βαθμολογίας'!C111)","v":"0"}]
[null,109,{"$f":"'Παρακολούθηση βαθμολογίας'!C112&COUNTIF('Παρακολούθηση βαθμολογίας'!$C$4:C112,'Παρακολούθηση βαθμολογίας'!C112)","v":"0"}]
[null,110,{"$f":"'Παρακολούθηση βαθμολογίας'!C113&COUNTIF('Παρακολούθηση βαθμολογίας'!$C$4:C113,'Παρακολούθηση βαθμολογίας'!C113)","v":"0"}]
[null,111,{"$f":"'Παρακολούθηση βαθμολογίας'!C114&COUNTIF('Παρακολούθηση βαθμολογίας'!$C$4:C114,'Παρακολούθηση βαθμολογίας'!C114)","v":"0"}]
[null,112,{"$f":"'Παρακολούθηση βαθμολογίας'!C115&COUNTIF('Παρακολούθηση βαθμολογίας'!$C$4:C115,'Παρακολούθηση βαθμολογίας'!C115)","v":"0"}]
[null,113,{"$f":"'Παρακολούθηση βαθμολογίας'!C116&COUNTIF('Παρακολούθηση βαθμολογίας'!$C$4:C116,'Παρακολούθηση βαθμολογίας'!C116)","v":"0"}]
[null,114,{"$f":"'Παρακολούθηση βαθμολογίας'!C117&COUNTIF('Παρακολούθηση βαθμολογίας'!$C$4:C117,'Παρακολούθηση βαθμολογίας'!C117)","v":"0"}]
[null,115,{"$f":"'Παρακολούθηση βαθμολογίας'!C118&COUNTIF('Παρακολούθηση βαθμολογίας'!$C$4:C118,'Παρακολούθηση βαθμολογίας'!C118)","v":"0"}]
[null,116,{"$f":"'Παρακολούθηση βαθμολογίας'!C119&COUNTIF('Παρακολούθηση βαθμολογίας'!$C$4:C119,'Παρακολούθηση βαθμολογίας'!C119)","v":"0"}]
[null,117,{"$f":"'Παρακολούθηση βαθμολογίας'!C120&COUNTIF('Παρακολούθηση βαθμολογίας'!$C$4:C120,'Παρακολούθηση βαθμολογίας'!C120)","v":"0"}]
[null,118,{"$f":"'Παρακολούθηση βαθμολογίας'!C121&COUNTIF('Παρακολούθηση βαθμολογίας'!$C$4:C121,'Παρακολούθηση βαθμολογίας'!C121)","v":"0"}]
[null,119,{"$f":"'Παρακολούθηση βαθμολογίας'!C122&COUNTIF('Παρακολούθηση βαθμολογίας'!$C$4:C122,'Παρακολούθηση βαθμολογίας'!C122)","v":"0"}]
[null,120,{"$f":"'Παρακολούθηση βαθμολογίας'!C123&COUNTIF('Παρακολούθηση βαθμολογίας'!$C$4:C123,'Παρακολούθηση βαθμολογίας'!C123)","v":"0"}]
[null,121,{"$f":"'Παρακολούθηση βαθμολογίας'!C124&COUNTIF('Παρακολούθηση βαθμολογίας'!$C$4:C124,'Παρακολούθηση βαθμολογίας'!C124)","v":"0"}]
[null,122,{"$f":"'Παρακολούθηση βαθμολογίας'!C125&COUNTIF('Παρακολούθηση βαθμολογίας'!$C$4:C125,'Παρακολούθηση βαθμολογίας'!C125)","v":"0"}]
[null,123,{"$f":"'Παρακολούθηση βαθμολογίας'!C126&COUNTIF('Παρακολούθηση βαθμολογίας'!$C$4:C126,'Παρακολούθηση βαθμολογίας'!C126)","v":"0"}]
[null,124,{"$f":"'Παρακολούθηση βαθμολογίας'!C127&COUNTIF('Παρακολούθηση βαθμολογίας'!$C$4:C127,'Παρακολούθηση βαθμολογίας'!C127)","v":"0"}]
[null,125,{"$f":"'Παρακολούθηση βαθμολογίας'!C128&COUNTIF('Παρακολούθηση βαθμολογίας'!$C$4:C128,'Παρακολούθηση βαθμολογίας'!C128)","v":"0"}]
[null,126,{"$f":"'Παρακολούθηση βαθμολογίας'!C129&COUNTIF('Παρακολούθηση βαθμολογίας'!$C$4:C129,'Παρακολούθηση βαθμολογίας'!C129)","v":"0"}]
[null,127,{"$f":"'Παρακολούθηση βαθμολογίας'!C130&COUNTIF('Παρακολούθηση βαθμολογίας'!$C$4:C130,'Παρακολούθηση βαθμολογίας'!C130)","v":"0"}]
[null,128,{"$f":"'Παρακολούθηση βαθμολογίας'!C131&COUNTIF('Παρακολούθηση βαθμολογίας'!$C$4:C131,'Παρακολούθηση βαθμολογίας'!C131)","v":"0"}]
[null,129,{"$f":"'Παρακολούθηση βαθμολογίας'!C132&COUNTIF('Παρακολούθηση βαθμολογίας'!$C$4:C132,'Παρακολούθηση βαθμολογίας'!C132)","v":"0"}]
[null,130,{"$f":"'Παρακολούθηση βαθμολογίας'!C133&COUNTIF('Παρακολούθηση βαθμολογίας'!$C$4:C133,'Παρακολούθηση βαθμολογίας'!C133)","v":"0"}]
[null,131,{"$f":"'Παρακολούθηση βαθμολογίας'!C134&COUNTIF('Παρακολούθηση βαθμολογίας'!$C$4:C134,'Παρακολούθηση βαθμολογίας'!C134)","v":"0"}]
[null,132,{"$f":"'Παρακολούθηση βαθμολογίας'!C135&COUNTIF('Παρακολούθηση βαθμολογίας'!$C$4:C135,'Παρακολούθηση βαθμολογίας'!C135)","v":"0"}]
[null,133,{"$f":"'Παρακολούθηση βαθμολογίας'!C136&COUNTIF('Παρακολούθηση βαθμολογίας'!$C$4:C136,'Παρακολούθηση βαθμολογίας'!C136)","v":"0"}]
[null,134,{"$f":"'Παρακολούθηση βαθμολογίας'!C137&COUNTIF('Παρακολούθηση βαθμολογίας'!$C$4:C137,'Παρακολούθηση βαθμολογίας'!C137)","v":"0"}]
[null,135,{"$f":"'Παρακολούθηση βαθμολογίας'!C138&COUNTIF('Παρακολούθηση βαθμολογίας'!$C$4:C138,'Παρακολούθηση βαθμολογίας'!C138)","v":"0"}]
[null,136,{"$f":"'Παρακολούθηση βαθμολογίας'!C139&COUNTIF('Παρακολούθηση βαθμολογίας'!$C$4:C139,'Παρακολούθηση βαθμολογίας'!C139)","v":"0"}]
[null,137,{"$f":"'Παρακολούθηση βαθμολογίας'!C140&COUNTIF('Παρακολούθηση βαθμολογίας'!$C$4:C140,'Παρακολούθηση βαθμολογίας'!C140)","v":"0"}]
[null,138,{"$f":"'Παρακολούθηση βαθμολογίας'!C141&COUNTIF('Παρακολούθηση βαθμολογίας'!$C$4:C141,'Παρακολούθηση βαθμολογίας'!C141)","v":"0"}]
[null,139,{"$f":"'Παρακολούθηση βαθμολογίας'!C142&COUNTIF('Παρακολούθηση βαθμολογίας'!$C$4:C142,'Παρακολούθηση βαθμολογίας'!C142)","v":"0"}]
[null,140,{"$f":"'Παρακολούθηση βαθμολογίας'!C143&COUNTIF('Παρακολούθηση βαθμολογίας'!$C$4:C143,'Παρακολούθηση βαθμολογίας'!C143)","v":"0"}]
[null,141,{"$f":"'Παρακολούθηση βαθμολογίας'!C144&COUNTIF('Παρακολούθηση βαθμολογίας'!$C$4:C144,'Παρακολούθηση βαθμολογίας'!C144)","v":"0"}]
[null,142,{"$f":"'Παρακολούθηση βαθμολογίας'!C145&COUNTIF('Παρακολούθηση βαθμολογίας'!$C$4:C145,'Παρακολούθηση βαθμολογίας'!C145)","v":"0"}]
[null,143,{"$f":"'Παρακολούθηση βαθμολογίας'!C146&COUNTIF('Παρακολούθηση βαθμολογίας'!$C$4:C146,'Παρακολούθηση βαθμολογίας'!C146)","v":"0"}]
[null,144,{"$f":"'Παρακολούθηση βαθμολογίας'!C147&COUNTIF('Παρακολούθηση βαθμολογίας'!$C$4:C147,'Παρακολούθηση βαθμολογίας'!C147)","v":"0"}]
[null,145,{"$f":"'Παρακολούθηση βαθμολογίας'!C148&COUNTIF('Παρακολούθηση βαθμολογίας'!$C$4:C148,'Παρακολούθηση βαθμολογίας'!C148)","v":"0"}]
[null,146,{"$f":"'Παρακολούθηση βαθμολογίας'!C149&COUNTIF('Παρακολούθηση βαθμολογίας'!$C$4:C149,'Παρακολούθηση βαθμολογίας'!C149)","v":"0"}]
[null,147,{"$f":"'Παρακολούθηση βαθμολογίας'!C150&COUNTIF('Παρακολούθηση βαθμολογίας'!$C$4:C150,'Παρακολούθηση βαθμολογίας'!C150)","v":"0"}]
[null,148,{"$f":"'Παρακολούθηση βαθμολογίας'!C151&COUNTIF('Παρακολούθηση βαθμολογίας'!$C$4:C151,'Παρακολούθηση βαθμολογίας'!C151)","v":"0"}]
[null,149,{"$f":"'Παρακολούθηση βαθμολογίας'!C152&COUNTIF('Παρακολούθηση βαθμολογίας'!$C$4:C152,'Παρακολούθηση βαθμολογίας'!C152)","v":"0"}]
[null,150,{"$f":"'Παρακολούθηση βαθμολογίας'!C153&COUNTIF('Παρακολούθηση βαθμολογίας'!$C$4:C153,'Παρακολούθηση βαθμολογίας'!C153)","v":"0"}]
[null,151,{"$f":"'Παρακολούθηση βαθμολογίας'!C154&COUNTIF('Παρακολούθηση βαθμολογίας'!$C$4:C154,'Παρακολούθηση βαθμολογίας'!C154)","v":"0"}]
[null,152,{"$f":"'Παρακολούθηση βαθμολογίας'!C155&COUNTIF('Παρακολούθηση βαθμολογίας'!$C$4:C155,'Παρακολούθηση βαθμολογίας'!C155)","v":"0"}]
[null,153,{"$f":"'Παρακολούθηση βαθμολογίας'!C156&COUNTIF('Παρακολούθηση βαθμολογίας'!$C$4:C156,'Παρακολούθηση βαθμολογίας'!C156)","v":"0"}]
[null,154,{"$f":"'Παρακολούθηση βαθμολογίας'!C157&COUNTIF('Παρακολούθηση βαθμολογίας'!$C$4:C157,'Παρακολούθηση βαθμολογίας'!C157)","v":"0"}]
[null,155,{"$f":"'Παρακολούθηση βαθμολογίας'!C158&COUNTIF('Παρακολούθηση βαθμολογίας'!$C$4:C158,'Παρακολούθηση βαθμολογίας'!C158)","v":"0"}]
[null,156,{"$f":"'Παρακολούθηση βαθμολογίας'!C159&COUNTIF('Παρακολούθηση βαθμολογίας'!$C$4:C159,'Παρακολούθηση βαθμολογίας'!C159)","v":"0"}]
[null,157,{"$f":"'Παρακολούθηση βαθμολογίας'!C160&COUNTIF('Παρακολούθηση βαθμολογίας'!$C$4:C160,'Παρακολούθηση βαθμολογίας'!C160)","v":"0"}]
[null,158,{"$f":"'Παρακολούθηση βαθμολογίας'!C161&COUNTIF('Παρακολούθηση βαθμολογίας'!$C$4:C161,'Παρακολούθηση βαθμολογίας'!C161)","v":"0"}]
[null,159,{"$f":"'Παρακολούθηση βαθμολογίας'!C162&COUNTIF('Παρακολούθηση βαθμολογίας'!$C$4:C162,'Παρακολούθηση βαθμολογίας'!C162)","v":"0"}]
[null,160,{"$f":"'Παρακολούθηση βαθμολογίας'!C163&COUNTIF('Παρακολούθηση βαθμολογίας'!$C$4:C163,'Παρακολούθηση βαθμολογίας'!C163)","v":"0"}]
[null,161,{"$f":"'Παρακολούθηση βαθμολογίας'!C164&COUNTIF('Παρακολούθηση βαθμολογίας'!$C$4:C164,'Παρακολούθηση βαθμολογίας'!C164)","v":"0"}]
[null,162,{"$f":"'Παρακολούθηση βαθμολογίας'!C165&COUNTIF('Παρακολούθηση βαθμολογίας'!$C$4:C165,'Παρακολούθηση βαθμολογίας'!C165)","v":"0"}]
[null,163,{"$f":"'Παρακολούθηση βαθμολογίας'!C166&COUNTIF('Παρακολούθηση βαθμολογίας'!$C$4:C166,'Παρακολούθηση βαθμολογίας'!C166)","v":"0"}]
[null,164,{"$f":"'Παρακολούθηση βαθμολογίας'!C167&COUNTIF('Παρακολούθηση βαθμολογίας'!$C$4:C167,'Παρακολούθηση βαθμολογίας'!C167)","v":"0"}]
[null,165,{"$f":"'Παρακολούθηση βαθμολογίας'!C168&COUNTIF('Παρακολούθηση βαθμολογίας'!$C$4:C168,'Παρακολούθηση βαθμολογίας'!C168)","v":"0"}]
[null,166,{"$f":"'Παρακολούθηση βαθμολογίας'!C169&COUNTIF('Παρακολούθηση βαθμολογίας'!$C$4:C169,'Παρακολούθηση βαθμολογίας'!C169)","v":"0"}]
[null,167,{"$f":"'Παρακολούθηση βαθμολογίας'!C170&COUNTIF('Παρακολούθηση βαθμολογίας'!$C$4:C170,'Παρακολούθηση βαθμολογίας'!C170)","v":"0"}]
[null,168,{"$f":"'Παρακολούθηση βαθμολογίας'!C171&COUNTIF('Παρακολούθηση βαθμολογίας'!$C$4:C171,'Παρακολούθηση βαθμολογίας'!C171)","v":"0"}]
[null,169,{"$f":"'Παρακολούθηση βαθμολογίας'!C172&COUNTIF('Παρακολούθηση βαθμολογίας'!$C$4:C172,'Παρακολούθηση βαθμολογίας'!C172)","v":"0"}]
[null,170,{"$f":"'Παρακολούθηση βαθμολογίας'!C173&COUNTIF('Παρακολούθηση βαθμολογίας'!$C$4:C173,'Παρακολούθηση βαθμολογίας'!C173)","v":"0"}]
[null,171,{"$f":"'Παρακολούθηση βαθμολογίας'!C174&COUNTIF('Παρακολούθηση βαθμολογίας'!$C$4:C174,'Παρακολούθηση βαθμολογίας'!C174)","v":"0"}]
[null,172,{"$f":"'Παρακολούθηση βαθμολογίας'!C175&COUNTIF('Παρακολούθηση βαθμολογίας'!$C$4:C175,'Παρακολούθηση βαθμολογίας'!C175)","v":"0"}]
[null,173,{"$f":"'Παρακολούθηση βαθμολογίας'!C176&COUNTIF('Παρακολούθηση βαθμολογίας'!$C$4:C176,'Παρακολούθηση βαθμολογίας'!C176)","v":"0"}]
[null,174,{"$f":"'Παρακολούθηση βαθμολογίας'!C177&COUNTIF('Παρακολούθηση βαθμολογίας'!$C$4:C177,'Παρακολούθηση βαθμολογίας'!C177)","v":"0"}]
[null,175,{"$f":"'Παρακολούθηση βαθμολογίας'!C178&COUNTIF('Παρακολούθηση βαθμολογίας'!$C$4:C178,'Παρακολούθηση βαθμολογίας'!C178)","v":"0"}]
[null,176,{"$f":"'Παρακολούθηση βαθμολογίας'!C179&COUNTIF('Παρακολούθηση βαθμολογίας'!$C$4:C179,'Παρακολούθηση βαθμολογίας'!C179)","v":"0"}]
[null,177,{"$f":"'Παρακολούθηση βαθμολογίας'!C180&COUNTIF('Παρακολούθηση βαθμολογίας'!$C$4:C180,'Παρακολούθηση βαθμολογίας'!C180)","v":"0"}]
[null,178,{"$f":"'Παρακολούθηση βαθμολογίας'!C181&COUNTIF('Παρακολούθηση βαθμολογίας'!$C$4:C181,'Παρακολούθηση βαθμολογίας'!C181)","v":"0"}]
[null,179,{"$f":"'Παρακολούθηση βαθμολογίας'!C182&COUNTIF('Παρακολούθηση βαθμολογίας'!$C$4:C182,'Παρακολούθηση βαθμολογίας'!C182)","v":"0"}]
[null,180,{"$f":"'Παρακολούθηση βαθμολογίας'!C183&COUNTIF('Παρακολούθηση βαθμολογίας'!$C$4:C183,'Παρακολούθηση βαθμολογίας'!C183)","v":"0"}]
[null,181,{"$f":"'Παρακολούθηση βαθμολογίας'!C184&COUNTIF('Παρακολούθηση βαθμολογίας'!$C$4:C184,'Παρακολούθηση βαθμολογίας'!C184)","v":"0"}]
[null,182,{"$f":"'Παρακολούθηση βαθμολογίας'!C185&COUNTIF('Παρακολούθηση βαθμολογίας'!$C$4:C185,'Παρακολούθηση βαθμολογίας'!C185)","v":"0"}]
[null,183,{"$f":"'Παρακολούθηση βαθμολογίας'!C186&COUNTIF('Παρακολούθηση βαθμολογίας'!$C$4:C186,'Παρακολούθηση βαθμολογίας'!C186)","v":"0"}]
[null,184,{"$f":"'Παρακολούθηση βαθμολογίας'!C187&COUNTIF('Παρακολούθηση βαθμολογίας'!$C$4:C187,'Παρακολούθηση βαθμολογίας'!C187)","v":"0"}]
[null,185,{"$f":"'Παρακολούθηση βαθμολογίας'!C188&COUNTIF('Παρακολούθηση βαθμολογίας'!$C$4:C188,'Παρακολούθηση βαθμολογίας'!C188)","v":"0"}]
[null,186,{"$f":"'Παρακολούθηση βαθμολογίας'!C189&COUNTIF('Παρακολούθηση βαθμολογίας'!$C$4:C189,'Παρακολούθηση βαθμολογίας'!C189)","v":"0"}]
[null,187,{"$f":"'Παρακολούθηση βαθμολογίας'!C190&COUNTIF('Παρακολούθηση βαθμολογίας'!$C$4:C190,'Παρακολούθηση βαθμολογίας'!C190)","v":"0"}]
[null,188,{"$f":"'Παρακολούθηση βαθμολογίας'!C191&COUNTIF('Παρακολούθηση βαθμολογίας'!$C$4:C191,'Παρακολούθηση βαθμολογίας'!C191)","v":"0"}]
[null,189,{"$f":"'Παρακολούθηση βαθμολογίας'!C192&COUNTIF('Παρακολούθηση βαθμολογίας'!$C$4:C192,'Παρακολούθηση βαθμολογίας'!C192)","v":"0"}]
[null,190,{"$f":"'Παρακολούθηση βαθμολογίας'!C193&COUNTIF('Παρακολούθηση βαθμολογίας'!$C$4:C193,'Παρακολούθηση βαθμολογίας'!C193)","v":"0"}]
[null,191,{"$f":"'Παρακολούθηση βαθμολογίας'!C194&COUNTIF('Παρακολούθηση βαθμολογίας'!$C$4:C194,'Παρακολούθηση βαθμολογίας'!C194)","v":"0"}]
[null,192,{"$f":"'Παρακολούθηση βαθμολογίας'!C195&COUNTIF('Παρακολούθηση βαθμολογίας'!$C$4:C195,'Παρακολούθηση βαθμολογίας'!C195)","v":"0"}]
[null,193,{"$f":"'Παρακολούθηση βαθμολογίας'!C196&COUNTIF('Παρακολούθηση βαθμολογίας'!$C$4:C196,'Παρακολούθηση βαθμολογίας'!C196)","v":"0"}]
[null,194,{"$f":"'Παρακολούθηση βαθμολογίας'!C197&COUNTIF('Παρακολούθηση βαθμολογίας'!$C$4:C197,'Παρακολούθηση βαθμολογίας'!C197)","v":"0"}]
[null,195,{"$f":"'Παρακολούθηση βαθμολογίας'!C198&COUNTIF('Παρακολούθηση βαθμολογίας'!$C$4:C198,'Παρακολούθηση βαθμολογίας'!C198)","v":"0"}]
[null,196,{"$f":"'Παρακολούθηση βαθμολογίας'!C199&COUNTIF('Παρακολούθηση βαθμολογίας'!$C$4:C199,'Παρακολούθηση βαθμολογίας'!C199)","v":"0"}]
[null,197,{"$f":"'Παρακολούθηση βαθμολογίας'!C200&COUNTIF('Παρακολούθηση βαθμολογίας'!$C$4:C200,'Παρακολούθηση βαθμολογίας'!C200)","v":"0"}]
[null,198,{"$f":"'Παρακολούθηση βαθμολογίας'!C201&COUNTIF('Παρακολούθηση βαθμολογίας'!$C$4:C201,'Παρακολούθηση βαθμολογίας'!C201)","v":"0"}]
[null,199,{"$f":"'Παρακολούθηση βαθμολογίας'!C202&COUNTIF('Παρακολούθηση βαθμολογίας'!$C$4:C202,'Παρακολούθηση βαθμολογίας'!C202)","v":"0"}]
[null,200,{"$f":"'Παρακολούθηση βαθμολογίας'!C203&COUNTIF('Παρακολούθηση βαθμολογίας'!$C$4:C203,'Παρακολούθηση βαθμολογίας'!C203)","v":"0"}]
[null,201,{"$f":"'Παρακολούθηση βαθμολογίας'!C204&COUNTIF('Παρακολούθηση βαθμολογίας'!$C$4:C204,'Παρακολούθηση βαθμολογίας'!C204)","v":"0"}]
[null,202,{"$f":"'Παρακολούθηση βαθμολογίας'!C205&COUNTIF('Παρακολούθηση βαθμολογίας'!$C$4:C205,'Παρακολούθηση βαθμολογίας'!C205)","v":"0"}]
[null,203,{"$f":"'Παρακολούθηση βαθμολογίας'!C206&COUNTIF('Παρακολούθηση βαθμολογίας'!$C$4:C206,'Παρακολούθηση βαθμολογίας'!C206)","v":"0"}]
[null,204,{"$f":"'Παρακολούθηση βαθμολογίας'!C207&COUNTIF('Παρακολούθηση βαθμολογίας'!$C$4:C207,'Παρακολούθηση βαθμολογίας'!C207)","v":"0"}]
[null,205,{"$f":"'Παρακολούθηση βαθμολογίας'!C208&COUNTIF('Παρακολούθηση βαθμολογίας'!$C$4:C208,'Παρακολούθηση βαθμολογίας'!C208)","v":"0"}]
[null,206,{"$f":"'Παρακολούθηση βαθμολογίας'!C209&COUNTIF('Παρακολούθηση βαθμολογίας'!$C$4:C209,'Παρακολούθηση βαθμολογίας'!C209)","v":"0"}]
[null,207,{"$f":"'Παρακολούθηση βαθμολογίας'!C210&COUNTIF('Παρακολούθηση βαθμολογίας'!$C$4:C210,'Παρακολούθηση βαθμολογίας'!C210)","v":"0"}]
[null,208,{"$f":"'Παρακολούθηση βαθμολογίας'!C211&COUNTIF('Παρακολούθηση βαθμολογίας'!$C$4:C211,'Παρακολούθηση βαθμολογίας'!C211)","v":"0"}]
[null,209,{"$f":"'Παρακολούθηση βαθμολογίας'!C212&COUNTIF('Παρακολούθηση βαθμολογίας'!$C$4:C212,'Παρακολούθηση βαθμολογίας'!C212)","v":"0"}]
[null,210,{"$f":"'Παρακολούθηση βαθμολογίας'!C213&COUNTIF('Παρακολούθηση βαθμολογίας'!$C$4:C213,'Παρακολούθηση βαθμολογίας'!C213)","v":"0"}]
[null,211,{"$f":"'Παρακολούθηση βαθμολογίας'!C214&COUNTIF('Παρακολούθηση βαθμολογίας'!$C$4:C214,'Παρακολούθηση βαθμολογίας'!C214)","v":"0"}]
[null,212,{"$f":"'Παρακολούθηση βαθμολογίας'!C215&COUNTIF('Παρακολούθηση βαθμολογίας'!$C$4:C215,'Παρακολούθηση βαθμολογίας'!C215)","v":"0"}]
[null,213,{"$f":"'Παρακολούθηση βαθμολογίας'!C216&COUNTIF('Παρακολούθηση βαθμολογίας'!$C$4:C216,'Παρακολούθηση βαθμολογίας'!C216)","v":"0"}]
[null,214,{"$f":"'Παρακολούθηση βαθμολογίας'!C217&COUNTIF('Παρακολούθηση βαθμολογίας'!$C$4:C217,'Παρακολούθηση βαθμολογίας'!C217)","v":"0"}]
[null,215,{"$f":"'Παρακολούθηση βαθμολογίας'!C218&COUNTIF('Παρακολούθηση βαθμολογίας'!$C$4:C218,'Παρακολούθηση βαθμολογίας'!C218)","v":"0"}]
[null,216,{"$f":"'Παρακολούθηση βαθμολογίας'!C219&COUNTIF('Παρακολούθηση βαθμολογίας'!$C$4:C219,'Παρακολούθηση βαθμολογίας'!C219)","v":"0"}]
[null,217,{"$f":"'Παρακολούθηση βαθμολογίας'!C220&COUNTIF('Παρακολούθηση βαθμολογίας'!$C$4:C220,'Παρακολούθηση βαθμολογίας'!C220)","v":"0"}]
[null,218,{"$f":"'Παρακολούθηση βαθμολογίας'!C221&COUNTIF('Παρακολούθηση βαθμολογίας'!$C$4:C221,'Παρακολούθηση βαθμολογίας'!C221)","v":"0"}]
[null,219,{"$f":"'Παρακολούθηση βαθμολογίας'!C222&COUNTIF('Παρακολούθηση βαθμολογίας'!$C$4:C222,'Παρακολούθηση βαθμολογίας'!C222)","v":"0"}]
[null,220,{"$f":"'Παρακολούθηση βαθμολογίας'!C223&COUNTIF('Παρακολούθηση βαθμολογίας'!$C$4:C223,'Παρακολούθηση βαθμολογίας'!C223)","v":"0"}]
[null,221,{"$f":"'Παρακολούθηση βαθμολογίας'!C224&COUNTIF('Παρακολούθηση βαθμολογίας'!$C$4:C224,'Παρακολούθηση βαθμολογίας'!C224)","v":"0"}]
[null,222,{"$f":"'Παρακολούθηση βαθμολογίας'!C225&COUNTIF('Παρακολούθηση βαθμολογίας'!$C$4:C225,'Παρακολούθηση βαθμολογίας'!C225)","v":"0"}]
[null,223,{"$f":"'Παρακολούθηση βαθμολογίας'!C226&COUNTIF('Παρακολούθηση βαθμολογίας'!$C$4:C226,'Παρακολούθηση βαθμολογίας'!C226)","v":"0"}]
[null,224,{"$f":"'Παρακολούθηση βαθμολογίας'!C227&COUNTIF('Παρακολούθηση βαθμολογίας'!$C$4:C227,'Παρακολούθηση βαθμολογίας'!C227)","v":"0"}]
[null,225,{"$f":"'Παρακολούθηση βαθμολογίας'!C228&COUNTIF('Παρακολούθηση βαθμολογίας'!$C$4:C228,'Παρακολούθηση βαθμολογίας'!C228)","v":"0"}]
[null,226,{"$f":"'Παρακολούθηση βαθμολογίας'!C229&COUNTIF('Παρακολούθηση βαθμολογίας'!$C$4:C229,'Παρακολούθηση βαθμολογίας'!C229)","v":"0"}]
[null,227,{"$f":"'Παρακολούθηση βαθμολογίας'!C230&COUNTIF('Παρακολούθηση βαθμολογίας'!$C$4:C230,'Παρακολούθηση βαθμολογίας'!C230)","v":"0"}]
[null,228,{"$f":"'Παρακολούθηση βαθμολογίας'!C231&COUNTIF('Παρακολούθηση βαθμολογίας'!$C$4:C231,'Παρακολούθηση βαθμολογίας'!C231)","v":"0"}]
[null,229,{"$f":"'Παρακολούθηση βαθμολογίας'!C232&COUNTIF('Παρακολούθηση βαθμολογίας'!$C$4:C232,'Παρακολούθηση βαθμολογίας'!C232)","v":"0"}]
[null,230,{"$f":"'Παρακολούθηση βαθμολογίας'!C233&COUNTIF('Παρακολούθηση βαθμολογίας'!$C$4:C233,'Παρακολούθηση βαθμολογίας'!C233)","v":"0"}]
[null,231,{"$f":"'Παρακολούθηση βαθμολογίας'!C234&COUNTIF('Παρακολούθηση βαθμολογίας'!$C$4:C234,'Παρακολούθηση βαθμολογίας'!C234)","v":"0"}]
[null,232,{"$f":"'Παρακολούθηση βαθμολογίας'!C235&COUNTIF('Παρακολούθηση βαθμολογίας'!$C$4:C235,'Παρακολούθηση βαθμολογίας'!C235)","v":"0"}]
[null,233,{"$f":"'Παρακολούθηση βαθμολογίας'!C236&COUNTIF('Παρακολούθηση βαθμολογίας'!$C$4:C236,'Παρακολούθηση βαθμολογίας'!C236)","v":"0"}]
[null,234,{"$f":"'Παρακολούθηση βαθμολογίας'!C237&COUNTIF('Παρακολούθηση βαθμολογίας'!$C$4:C237,'Παρακολούθηση βαθμολογίας'!C237)","v":"0"}]
[null,235,{"$f":"'Παρακολούθηση βαθμολογίας'!C238&COUNTIF('Παρακολούθηση βαθμολογίας'!$C$4:C238,'Παρακολούθηση βαθμολογίας'!C238)","v":"0"}]
[null,236,{"$f":"'Παρακολούθηση βαθμολογίας'!C239&COUNTIF('Παρακολούθηση βαθμολογίας'!$C$4:C239,'Παρακολούθηση βαθμολογίας'!C239)","v":"0"}]
[null,237,{"$f":"'Παρακολούθηση βαθμολογίας'!C240&COUNTIF('Παρακολούθηση βαθμολογίας'!$C$4:C240,'Παρακολούθηση βαθμολογίας'!C240)","v":"0"}]
[null,238,{"$f":"'Παρακολούθηση βαθμολογίας'!C241&COUNTIF('Παρακολούθηση βαθμολογίας'!$C$4:C241,'Παρακολούθηση βαθμολογίας'!C241)","v":"0"}]
[null,239,{"$f":"'Παρακολούθηση βαθμολογίας'!C242&COUNTIF('Παρακολούθηση βαθμολογίας'!$C$4:C242,'Παρακολούθηση βαθμολογίας'!C242)","v":"0"}]
[null,240,{"$f":"'Παρακολούθηση βαθμολογίας'!C243&COUNTIF('Παρακολούθηση βαθμολογίας'!$C$4:C243,'Παρακολούθηση βαθμολογίας'!C243)","v":"0"}]
[null,241,{"$f":"'Παρακολούθηση βαθμολογίας'!C244&COUNTIF('Παρακολούθηση βαθμολογίας'!$C$4:C244,'Παρακολούθηση βαθμολογίας'!C244)","v":"0"}]
[null,242,{"$f":"'Παρακολούθηση βαθμολογίας'!C245&COUNTIF('Παρακολούθηση βαθμολογίας'!$C$4:C245,'Παρακολούθηση βαθμολογίας'!C245)","v":"0"}]
[null,243,{"$f":"'Παρακολούθηση βαθμολογίας'!C246&COUNTIF('Παρακολούθηση βαθμολογίας'!$C$4:C246,'Παρακολούθηση βαθμολογίας'!C246)","v":"0"}]
[null,244,{"$f":"'Παρακολούθηση βαθμολογίας'!C247&COUNTIF('Παρακολούθηση βαθμολογίας'!$C$4:C247,'Παρακολούθηση βαθμολογίας'!C247)","v":"0"}]
[null,245,{"$f":"'Παρακολούθηση βαθμολογίας'!C248&COUNTIF('Παρακολούθηση βαθμολογίας'!$C$4:C248,'Παρακολούθηση βαθμολογίας'!C248)","v":"0"}]
[null,246,{"$f":"'Παρακολούθηση βαθμολογίας'!C249&COUNTIF('Παρακολούθηση βαθμολογίας'!$C$4:C249,'Παρακολούθηση βαθμολογίας'!C249)","v":"0"}]
[null,247,{"$f":"'Παρακολούθηση βαθμολογίας'!C250&COUNTIF('Παρακολούθηση βαθμολογίας'!$C$4:C250,'Παρακολούθηση βαθμολογίας'!C250)","v":"0"}]
[null,248,{"$f":"'Παρακολούθηση βαθμολογίας'!C251&COUNTIF('Παρακολούθηση βαθμολογίας'!$C$4:C251,'Παρακολούθηση βαθμολογίας'!C251)","v":"0"}]
[null,249,{"$f":"'Παρακολούθηση βαθμολογίας'!C252&COUNTIF('Παρακολούθηση βαθμολογίας'!$C$4:C252,'Παρακολούθηση βαθμολογίας'!C252)","v":"0"}]
[null,250,{"$f":"'Παρακολούθηση βαθμολογίας'!C253&COUNTIF('Παρακολούθηση βαθμολογίας'!$C$4:C253,'Παρακολούθηση βαθμολογίας'!C253)","v":"0"}]
[null,251,{"$f":"'Παρακολούθηση βαθμολογίας'!C254&COUNTIF('Παρακολούθηση βαθμολογίας'!$C$4:C254,'Παρακολούθηση βαθμολογίας'!C254)","v":"0"}]
[null,252,{"$f":"'Παρακολούθηση βαθμολογίας'!C255&COUNTIF('Παρακολούθηση βαθμολογίας'!$C$4:C255,'Παρακολούθηση βαθμολογίας'!C255)","v":"0"}]
[null,253,{"$f":"'Παρακολούθηση βαθμολογίας'!C256&COUNTIF('Παρακολούθηση βαθμολογίας'!$C$4:C256,'Παρακολούθηση βαθμολογίας'!C256)","v":"0"}]
[null,254,{"$f":"'Παρακολούθηση βαθμολογίας'!C257&COUNTIF('Παρακολούθηση βαθμολογίας'!$C$4:C257,'Παρακολούθηση βαθμολογίας'!C257)","v":"0"}]
[null,255,{"$f":"'Παρακολούθηση βαθμολογίας'!C258&COUNTIF('Παρακολούθηση βαθμολογίας'!$C$4:C258,'Παρακολούθηση βαθμολογίας'!C258)","v":"0"}]
[null,256,{"$f":"'Παρακολούθηση βαθμολογίας'!C259&COUNTIF('Παρακολούθηση βαθμολογίας'!$C$4:C259,'Παρακολούθηση βαθμολογίας'!C259)","v":"0"}]
[null,257,{"$f":"'Παρακολούθηση βαθμολογίας'!C260&COUNTIF('Παρακολούθηση βαθμολογίας'!$C$4:C260,'Παρακολούθηση βαθμολογίας'!C260)","v":"0"}]
[null,258,{"$f":"'Παρακολούθηση βαθμολογίας'!C261&COUNTIF('Παρακολούθηση βαθμολογίας'!$C$4:C261,'Παρακολούθηση βαθμολογίας'!C261)","v":"0"}]
[null,259,{"$f":"'Παρακολούθηση βαθμολογίας'!C262&COUNTIF('Παρακολούθηση βαθμολογίας'!$C$4:C262,'Παρακολούθηση βαθμολογίας'!C262)","v":"0"}]
[null,260,{"$f":"'Παρακολούθηση βαθμολογίας'!C263&COUNTIF('Παρακολούθηση βαθμολογίας'!$C$4:C263,'Παρακολούθηση βαθμολογίας'!C263)","v":"0"}]
[null,261,{"$f":"'Παρακολούθηση βαθμολογίας'!C264&COUNTIF('Παρακολούθηση βαθμολογίας'!$C$4:C264,'Παρακολούθηση βαθμολογίας'!C264)","v":"0"}]
[null,262,{"$f":"'Παρακολούθηση βαθμολογίας'!C265&COUNTIF('Παρακολούθηση βαθμολογίας'!$C$4:C265,'Παρακολούθηση βαθμολογίας'!C265)","v":"0"}]
[null,263,{"$f":"'Παρακολούθηση βαθμολογίας'!C266&COUNTIF('Παρακολούθηση βαθμολογίας'!$C$4:C266,'Παρακολούθηση βαθμολογίας'!C266)","v":"0"}]
[null,264,{"$f":"'Παρακολούθηση βαθμολογίας'!C267&COUNTIF('Παρακολούθηση βαθμολογίας'!$C$4:C267,'Παρακολούθηση βαθμολογίας'!C267)","v":"0"}]
[null,265,{"$f":"'Παρακολούθηση βαθμολογίας'!C268&COUNTIF('Παρακολούθηση βαθμολογίας'!$C$4:C268,'Παρακολούθηση βαθμολογίας'!C268)","v":"0"}]
[null,266,{"$f":"'Παρακολούθηση βαθμολογίας'!C269&COUNTIF('Παρακολούθηση βαθμολογίας'!$C$4:C269,'Παρακολούθηση βαθμολογίας'!C269)","v":"0"}]
[null,267,{"$f":"'Παρακολούθηση βαθμολογίας'!C270&COUNTIF('Παρακολούθηση βαθμολογίας'!$C$4:C270,'Παρακολούθηση βαθμολογίας'!C270)","v":"0"}]
[null,268,{"$f":"'Παρακολούθηση βαθμολογίας'!C271&COUNTIF('Παρακολούθηση βαθμολογίας'!$C$4:C271,'Παρακολούθηση βαθμολογίας'!C271)","v":"0"}]
[null,269,{"$f":"'Παρακολούθηση βαθμολογίας'!C272&COUNTIF('Παρακολούθηση βαθμολογίας'!$C$4:C272,'Παρακολούθηση βαθμολογίας'!C272)","v":"0"}]
[null,270,{"$f":"'Παρακολούθηση βαθμολογίας'!C273&COUNTIF('Παρακολούθηση βαθμολογίας'!$C$4:C273,'Παρακολούθηση βαθμολογίας'!C273)","v":"0"}]
[null,271,{"$f":"'Παρακολούθηση βαθμολογίας'!C274&COUNTIF('Παρακολούθηση βαθμολογίας'!$C$4:C274,'Παρακολούθηση βαθμολογίας'!C274)","v":"0"}]
[null,272,{"$f":"'Παρακολούθηση βαθμολογίας'!C275&COUNTIF('Παρακολούθηση βαθμολογίας'!$C$4:C275,'Παρακολούθηση βαθμολογίας'!C275)","v":"0"}]
[null,273,{"$f":"'Παρακολούθηση βαθμολογίας'!C276&COUNTIF('Παρακολούθηση βαθμολογίας'!$C$4:C276,'Παρακολούθηση βαθμολογίας'!C276)","v":"0"}]
[null,274,{"$f":"'Παρακολούθηση βαθμολογίας'!C277&COUNTIF('Παρακολούθηση βαθμολογίας'!$C$4:C277,'Παρακολούθηση βαθμολογίας'!C277)","v":"0"}]
[null,275,{"$f":"'Παρακολούθηση βαθμολογίας'!C278&COUNTIF('Παρακολούθηση βαθμολογίας'!$C$4:C278,'Παρακολούθηση βαθμολογίας'!C278)","v":"0"}]
[null,276,{"$f":"'Παρακολούθηση βαθμολογίας'!C279&COUNTIF('Παρακολούθηση βαθμολογίας'!$C$4:C279,'Παρακολούθηση βαθμολογίας'!C279)","v":"0"}]
[null,277,{"$f":"'Παρακολούθηση βαθμολογίας'!C280&COUNTIF('Παρακολούθηση βαθμολογίας'!$C$4:C280,'Παρακολούθηση βαθμολογίας'!C280)","v":"0"}]
[null,278,{"$f":"'Παρακολούθηση βαθμολογίας'!C281&COUNTIF('Παρακολούθηση βαθμολογίας'!$C$4:C281,'Παρακολούθηση βαθμολογίας'!C281)","v":"0"}]
[null,279,{"$f":"'Παρακολούθηση βαθμολογίας'!C282&COUNTIF('Παρακολούθηση βαθμολογίας'!$C$4:C282,'Παρακολούθηση βαθμολογίας'!C282)","v":"0"}]
[null,280,{"$f":"'Παρακολούθηση βαθμολογίας'!C283&COUNTIF('Παρακολούθηση βαθμολογίας'!$C$4:C283,'Παρακολούθηση βαθμολογίας'!C283)","v":"0"}]
[null,281,{"$f":"'Παρακολούθηση βαθμολογίας'!C284&COUNTIF('Παρακολούθηση βαθμολογίας'!$C$4:C284,'Παρακολούθηση βαθμολογίας'!C284)","v":"0"}]
[null,282,{"$f":"'Παρακολούθηση βαθμολογίας'!C285&COUNTIF('Παρακολούθηση βαθμολογίας'!$C$4:C285,'Παρακολούθηση βαθμολογίας'!C285)","v":"0"}]
[null,283,{"$f":"'Παρακολούθηση βαθμολογίας'!C286&COUNTIF('Παρακολούθηση βαθμολογίας'!$C$4:C286,'Παρακολούθηση βαθμολογίας'!C286)","v":"0"}]
[null,284,{"$f":"'Παρακολούθηση βαθμολογίας'!C287&COUNTIF('Παρακολούθηση βαθμολογίας'!$C$4:C287,'Παρακολούθηση βαθμολογίας'!C287)","v":"0"}]
[null,285,{"$f":"'Παρακολούθηση βαθμολογίας'!C288&COUNTIF('Παρακολούθηση βαθμολογίας'!$C$4:C288,'Παρακολούθηση βαθμολογίας'!C288)","v":"0"}]
[null,286,{"$f":"'Παρακολούθηση βαθμολογίας'!C289&COUNTIF('Παρακολούθηση βαθμολογίας'!$C$4:C289,'Παρακολούθηση βαθμολογίας'!C289)","v":"0"}]
[null,287,{"$f":"'Παρακολούθηση βαθμολογίας'!C290&COUNTIF('Παρακολούθηση βαθμολογίας'!$C$4:C290,'Παρακολούθηση βαθμολογίας'!C290)","v":"0"}]
[null,288,{"$f":"'Παρακολούθηση βαθμολογίας'!C291&COUNTIF('Παρακολούθηση βαθμολογίας'!$C$4:C291,'Παρακολούθηση βαθμολογίας'!C291)","v":"0"}]
[null,289,{"$f":"'Παρακολούθηση βαθμολογίας'!C292&COUNTIF('Παρακολούθηση βαθμολογίας'!$C$4:C292,'Παρακολούθηση βαθμολογίας'!C292)","v":"0"}]
[null,290,{"$f":"'Παρακολούθηση βαθμολογίας'!C293&COUNTIF('Παρακολούθηση βαθμολογίας'!$C$4:C293,'Παρακολούθηση βαθμολογίας'!C293)","v":"0"}]
[null,291,{"$f":"'Παρακολούθηση βαθμολογίας'!C294&COUNTIF('Παρακολούθηση βαθμολογίας'!$C$4:C294,'Παρακολούθηση βαθμολογίας'!C294)","v":"0"}]
[null,292,{"$f":"'Παρακολούθηση βαθμολογίας'!C295&COUNTIF('Παρακολούθηση βαθμολογίας'!$C$4:C295,'Παρακολούθηση βαθμολογίας'!C295)","v":"0"}]
[null,293,{"$f":"'Παρακολούθηση βαθμολογίας'!C296&COUNTIF('Παρακολούθηση βαθμολογίας'!$C$4:C296,'Παρακολούθηση βαθμολογίας'!C296)","v":"0"}]
[null,294,{"$f":"'Παρακολούθηση βαθμολογίας'!C297&COUNTIF('Παρακολούθηση βαθμολογίας'!$C$4:C297,'Παρακολούθηση βαθμολογίας'!C297)","v":"0"}]
[null,295,{"$f":"'Παρακολούθηση βαθμολογίας'!C298&COUNTIF('Παρακολούθηση βαθμολογίας'!$C$4:C298,'Παρακολούθηση βαθμολογίας'!C298)","v":"0"}]
[null,296,{"$f":"'Παρακολούθηση βαθμολογίας'!C299&COUNTIF('Παρακολούθηση βαθμολογίας'!$C$4:C299,'Παρακολούθηση βαθμολογίας'!C299)","v":"0"}]
[null,297,{"$f":"'Παρακολούθηση βαθμολογίας'!C300&COUNTIF('Παρακολούθηση βαθμολογίας'!$C$4:C300,'Παρακολούθηση βαθμολογίας'!C300)","v":"0"}]
[null,298,{"$f":"'Παρακολούθηση βαθμολογίας'!C301&COUNTIF('Παρακολούθηση βαθμολογίας'!$C$4:C301,'Παρακολούθηση βαθμολογίας'!C301)","v":"0"}]
[null,299,{"$f":"'Παρακολούθηση βαθμολογίας'!C302&COUNTIF('Παρακολούθηση βαθμολογίας'!$C$4:C302,'Παρακολούθηση βαθμολογίας'!C302)","v":"0"}]
[null,300,{"$f":"'Παρακολούθηση βαθμολογίας'!C303&COUNTIF('Παρακολούθηση βαθμολογίας'!$C$4:C303,'Παρακολούθηση βαθμολογίας'!C303)","v":"0"}]
[null,301,{"$f":"'Παρακολούθηση βαθμολογίας'!C304&COUNTIF('Παρακολούθηση βαθμολογίας'!$C$4:C304,'Παρακολούθηση βαθμολογίας'!C304)","v":"0"}]
[null,302,{"$f":"'Παρακολούθηση βαθμολογίας'!C305&COUNTIF('Παρακολούθηση βαθμολογίας'!$C$4:C305,'Παρακολούθηση βαθμολογίας'!C305)","v":"0"}]
[null,303,{"$f":"'Παρακολούθηση βαθμολογίας'!C306&COUNTIF('Παρακολούθηση βαθμολογίας'!$C$4:C306,'Παρακολούθηση βαθμολογίας'!C306)","v":"0"}]
[null,304,{"$f":"'Παρακολούθηση βαθμολογίας'!C307&COUNTIF('Παρακολούθηση βαθμολογίας'!$C$4:C307,'Παρακολούθηση βαθμολογίας'!C307)","v":"0"}]
[null,305,{"$f":"'Παρακολούθηση βαθμολογίας'!C308&COUNTIF('Παρακολούθηση βαθμολογίας'!$C$4:C308,'Παρακολούθηση βαθμολογίας'!C308)","v":"0"}]
[null,306,{"$f":"'Παρακολούθηση βαθμολογίας'!C309&COUNTIF('Παρακολούθηση βαθμολογίας'!$C$4:C309,'Παρακολούθηση βαθμολογίας'!C309)","v":"0"}]
[null,307,{"$f":"'Παρακολούθηση βαθμολογίας'!C310&COUNTIF('Παρακολούθηση βαθμολογίας'!$C$4:C310,'Παρακολούθηση βαθμολογίας'!C310)","v":"0"}]
[null,308,{"$f":"'Παρακολούθηση βαθμολογίας'!C311&COUNTIF('Παρακολούθηση βαθμολογίας'!$C$4:C311,'Παρακολούθηση βαθμολογίας'!C311)","v":"0"}]
[null,309,{"$f":"'Παρακολούθηση βαθμολογίας'!C312&COUNTIF('Παρακολούθηση βαθμολογίας'!$C$4:C312,'Παρακολούθηση βαθμολογίας'!C312)","v":"0"}]
[null,310,{"$f":"'Παρακολούθηση βαθμολογίας'!C313&COUNTIF('Παρακολούθηση βαθμολογίας'!$C$4:C313,'Παρακολούθηση βαθμολογίας'!C313)","v":"0"}]
[null,311,{"$f":"'Παρακολούθηση βαθμολογίας'!C314&COUNTIF('Παρακολούθηση βαθμολογίας'!$C$4:C314,'Παρακολούθηση βαθμολογίας'!C314)","v":"0"}]
[null,312,{"$f":"'Παρακολούθηση βαθμολογίας'!C315&COUNTIF('Παρακολούθηση βαθμολογίας'!$C$4:C315,'Παρακολούθηση βαθμολογίας'!C315)","v":"0"}]
[null,313,{"$f":"'Παρακολούθηση βαθμολογίας'!C316&COUNTIF('Παρακολούθηση βαθμολογίας'!$C$4:C316,'Παρακολούθηση βαθμολογίας'!C316)","v":"0"}]
[null,314,{"$f":"'Παρακολούθηση βαθμολογίας'!C317&COUNTIF('Παρακολούθηση βαθμολογίας'!$C$4:C317,'Παρακολούθηση βαθμολογίας'!C317)","v":"0"}]
[null,315,{"$f":"'Παρακολούθηση βαθμολογίας'!C318&COUNTIF('Παρακολούθηση βαθμολογίας'!$C$4:C318,'Παρακολούθηση βαθμολογίας'!C318)","v":"0"}]
[null,316,{"$f":"'Παρακολούθηση βαθμολογίας'!C319&COUNTIF('Παρακολούθηση βαθμολογίας'!$C$4:C319,'Παρακολούθηση βαθμολογίας'!C319)","v":"0"}]
[null,317,{"$f":"'Παρακολούθηση βαθμολογίας'!C320&COUNTIF('Παρακολούθηση βαθμολογίας'!$C$4:C320,'Παρακολούθηση βαθμολογίας'!C320)","v":"0"}]
[null,318,{"$f":"'Παρακολούθηση βαθμολογίας'!C321&COUNTIF('Παρακολούθηση βαθμολογίας'!$C$4:C321,'Παρακολούθηση βαθμολογίας'!C321)","v":"0"}]
[null,319,{"$f":"'Παρακολούθηση βαθμολογίας'!C322&COUNTIF('Παρακολούθηση βαθμολογίας'!$C$4:C322,'Παρακολούθηση βαθμολογίας'!C322)","v":"0"}]
[null,320,{"$f":"'Παρακολούθηση βαθμολογίας'!C323&COUNTIF('Παρακολούθηση βαθμολογίας'!$C$4:C323,'Παρακολούθηση βαθμολογίας'!C323)","v":"0"}]
[null,321,{"$f":"'Παρακολούθηση βαθμολογίας'!C324&COUNTIF('Παρακολούθηση βαθμολογίας'!$C$4:C324,'Παρακολούθηση βαθμολογίας'!C324)","v":"0"}]
[null,322,{"$f":"'Παρακολούθηση βαθμολογίας'!C325&COUNTIF('Παρακολούθηση βαθμολογίας'!$C$4:C325,'Παρακολούθηση βαθμολογίας'!C325)","v":"0"}]
[null,323,{"$f":"'Παρακολούθηση βαθμολογίας'!C326&COUNTIF('Παρακολούθηση βαθμολογίας'!$C$4:C326,'Παρακολούθηση βαθμολογίας'!C326)","v":"0"}]
[null,324,{"$f":"'Παρακολούθηση βαθμολογίας'!C327&COUNTIF('Παρακολούθηση βαθμολογίας'!$C$4:C327,'Παρακολούθηση βαθμολογίας'!C327)","v":"0"}]
[null,325,{"$f":"'Παρακολούθηση βαθμολογίας'!C328&COUNTIF('Παρακολούθηση βαθμολογίας'!$C$4:C328,'Παρακολούθηση βαθμολογίας'!C328)","v":"0"}]
[null,326,{"$f":"'Παρακολούθηση βαθμολογίας'!C329&COUNTIF('Παρακολούθηση βαθμολογίας'!$C$4:C329,'Παρακολούθηση βαθμολογίας'!C329)","v":"0"}]
[null,327,{"$f":"'Παρακολούθηση βαθμολογίας'!C330&COUNTIF('Παρακολούθηση βαθμολογίας'!$C$4:C330,'Παρακολούθηση βαθμολογίας'!C330)","v":"0"}]
[null,328,{"$f":"'Παρακολούθηση βαθμολογίας'!C331&COUNTIF('Παρακολούθηση βαθμολογίας'!$C$4:C331,'Παρακολούθηση βαθμολογίας'!C331)","v":"0"}]
[null,329,{"$f":"'Παρακολούθηση βαθμολογίας'!C332&COUNTIF('Παρακολούθηση βαθμολογίας'!$C$4:C332,'Παρακολούθηση βαθμολογίας'!C332)","v":"0"}]
[null,330,{"$f":"'Παρακολούθηση βαθμολογίας'!C333&COUNTIF('Παρακολούθηση βαθμολογίας'!$C$4:C333,'Παρακολούθηση βαθμολογίας'!C333)","v":"0"}]
[null,331,{"$f":"'Παρακολούθηση βαθμολογίας'!C334&COUNTIF('Παρακολούθηση βαθμολογίας'!$C$4:C334,'Παρακολούθηση βαθμολογίας'!C334)","v":"0"}]
[null,332,{"$f":"'Παρακολούθηση βαθμολογίας'!C335&COUNTIF('Παρακολούθηση βαθμολογίας'!$C$4:C335,'Παρακολούθηση βαθμολογίας'!C335)","v":"0"}]
[null,333,{"$f":"'Παρακολούθηση βαθμολογίας'!C336&COUNTIF('Παρακολούθηση βαθμολογίας'!$C$4:C336,'Παρακολούθηση βαθμολογίας'!C336)","v":"0"}]
[null,334,{"$f":"'Παρακολούθηση βαθμολογίας'!C337&COUNTIF('Παρακολούθηση βαθμολογίας'!$C$4:C337,'Παρακολούθηση βαθμολογίας'!C337)","v":"0"}]
[null,335,{"$f":"'Παρακολούθηση βαθμολογίας'!C338&COUNTIF('Παρακολούθηση βαθμολογίας'!$C$4:C338,'Παρακολούθηση βαθμολογίας'!C338)","v":"0"}]
[null,336,{"$f":"'Παρακολούθηση βαθμολογίας'!C339&COUNTIF('Παρακολούθηση βαθμολογίας'!$C$4:C339,'Παρακολούθηση βαθμολογίας'!C339)","v":"0"}]
[null,337,{"$f":"'Παρακολούθηση βαθμολογίας'!C340&COUNTIF('Παρακολούθηση βαθμολογίας'!$C$4:C340,'Παρακολούθηση βαθμολογίας'!C340)","v":"0"}]
[null,338,{"$f":"'Παρακολούθηση βαθμολογίας'!C341&COUNTIF('Παρακολούθηση βαθμολογίας'!$C$4:C341,'Παρακολούθηση βαθμολογίας'!C341)","v":"0"}]
[null,339,{"$f":"'Παρακολούθηση βαθμολογίας'!C342&COUNTIF('Παρακολούθηση βαθμολογίας'!$C$4:C342,'Παρακολούθηση βαθμολογίας'!C342)","v":"0"}]
[null,340,{"$f":"'Παρακολούθηση βαθμολογίας'!C343&COUNTIF('Παρακολούθηση βαθμολογίας'!$C$4:C343,'Παρακολούθηση βαθμολογίας'!C343)","v":"0"}]
[null,341,{"$f":"'Παρακολούθηση βαθμολογίας'!C344&COUNTIF('Παρακολούθηση βαθμολογίας'!$C$4:C344,'Παρακολούθηση βαθμολογίας'!C344)","v":"0"}]
[null,342,{"$f":"'Παρακολούθηση βαθμολογίας'!C345&COUNTIF('Παρακολούθηση βαθμολογίας'!$C$4:C345,'Παρακολούθηση βαθμολογίας'!C345)","v":"0"}]
[null,343,{"$f":"'Παρακολούθηση βαθμολογίας'!C346&COUNTIF('Παρακολούθηση βαθμολογίας'!$C$4:C346,'Παρακολούθηση βαθμολογίας'!C346)","v":"0"}]
[null,344,{"$f":"'Παρακολούθηση βαθμολογίας'!C347&COUNTIF('Παρακολούθηση βαθμολογίας'!$C$4:C347,'Παρακολούθηση βαθμολογίας'!C347)","v":"0"}]
[null,345,{"$f":"'Παρακολούθηση βαθμολογίας'!C348&COUNTIF('Παρακολούθηση βαθμολογίας'!$C$4:C348,'Παρακολούθηση βαθμολογίας'!C348)","v":"0"}]
[null,346,{"$f":"'Παρακολούθηση βαθμολογίας'!C349&COUNTIF('Παρακολούθηση βαθμολογίας'!$C$4:C349,'Παρακολούθηση βαθμολογίας'!C349)","v":"0"}]
[null,347,{"$f":"'Παρακολούθηση βαθμολογίας'!C350&COUNTIF('Παρακολούθηση βαθμολογίας'!$C$4:C350,'Παρακολούθηση βαθμολογίας'!C350)","v":"0"}]
[null,348,{"$f":"'Παρακολούθηση βαθμολογίας'!C351&COUNTIF('Παρακολούθηση βαθμολογίας'!$C$4:C351,'Παρακολούθηση βαθμολογίας'!C351)","v":"0"}]
[null,349,{"$f":"'Παρακολούθηση βαθμολογίας'!C352&COUNTIF('Παρακολούθηση βαθμολογίας'!$C$4:C352,'Παρακολούθηση βαθμολογίας'!C352)","v":"0"}]
[null,350,{"$f":"'Παρακολούθηση βαθμολογίας'!C353&COUNTIF('Παρακολούθηση βαθμολογίας'!$C$4:C353,'Παρακολούθηση βαθμολογίας'!C353)","v":"0"}]
[null,351,{"$f":"'Παρακολούθηση βαθμολογίας'!C354&COUNTIF('Παρακολούθηση βαθμολογίας'!$C$4:C354,'Παρακολούθηση βαθμολογίας'!C354)","v":"0"}]
[null,352,{"$f":"'Παρακολούθηση βαθμολογίας'!C355&COUNTIF('Παρακολούθηση βαθμολογίας'!$C$4:C355,'Παρακολούθηση βαθμολογίας'!C355)","v":"0"}]
[null,353,{"$f":"'Παρακολούθηση βαθμολογίας'!C356&COUNTIF('Παρακολούθηση βαθμολογίας'!$C$4:C356,'Παρακολούθηση βαθμολογίας'!C356)","v":"0"}]
[null,354,{"$f":"'Παρακολούθηση βαθμολογίας'!C357&COUNTIF('Παρακολούθηση βαθμολογίας'!$C$4:C357,'Παρακολούθηση βαθμολογίας'!C357)","v":"0"}]
[null,355,{"$f":"'Παρακολούθηση βαθμολογίας'!C358&COUNTIF('Παρακολούθηση βαθμολογίας'!$C$4:C358,'Παρακολούθηση βαθμολογίας'!C358)","v":"0"}]
[null,356,{"$f":"'Παρακολούθηση βαθμολογίας'!C359&COUNTIF('Παρακολούθηση βαθμολογίας'!$C$4:C359,'Παρακολούθηση βαθμολογίας'!C359)","v":"0"}]
[null,357,{"$f":"'Παρακολούθηση βαθμολογίας'!C360&COUNTIF('Παρακολούθηση βαθμολογίας'!$C$4:C360,'Παρακολούθηση βαθμολογίας'!C360)","v":"0"}]
[null,358,{"$f":"'Παρακολούθηση βαθμολογίας'!C361&COUNTIF('Παρακολούθηση βαθμολογίας'!$C$4:C361,'Παρακολούθηση βαθμολογίας'!C361)","v":"0"}]
[null,359,{"$f":"'Παρακολούθηση βαθμολογίας'!C362&COUNTIF('Παρακολούθηση βαθμολογίας'!$C$4:C362,'Παρακολούθηση βαθμολογίας'!C362)","v":"0"}]
[null,360,{"$f":"'Παρακολούθηση βαθμολογίας'!C363&COUNTIF('Παρακολούθηση βαθμολογίας'!$C$4:C363,'Παρακολούθηση βαθμολογίας'!C363)","v":"0"}]
[null,361,{"$f":"'Παρακολούθηση βαθμολογίας'!C364&COUNTIF('Παρακολούθηση βαθμολογίας'!$C$4:C364,'Παρακολούθηση βαθμολογίας'!C364)","v":"0"}]
[null,362,{"$f":"'Παρακολούθηση βαθμολογίας'!C365&COUNTIF('Παρακολούθηση βαθμολογίας'!$C$4:C365,'Παρακολούθηση βαθμολογίας'!C365)","v":"0"}]
[null,363,{"$f":"'Παρακολούθηση βαθμολογίας'!C366&COUNTIF('Παρακολούθηση βαθμολογίας'!$C$4:C366,'Παρακολούθηση βαθμολογίας'!C366)","v":"0"}]
[null,364,{"$f":"'Παρακολούθηση βαθμολογίας'!C367&COUNTIF('Παρακολούθηση βαθμολογίας'!$C$4:C367,'Παρακολούθηση βαθμολογίας'!C367)","v":"0"}]
[null,365,{"$f":"'Παρακολούθηση βαθμολογίας'!C368&COUNTIF('Παρακολούθηση βαθμολογίας'!$C$4:C368,'Παρακολούθηση βαθμολογίας'!C368)","v":"0"}]
[null,366,{"$f":"'Παρακολούθηση βαθμολογίας'!C369&COUNTIF('Παρακολούθηση βαθμολογίας'!$C$4:C369,'Παρακολούθηση βαθμολογίας'!C369)","v":"0"}]
[null,367,{"$f":"'Παρακολούθηση βαθμολογίας'!C370&COUNTIF('Παρακολούθηση βαθμολογίας'!$C$4:C370,'Παρακολούθηση βαθμολογίας'!C370)","v":"0"}]
[null,368,{"$f":"'Παρακολούθηση βαθμολογίας'!C371&COUNTIF('Παρακολούθηση βαθμολογίας'!$C$4:C371,'Παρακολούθηση βαθμολογίας'!C371)","v":"0"}]
[null,369,{"$f":"'Παρακολούθηση βαθμολογίας'!C372&COUNTIF('Παρακολούθηση βαθμολογίας'!$C$4:C372,'Παρακολούθηση βαθμολογίας'!C372)","v":"0"}]
[null,370,{"$f":"'Παρακολούθηση βαθμολογίας'!C373&COUNTIF('Παρακολούθηση βαθμολογίας'!$C$4:C373,'Παρακολούθηση βαθμολογίας'!C373)","v":"0"}]
[null,371,{"$f":"'Παρακολούθηση βαθμολογίας'!C374&COUNTIF('Παρακολούθηση βαθμολογίας'!$C$4:C374,'Παρακολούθηση βαθμολογίας'!C374)","v":"0"}]
[null,372,{"$f":"'Παρακολούθηση βαθμολογίας'!C375&COUNTIF('Παρακολούθηση βαθμολογίας'!$C$4:C375,'Παρακολούθηση βαθμολογίας'!C375)","v":"0"}]
[null,373,{"$f":"'Παρακολούθηση βαθμολογίας'!C376&COUNTIF('Παρακολούθηση βαθμολογίας'!$C$4:C376,'Παρακολούθηση βαθμολογίας'!C376)","v":"0"}]
[null,374,{"$f":"'Παρακολούθηση βαθμολογίας'!C377&COUNTIF('Παρακολούθηση βαθμολογίας'!$C$4:C377,'Παρακολούθηση βαθμολογίας'!C377)","v":"0"}]
[null,375,{"$f":"'Παρακολούθηση βαθμολογίας'!C378&COUNTIF('Παρακολούθηση βαθμολογίας'!$C$4:C378,'Παρακολούθηση βαθμολογίας'!C378)","v":"0"}]
[null,376,{"$f":"'Παρακολούθηση βαθμολογίας'!C379&COUNTIF('Παρακολούθηση βαθμολογίας'!$C$4:C379,'Παρακολούθηση βαθμολογίας'!C379)","v":"0"}]
[null,377,{"$f":"'Παρακολούθηση βαθμολογίας'!C380&COUNTIF('Παρακολούθηση βαθμολογίας'!$C$4:C380,'Παρακολούθηση βαθμολογίας'!C380)","v":"0"}]
[null,378,{"$f":"'Παρακολούθηση βαθμολογίας'!C381&COUNTIF('Παρακολούθηση βαθμολογίας'!$C$4:C381,'Παρακολούθηση βαθμολογίας'!C381)","v":"0"}]
[null,379,{"$f":"'Παρακολούθηση βαθμολογίας'!C382&COUNTIF('Παρακολούθηση βαθμολογίας'!$C$4:C382,'Παρακολούθηση βαθμολογίας'!C382)","v":"0"}]
[null,380,{"$f":"'Παρακολούθηση βαθμολογίας'!C383&COUNTIF('Παρακολούθηση βαθμολογίας'!$C$4:C383,'Παρακολούθηση βαθμολογίας'!C383)","v":"0"}]
[null,381,{"$f":"'Παρακολούθηση βαθμολογίας'!C384&COUNTIF('Παρακολούθηση βαθμολογίας'!$C$4:C384,'Παρακολούθηση βαθμολογίας'!C384)","v":"0"}]
[null,382,{"$f":"'Παρακολούθηση βαθμολογίας'!C385&COUNTIF('Παρακολούθηση βαθμολογίας'!$C$4:C385,'Παρακολούθηση βαθμολογίας'!C385)","v":"0"}]
[null,383,{"$f":"'Παρακολούθηση βαθμολογίας'!C386&COUNTIF('Παρακολούθηση βαθμολογίας'!$C$4:C386,'Παρακολούθηση βαθμολογίας'!C386)","v":"0"}]
[null,384,{"$f":"'Παρακολούθηση βαθμολογίας'!C387&COUNTIF('Παρακολούθηση βαθμολογίας'!$C$4:C387,'Παρακολούθηση βαθμολογίας'!C387)","v":"0"}]
[null,385,{"$f":"'Παρακολούθηση βαθμολογίας'!C388&COUNTIF('Παρακολούθηση βαθμολογίας'!$C$4:C388,'Παρακολούθηση βαθμολογίας'!C388)","v":"0"}]
[null,386,{"$f":"'Παρακολούθηση βαθμολογίας'!C389&COUNTIF('Παρακολούθηση βαθμολογίας'!$C$4:C389,'Παρακολούθηση βαθμολογίας'!C389)","v":"0"}]
[null,387,{"$f":"'Παρακολούθηση βαθμολογίας'!C390&COUNTIF('Παρακολούθηση βαθμολογίας'!$C$4:C390,'Παρακολούθηση βαθμολογίας'!C390)","v":"0"}]
[null,388,{"$f":"'Παρακολούθηση βαθμολογίας'!C391&COUNTIF('Παρακολούθηση βαθμολογίας'!$C$4:C391,'Παρακολούθηση βαθμολογίας'!C391)","v":"0"}]
[null,389,{"$f":"'Παρακολούθηση βαθμολογίας'!C392&COUNTIF('Παρακολούθηση βαθμολογίας'!$C$4:C392,'Παρακολούθηση βαθμολογίας'!C392)","v":"0"}]
[null,390,{"$f":"'Παρακολούθηση βαθμολογίας'!C393&COUNTIF('Παρακολούθηση βαθμολογίας'!$C$4:C393,'Παρακολούθηση βαθμολογίας'!C393)","v":"0"}]
[null,391,{"$f":"'Παρακολούθηση βαθμολογίας'!C394&COUNTIF('Παρακολούθηση βαθμολογίας'!$C$4:C394,'Παρακολούθηση βαθμολογίας'!C394)","v":"0"}]
[null,392,{"$f":"'Παρακολούθηση βαθμολογίας'!C395&COUNTIF('Παρακολούθηση βαθμολογίας'!$C$4:C395,'Παρακολούθηση βαθμολογίας'!C395)","v":"0"}]
[null,393,{"$f":"'Παρακολούθηση βαθμολογίας'!C396&COUNTIF('Παρακολούθηση βαθμολογίας'!$C$4:C396,'Παρακολούθηση βαθμολογίας'!C396)","v":"0"}]
[null,394,{"$f":"'Παρακολούθηση βαθμολογίας'!C397&COUNTIF('Παρακολούθηση βαθμολογίας'!$C$4:C397,'Παρακολούθηση βαθμολογίας'!C397)","v":"0"}]
[null,395,{"$f":"'Παρακολούθηση βαθμολογίας'!C398&COUNTIF('Παρακολούθηση βαθμολογίας'!$C$4:C398,'Παρακολούθηση βαθμολογίας'!C398)","v":"0"}]
[null,396,{"$f":"'Παρακολούθηση βαθμολογίας'!C399&COUNTIF('Παρακολούθηση βαθμολογίας'!$C$4:C399,'Παρακολούθηση βαθμολογίας'!C399)","v":"0"}]
[null,397,{"$f":"'Παρακολούθηση βαθμολογίας'!C400&COUNTIF('Παρακολούθηση βαθμολογίας'!$C$4:C400,'Παρακολούθηση βαθμολογίας'!C400)","v":"0"}]
[null,398,{"$f":"'Παρακολούθηση βαθμολογίας'!C401&COUNTIF('Παρακολούθηση βαθμολογίας'!$C$4:C401,'Παρακολούθηση βαθμολογίας'!C401)","v":"0"}]
[null,399,{"$f":"'Παρακολούθηση βαθμολογίας'!C402&COUNTIF('Παρακολούθηση βαθμολογίας'!$C$4:C402,'Παρακολούθηση βαθμολογίας'!C402)","v":"0"}]
[null,400,{"$f":"'Παρακολούθηση βαθμολογίας'!C403&COUNTIF('Παρακολούθηση βαθμολογίας'!$C$4:C403,'Παρακολούθηση βαθμολογίας'!C403)","v":"0"}]
[null,401,{"$f":"'Παρακολούθηση βαθμολογίας'!C404&COUNTIF('Παρακολούθηση βαθμολογίας'!$C$4:C404,'Παρακολούθηση βαθμολογίας'!C404)","v":"0"}]
[null,402,{"$f":"'Παρακολούθηση βαθμολογίας'!C405&COUNTIF('Παρακολούθηση βαθμολογίας'!$C$4:C405,'Παρακολούθηση βαθμολογίας'!C405)","v":"0"}]
[null,403,{"$f":"'Παρακολούθηση βαθμολογίας'!C406&COUNTIF('Παρακολούθηση βαθμολογίας'!$C$4:C406,'Παρακολούθηση βαθμολογίας'!C406)","v":"0"}]
[null,404,{"$f":"'Παρακολούθηση βαθμολογίας'!C407&COUNTIF('Παρακολούθηση βαθμολογίας'!$C$4:C407,'Παρακολούθηση βαθμολογίας'!C407)","v":"0"}]
[null,405,{"$f":"'Παρακολούθηση βαθμολογίας'!C408&COUNTIF('Παρακολούθηση βαθμολογίας'!$C$4:C408,'Παρακολούθηση βαθμολογίας'!C408)","v":"0"}]
[null,406,{"$f":"'Παρακολούθηση βαθμολογίας'!C409&COUNTIF('Παρακολούθηση βαθμολογίας'!$C$4:C409,'Παρακολούθηση βαθμολογίας'!C409)","v":"0"}]
[null,407,{"$f":"'Παρακολούθηση βαθμολογίας'!C410&COUNTIF('Παρακολούθηση βαθμολογίας'!$C$4:C410,'Παρακολούθηση βαθμολογίας'!C410)","v":"0"}]
[null,408,{"$f":"'Παρακολούθηση βαθμολογίας'!C411&COUNTIF('Παρακολούθηση βαθμολογίας'!$C$4:C411,'Παρακολούθηση βαθμολογίας'!C411)","v":"0"}]
[null,409,{"$f":"'Παρακολούθηση βαθμολογίας'!C412&COUNTIF('Παρακολούθηση βαθμολογίας'!$C$4:C412,'Παρακολούθηση βαθμολογίας'!C412)","v":"0"}]
[null,410,{"$f":"'Παρακολούθηση βαθμολογίας'!C413&COUNTIF('Παρακολούθηση βαθμολογίας'!$C$4:C413,'Παρακολούθηση βαθμολογίας'!C413)","v":"0"}]
[null,411,{"$f":"'Παρακολούθηση βαθμολογίας'!C414&COUNTIF('Παρακολούθηση βαθμολογίας'!$C$4:C414,'Παρακολούθηση βαθμολογίας'!C414)","v":"0"}]
[null,412,{"$f":"'Παρακολούθηση βαθμολογίας'!C415&COUNTIF('Παρακολούθηση βαθμολογίας'!$C$4:C415,'Παρακολούθηση βαθμολογίας'!C415)","v":"0"}]
[null,413,{"$f":"'Παρακολούθηση βαθμολογίας'!C416&COUNTIF('Παρακολούθηση βαθμολογίας'!$C$4:C416,'Παρακολούθηση βαθμολογίας'!C416)","v":"0"}]
[null,414,{"$f":"'Παρακολούθηση βαθμολογίας'!C417&COUNTIF('Παρακολούθηση βαθμολογίας'!$C$4:C417,'Παρακολούθηση βαθμολογίας'!C417)","v":"0"}]
[null,415,{"$f":"'Παρακολούθηση βαθμολογίας'!C418&COUNTIF('Παρακολούθηση βαθμολογίας'!$C$4:C418,'Παρακολούθηση βαθμολογίας'!C418)","v":"0"}]
[null,416,{"$f":"'Παρακολούθηση βαθμολογίας'!C419&COUNTIF('Παρακολούθηση βαθμολογίας'!$C$4:C419,'Παρακολούθηση βαθμολογίας'!C419)","v":"0"}]
[null,417,{"$f":"'Παρακολούθηση βαθμολογίας'!C420&COUNTIF('Παρακολούθηση βαθμολογίας'!$C$4:C420,'Παρακολούθηση βαθμολογίας'!C420)","v":"0"}]
[null,418,{"$f":"'Παρακολούθηση βαθμολογίας'!C421&COUNTIF('Παρακολούθηση βαθμολογίας'!$C$4:C421,'Παρακολούθηση βαθμολογίας'!C421)","v":"0"}]
[null,419,{"$f":"'Παρακολούθηση βαθμολογίας'!C422&COUNTIF('Παρακολούθηση βαθμολογίας'!$C$4:C422,'Παρακολούθηση βαθμολογίας'!C422)","v":"0"}]
[null,420,{"$f":"'Παρακολούθηση βαθμολογίας'!C423&COUNTIF('Παρακολούθηση βαθμολογίας'!$C$4:C423,'Παρακολούθηση βαθμολογίας'!C423)","v":"0"}]
[null,421,{"$f":"'Παρακολούθηση βαθμολογίας'!C424&COUNTIF('Παρακολούθηση βαθμολογίας'!$C$4:C424,'Παρακολούθηση βαθμολογίας'!C424)","v":"0"}]
[null,422,{"$f":"'Παρακολούθηση βαθμολογίας'!C425&COUNTIF('Παρακολούθηση βαθμολογίας'!$C$4:C425,'Παρακολούθηση βαθμολογίας'!C425)","v":"0"}]
[null,423,{"$f":"'Παρακολούθηση βαθμολογίας'!C426&COUNTIF('Παρακολούθηση βαθμολογίας'!$C$4:C426,'Παρακολούθηση βαθμολογίας'!C426)","v":"0"}]
[null,424,{"$f":"'Παρακολούθηση βαθμολογίας'!C427&COUNTIF('Παρακολούθηση βαθμολογίας'!$C$4:C427,'Παρακολούθηση βαθμολογίας'!C427)","v":"0"}]
[null,425,{"$f":"'Παρακολούθηση βαθμολογίας'!C428&COUNTIF('Παρακολούθηση βαθμολογίας'!$C$4:C428,'Παρακολούθηση βαθμολογίας'!C428)","v":"0"}]
[null,426,{"$f":"'Παρακολούθηση βαθμολογίας'!C429&COUNTIF('Παρακολούθηση βαθμολογίας'!$C$4:C429,'Παρακολούθηση βαθμολογίας'!C429)","v":"0"}]
[null,427,{"$f":"'Παρακολούθηση βαθμολογίας'!C430&COUNTIF('Παρακολούθηση βαθμολογίας'!$C$4:C430,'Παρακολούθηση βαθμολογίας'!C430)","v":"0"}]
[null,428,{"$f":"'Παρακολούθηση βαθμολογίας'!C431&COUNTIF('Παρακολούθηση βαθμολογίας'!$C$4:C431,'Παρακολούθηση βαθμολογίας'!C431)","v":"0"}]
[null,429,{"$f":"'Παρακολούθηση βαθμολογίας'!C432&COUNTIF('Παρακολούθηση βαθμολογίας'!$C$4:C432,'Παρακολούθηση βαθμολογίας'!C432)","v":"0"}]
[null,430,{"$f":"'Παρακολούθηση βαθμολογίας'!C433&COUNTIF('Παρακολούθηση βαθμολογίας'!$C$4:C433,'Παρακολούθηση βαθμολογίας'!C433)","v":"0"}]
[null,431,{"$f":"'Παρακολούθηση βαθμολογίας'!C434&COUNTIF('Παρακολούθηση βαθμολογίας'!$C$4:C434,'Παρακολούθηση βαθμολογίας'!C434)","v":"0"}]
[null,432,{"$f":"'Παρακολούθηση βαθμολογίας'!C435&COUNTIF('Παρακολούθηση βαθμολογίας'!$C$4:C435,'Παρακολούθηση βαθμολογίας'!C435)","v":"0"}]
[null,433,{"$f":"'Παρακολούθηση βαθμολογίας'!C436&COUNTIF('Παρακολούθηση βαθμολογίας'!$C$4:C436,'Παρακολούθηση βαθμολογίας'!C436)","v":"0"}]
[null,434,{"$f":"'Παρακολούθηση βαθμολογίας'!C437&COUNTIF('Παρακολούθηση βαθμολογίας'!$C$4:C437,'Παρακολούθηση βαθμολογίας'!C437)","v":"0"}]
[null,435,{"$f":"'Παρακολούθηση βαθμολογίας'!C438&COUNTIF('Παρακολούθηση βαθμολογίας'!$C$4:C438,'Παρακολούθηση βαθμολογίας'!C438)","v":"0"}]
[null,436,{"$f":"'Παρακολούθηση βαθμολογίας'!C439&COUNTIF('Παρακολούθηση βαθμολογίας'!$C$4:C439,'Παρακολούθηση βαθμολογίας'!C439)","v":"0"}]
[null,437,{"$f":"'Παρακολούθηση βαθμολογίας'!C440&COUNTIF('Παρακολούθηση βαθμολογίας'!$C$4:C440,'Παρακολούθηση βαθμολογίας'!C440)","v":"0"}]
[null,438,{"$f":"'Παρακολούθηση βαθμολογίας'!C441&COUNTIF('Παρακολούθηση βαθμολογίας'!$C$4:C441,'Παρακολούθηση βαθμολογίας'!C441)","v":"0"}]
[null,439,{"$f":"'Παρακολούθηση βαθμολογίας'!C442&COUNTIF('Παρακολούθηση βαθμολογίας'!$C$4:C442,'Παρακολούθηση βαθμολογίας'!C442)","v":"0"}]
[null,440,{"$f":"'Παρακολούθηση βαθμολογίας'!C443&COUNTIF('Παρακολούθηση βαθμολογίας'!$C$4:C443,'Παρακολούθηση βαθμολογίας'!C443)","v":"0"}]
[null,441,{"$f":"'Παρακολούθηση βαθμολογίας'!C444&COUNTIF('Παρακολούθηση βαθμολογίας'!$C$4:C444,'Παρακολούθηση βαθμολογίας'!C444)","v":"0"}]
[null,442,{"$f":"'Παρακολούθηση βαθμολογίας'!C445&COUNTIF('Παρακολούθηση βαθμολογίας'!$C$4:C445,'Παρακολούθηση βαθμολογίας'!C445)","v":"0"}]
[null,443,{"$f":"'Παρακολούθηση βαθμολογίας'!C446&COUNTIF('Παρακολούθηση βαθμολογίας'!$C$4:C446,'Παρακολούθηση βαθμολογίας'!C446)","v":"0"}]
[null,444,{"$f":"'Παρακολούθηση βαθμολογίας'!C447&COUNTIF('Παρακολούθηση βαθμολογίας'!$C$4:C447,'Παρακολούθηση βαθμολογίας'!C447)","v":"0"}]
[null,445,{"$f":"'Παρακολούθηση βαθμολογίας'!C448&COUNTIF('Παρακολούθηση βαθμολογίας'!$C$4:C448,'Παρακολούθηση βαθμολογίας'!C448)","v":"0"}]
[null,446,{"$f":"'Παρακολούθηση βαθμολογίας'!C449&COUNTIF('Παρακολούθηση βαθμολογίας'!$C$4:C449,'Παρακολούθηση βαθμολογίας'!C449)","v":"0"}]
[null,447,{"$f":"'Παρακολούθηση βαθμολογίας'!C450&COUNTIF('Παρακολούθηση βαθμολογίας'!$C$4:C450,'Παρακολούθηση βαθμολογίας'!C450)","v":"0"}]
[null,448,{"$f":"'Παρακολούθηση βαθμολογίας'!C451&COUNTIF('Παρακολούθηση βαθμολογίας'!$C$4:C451,'Παρακολούθηση βαθμολογίας'!C451)","v":"0"}]
[null,449,{"$f":"'Παρακολούθηση βαθμολογίας'!C452&COUNTIF('Παρακολούθηση βαθμολογίας'!$C$4:C452,'Παρακολούθηση βαθμολογίας'!C452)","v":"0"}]
[null,450,{"$f":"'Παρακολούθηση βαθμολογίας'!C453&COUNTIF('Παρακολούθηση βαθμολογίας'!$C$4:C453,'Παρακολούθηση βαθμολογίας'!C453)","v":"0"}]
[null,451,{"$f":"'Παρακολούθηση βαθμολογίας'!C454&COUNTIF('Παρακολούθηση βαθμολογίας'!$C$4:C454,'Παρακολούθηση βαθμολογίας'!C454)","v":"0"}]
[null,452,{"$f":"'Παρακολούθηση βαθμολογίας'!C455&COUNTIF('Παρακολούθηση βαθμολογίας'!$C$4:C455,'Παρακολούθηση βαθμολογίας'!C455)","v":"0"}]
[null,453,{"$f":"'Παρακολούθηση βαθμολογίας'!C456&COUNTIF('Παρακολούθηση βαθμολογίας'!$C$4:C456,'Παρακολούθηση βαθμολογίας'!C456)","v":"0"}]
[null,454,{"$f":"'Παρακολούθηση βαθμολογίας'!C457&COUNTIF('Παρακολούθηση βαθμολογίας'!$C$4:C457,'Παρακολούθηση βαθμολογίας'!C457)","v":"0"}]
[null,455,{"$f":"'Παρακολούθηση βαθμολογίας'!C458&COUNTIF('Παρακολούθηση βαθμολογίας'!$C$4:C458,'Παρακολούθηση βαθμολογίας'!C458)","v":"0"}]
[null,456,{"$f":"'Παρακολούθηση βαθμολογίας'!C459&COUNTIF('Παρακολούθηση βαθμολογίας'!$C$4:C459,'Παρακολούθηση βαθμολογίας'!C459)","v":"0"}]
[null,457,{"$f":"'Παρακολούθηση βαθμολογίας'!C460&COUNTIF('Παρακολούθηση βαθμολογίας'!$C$4:C460,'Παρακολούθηση βαθμολογίας'!C460)","v":"0"}]
[null,458,{"$f":"'Παρακολούθηση βαθμολογίας'!C461&COUNTIF('Παρακολούθηση βαθμολογίας'!$C$4:C461,'Παρακολούθηση βαθμολογίας'!C461)","v":"0"}]
[null,459,{"$f":"'Παρακολούθηση βαθμολογίας'!C462&COUNTIF('Παρακολούθηση βαθμολογίας'!$C$4:C462,'Παρακολούθηση βαθμολογίας'!C462)","v":"0"}]
[null,460,{"$f":"'Παρακολούθηση βαθμολογίας'!C463&COUNTIF('Παρακολούθηση βαθμολογίας'!$C$4:C463,'Παρακολούθηση βαθμολογίας'!C463)","v":"0"}]
[null,461,{"$f":"'Παρακολούθηση βαθμολογίας'!C464&COUNTIF('Παρακολούθηση βαθμολογίας'!$C$4:C464,'Παρακολούθηση βαθμολογίας'!C464)","v":"0"}]
[null,462,{"$f":"'Παρακολούθηση βαθμολογίας'!C465&COUNTIF('Παρακολούθηση βαθμολογίας'!$C$4:C465,'Παρακολούθηση βαθμολογίας'!C465)","v":"0"}]
[null,463,{"$f":"'Παρακολούθηση βαθμολογίας'!C466&COUNTIF('Παρακολούθηση βαθμολογίας'!$C$4:C466,'Παρακολούθηση βαθμολογίας'!C466)","v":"0"}]
[null,464,{"$f":"'Παρακολούθηση βαθμολογίας'!C467&COUNTIF('Παρακολούθηση βαθμολογίας'!$C$4:C467,'Παρακολούθηση βαθμολογίας'!C467)","v":"0"}]
[null,465,{"$f":"'Παρακολούθηση βαθμολογίας'!C468&COUNTIF('Παρακολούθηση βαθμολογίας'!$C$4:C468,'Παρακολούθηση βαθμολογίας'!C468)","v":"0"}]
[null,466,{"$f":"'Παρακολούθηση βαθμολογίας'!C469&COUNTIF('Παρακολούθηση βαθμολογίας'!$C$4:C469,'Παρακολούθηση βαθμολογίας'!C469)","v":"0"}]
[null,467,{"$f":"'Παρακολούθηση βαθμολογίας'!C470&COUNTIF('Παρακολούθηση βαθμολογίας'!$C$4:C470,'Παρακολούθηση βαθμολογίας'!C470)","v":"0"}]
[null,468,{"$f":"'Παρακολούθηση βαθμολογίας'!C471&COUNTIF('Παρακολούθηση βαθμολογίας'!$C$4:C471,'Παρακολούθηση βαθμολογίας'!C471)","v":"0"}]
[null,469,{"$f":"'Παρακολούθηση βαθμολογίας'!C472&COUNTIF('Παρακολούθηση βαθμολογίας'!$C$4:C472,'Παρακολούθηση βαθμολογίας'!C472)","v":"0"}]
[null,470,{"$f":"'Παρακολούθηση βαθμολογίας'!C473&COUNTIF('Παρακολούθηση βαθμολογίας'!$C$4:C473,'Παρακολούθηση βαθμολογίας'!C473)","v":"0"}]
[null,471,{"$f":"'Παρακολούθηση βαθμολογίας'!C474&COUNTIF('Παρακολούθηση βαθμολογίας'!$C$4:C474,'Παρακολούθηση βαθμολογίας'!C474)","v":"0"}]
[null,472,{"$f":"'Παρακολούθηση βαθμολογίας'!C475&COUNTIF('Παρακολούθηση βαθμολογίας'!$C$4:C475,'Παρακολούθηση βαθμολογίας'!C475)","v":"0"}]
[null,473,{"$f":"'Παρακολούθηση βαθμολογίας'!C476&COUNTIF('Παρακολούθηση βαθμολογίας'!$C$4:C476,'Παρακολούθηση βαθμολογίας'!C476)","v":"0"}]
[null,474,{"$f":"'Παρακολούθηση βαθμολογίας'!C477&COUNTIF('Παρακολούθηση βαθμολογίας'!$C$4:C477,'Παρακολούθηση βαθμολογίας'!C477)","v":"0"}]
[null,475,{"$f":"'Παρακολούθηση βαθμολογίας'!C478&COUNTIF('Παρακολούθηση βαθμολογίας'!$C$4:C478,'Παρακολούθηση βαθμολογίας'!C478)","v":"0"}]
[null,476,{"$f":"'Παρακολούθηση βαθμολογίας'!C479&COUNTIF('Παρακολούθηση βαθμολογίας'!$C$4:C479,'Παρακολούθηση βαθμολογίας'!C479)","v":"0"}]
[null,477,{"$f":"'Παρακολούθηση βαθμολογίας'!C480&COUNTIF('Παρακολούθηση βαθμολογίας'!$C$4:C480,'Παρακολούθηση βαθμολογίας'!C480)","v":"0"}]
[null,478,{"$f":"'Παρακολούθηση βαθμολογίας'!C481&COUNTIF('Παρακολούθηση βαθμολογίας'!$C$4:C481,'Παρακολούθηση βαθμολογίας'!C481)","v":"0"}]
[null,479,{"$f":"'Παρακολούθηση βαθμολογίας'!C482&COUNTIF('Παρακολούθηση βαθμολογίας'!$C$4:C482,'Παρακολούθηση βαθμολογίας'!C482)","v":"0"}]
[null,480,{"$f":"'Παρακολούθηση βαθμολογίας'!C483&COUNTIF('Παρακολούθηση βαθμολογίας'!$C$4:C483,'Παρακολούθηση βαθμολογίας'!C483)","v":"0"}]
[null,481,{"$f":"'Παρακολούθηση βαθμολογίας'!C484&COUNTIF('Παρακολούθηση βαθμολογίας'!$C$4:C484,'Παρακολούθηση βαθμολογίας'!C484)","v":"0"}]
[null,482,{"$f":"'Παρακολούθηση βαθμολογίας'!C485&COUNTIF('Παρακολούθηση βαθμολογίας'!$C$4:C485,'Παρακολούθηση βαθμολογίας'!C485)","v":"0"}]
[null,483,{"$f":"'Παρακολούθηση βαθμολογίας'!C486&COUNTIF('Παρακολούθηση βαθμολογίας'!$C$4:C486,'Παρακολούθηση βαθμολογίας'!C486)","v":"0"}]
[null,484,{"$f":"'Παρακολούθηση βαθμολογίας'!C487&COUNTIF('Παρακολούθηση βαθμολογίας'!$C$4:C487,'Παρακολούθηση βαθμολογίας'!C487)","v":"0"}]
[null,485,{"$f":"'Παρακολούθηση βαθμολογίας'!C488&COUNTIF('Παρακολούθηση βαθμολογίας'!$C$4:C488,'Παρακολούθηση βαθμολογίας'!C488)","v":"0"}]
[null,486,{"$f":"'Παρακολούθηση βαθμολογίας'!C489&COUNTIF('Παρακολούθηση βαθμολογίας'!$C$4:C489,'Παρακολούθηση βαθμολογίας'!C489)","v":"0"}]
[null,487,{"$f":"'Παρακολούθηση βαθμολογίας'!C490&COUNTIF('Παρακολούθηση βαθμολογίας'!$C$4:C490,'Παρακολούθηση βαθμολογίας'!C490)","v":"0"}]
[null,488,{"$f":"'Παρακολούθηση βαθμολογίας'!C491&COUNTIF('Παρακολούθηση βαθμολογίας'!$C$4:C491,'Παρακολούθηση βαθμολογίας'!C491)","v":"0"}]
[null,489,{"$f":"'Παρακολούθηση βαθμολογίας'!C492&COUNTIF('Παρακολούθηση βαθμολογίας'!$C$4:C492,'Παρακολούθηση βαθμολογίας'!C492)","v":"0"}]
[null,490,{"$f":"'Παρακολούθηση βαθμολογίας'!C493&COUNTIF('Παρακολούθηση βαθμολογίας'!$C$4:C493,'Παρακολούθηση βαθμολογίας'!C493)","v":"0"}]
[null,491,{"$f":"'Παρακολούθηση βαθμολογίας'!C494&COUNTIF('Παρακολούθηση βαθμολογίας'!$C$4:C494,'Παρακολούθηση βαθμολογίας'!C494)","v":"0"}]
[null,492,{"$f":"'Παρακολούθηση βαθμολογίας'!C495&COUNTIF('Παρακολούθηση βαθμολογίας'!$C$4:C495,'Παρακολούθηση βαθμολογίας'!C495)","v":"0"}]
[null,493,{"$f":"'Παρακολούθηση βαθμολογίας'!C496&COUNTIF('Παρακολούθηση βαθμολογίας'!$C$4:C496,'Παρακολούθηση βαθμολογίας'!C496)","v":"0"}]
[null,494,{"$f":"'Παρακολούθηση βαθμολογίας'!C497&COUNTIF('Παρακολούθηση βαθμολογίας'!$C$4:C497,'Παρακολούθηση βαθμολογίας'!C497)","v":"0"}]
[null,495,{"$f":"'Παρακολούθηση βαθμολογίας'!C498&COUNTIF('Παρακολούθηση βαθμολογίας'!$C$4:C498,'Παρακολούθηση βαθμολογίας'!C498)","v":"0"}]
[null,496,{"$f":"'Παρακολούθηση βαθμολογίας'!C499&COUNTIF('Παρακολούθηση βαθμολογίας'!$C$4:C499,'Παρακολούθηση βαθμολογίας'!C499)","v":"0"}]
[null,497,{"$f":"'Παρακολούθηση βαθμολογίας'!C500&COUNTIF('Παρακολούθηση βαθμολογίας'!$C$4:C500,'Παρακολούθηση βαθμολογίας'!C500)","v":"0"}]
[null,498,{"$f":"'Παρακολούθηση βαθμολογίας'!C501&COUNTIF('Παρακολούθηση βαθμολογίας'!$C$4:C501,'Παρακολούθηση βαθμολογίας'!C501)","v":"0"}]
[null,499,{"$f":"'Παρακολούθηση βαθμολογίας'!C502&COUNTIF('Παρακολούθηση βαθμολογίας'!$C$4:C502,'Παρακολούθηση βαθμολογίας'!C502)","v":"0"}]
[null,500,{"$f":"'Παρακολούθηση βαθμολογίας'!C503&COUNTIF('Παρακολούθηση βαθμολογίας'!$C$4:C503,'Παρακολούθηση βαθμολογίας'!C503)","v":"0"}]
[null,501,{"$f":"'Παρακολούθηση βαθμολογίας'!C504&COUNTIF('Παρακολούθηση βαθμολογίας'!$C$4:C504,'Παρακολούθηση βαθμολογίας'!C504)","v":"0"}]
[null,502,{"$f":"'Παρακολούθηση βαθμολογίας'!C505&COUNTIF('Παρακολούθηση βαθμολογίας'!$C$4:C505,'Παρακολούθηση βαθμολογίας'!C505)","v":"0"}]
[null,503,{"$f":"'Παρακολούθηση βαθμολογίας'!C506&COUNTIF('Παρακολούθηση βαθμολογίας'!$C$4:C506,'Παρακολούθηση βαθμολογίας'!C506)","v":"0"}]
[null,504,{"$f":"'Παρακολούθηση βαθμολογίας'!C507&COUNTIF('Παρακολούθηση βαθμολογίας'!$C$4:C507,'Παρακολούθηση βαθμολογίας'!C507)","v":"0"}]
[null,505,{"$f":"'Παρακολούθηση βαθμολογίας'!C508&COUNTIF('Παρακολούθηση βαθμολογίας'!$C$4:C508,'Παρακολούθηση βαθμολογίας'!C508)","v":"0"}]
[null,506,{"$f":"'Παρακολούθηση βαθμολογίας'!C509&COUNTIF('Παρακολούθηση βαθμολογίας'!$C$4:C509,'Παρακολούθηση βαθμολογίας'!C509)","v":"0"}]
[null,507,{"$f":"'Παρακολούθηση βαθμολογίας'!C510&COUNTIF('Παρακολούθηση βαθμολογίας'!$C$4:C510,'Παρακολούθηση βαθμολογίας'!C510)","v":"0"}]
[null,508,{"$f":"'Παρακολούθηση βαθμολογίας'!C511&COUNTIF('Παρακολούθηση βαθμολογίας'!$C$4:C511,'Παρακολούθηση βαθμολογίας'!C511)","v":"0"}]
[null,509,{"$f":"'Παρακολούθηση βαθμολογίας'!C512&COUNTIF('Παρακολούθηση βαθμολογίας'!$C$4:C512,'Παρακολούθηση βαθμολογίας'!C512)","v":"0"}]
[null,510,{"$f":"'Παρακολούθηση βαθμολογίας'!C513&COUNTIF('Παρακολούθηση βαθμολογίας'!$C$4:C513,'Παρακολούθηση βαθμολογίας'!C513)","v":"0"}]
[null,511,{"$f":"'Παρακολούθηση βαθμολογίας'!C514&COUNTIF('Παρακολούθηση βαθμολογίας'!$C$4:C514,'Παρακολούθηση βαθμολογίας'!C514)","v":"0"}]
[null,512,{"$f":"'Παρακολούθηση βαθμολογίας'!C515&COUNTIF('Παρακολούθηση βαθμολογίας'!$C$4:C515,'Παρακολούθηση βαθμολογίας'!C515)","v":"0"}]
[null,513,{"$f":"'Παρακολούθηση βαθμολογίας'!C516&COUNTIF('Παρακολούθηση βαθμολογίας'!$C$4:C516,'Παρακολούθηση βαθμολογίας'!C516)","v":"0"}]
[null,514,{"$f":"'Παρακολούθηση βαθμολογίας'!C517&COUNTIF('Παρακολούθηση βαθμολογίας'!$C$4:C517,'Παρακολούθηση βαθμολογίας'!C517)","v":"0"}]
[null,515,{"$f":"'Παρακολούθηση βαθμολογίας'!C518&COUNTIF('Παρακολούθηση βαθμολογίας'!$C$4:C518,'Παρακολούθηση βαθμολογίας'!C518)","v":"0"}]
[null,516,{"$f":"'Παρακολούθηση βαθμολογίας'!C519&COUNTIF('Παρακολούθηση βαθμολογίας'!$C$4:C519,'Παρακολούθηση βαθμολογίας'!C519)","v":"0"}]
[null,517,{"$f":"'Παρακολούθηση βαθμολογίας'!C520&COUNTIF('Παρακολούθηση βαθμολογίας'!$C$4:C520,'Παρακολούθηση βαθμολογίας'!C520)","v":"0"}]
[null,518,{"$f":"'Παρακολούθηση βαθμολογίας'!C521&COUNTIF('Παρακολούθηση βαθμολογίας'!$C$4:C521,'Παρακολούθηση βαθμολογίας'!C521)","v":"0"}]
[null,519,{"$f":"'Παρακολούθηση βαθμολογίας'!C522&COUNTIF('Παρακολούθηση βαθμολογίας'!$C$4:C522,'Παρακολούθηση βαθμολογίας'!C522)","v":"0"}]
[null,520,{"$f":"'Παρακολούθηση βαθμολογίας'!C523&COUNTIF('Παρακολούθηση βαθμολογίας'!$C$4:C523,'Παρακολούθηση βαθμολογίας'!C523)","v":"0"}]
[null,521,{"$f":"'Παρακολούθηση βαθμολογίας'!C524&COUNTIF('Παρακολούθηση βαθμολογίας'!$C$4:C524,'Παρακολούθηση βαθμολογίας'!C524)","v":"0"}]
[null,522,{"$f":"'Παρακολούθηση βαθμολογίας'!C525&COUNTIF('Παρακολούθηση βαθμολογίας'!$C$4:C525,'Παρακολούθηση βαθμολογίας'!C525)","v":"0"}]
[null,523,{"$f":"'Παρακολούθηση βαθμολογίας'!C526&COUNTIF('Παρακολούθηση βαθμολογίας'!$C$4:C526,'Παρακολούθηση βαθμολογίας'!C526)","v":"0"}]
[null,524,{"$f":"'Παρακολούθηση βαθμολογίας'!C527&COUNTIF('Παρακολούθηση βαθμολογίας'!$C$4:C527,'Παρακολούθηση βαθμολογίας'!C527)","v":"0"}]
[null,525,{"$f":"'Παρακολούθηση βαθμολογίας'!C528&COUNTIF('Παρακολούθηση βαθμολογίας'!$C$4:C528,'Παρακολούθηση βαθμολογίας'!C528)","v":"0"}]
[null,526,{"$f":"'Παρακολούθηση βαθμολογίας'!C529&COUNTIF('Παρακολούθηση βαθμολογίας'!$C$4:C529,'Παρακολούθηση βαθμολογίας'!C529)","v":"0"}]
[null,527,{"$f":"'Παρακολούθηση βαθμολογίας'!C530&COUNTIF('Παρακολούθηση βαθμολογίας'!$C$4:C530,'Παρακολούθηση βαθμολογίας'!C530)","v":"0"}]
[null,528,{"$f":"'Παρακολούθηση βαθμολογίας'!C531&COUNTIF('Παρακολούθηση βαθμολογίας'!$C$4:C531,'Παρακολούθηση βαθμολογίας'!C531)","v":"0"}]
[null,529,{"$f":"'Παρακολούθηση βαθμολογίας'!C532&COUNTIF('Παρακολούθηση βαθμολογίας'!$C$4:C532,'Παρακολούθηση βαθμολογίας'!C532)","v":"0"}]
[null,530,{"$f":"'Παρακολούθηση βαθμολογίας'!C533&COUNTIF('Παρακολούθηση βαθμολογίας'!$C$4:C533,'Παρακολούθηση βαθμολογίας'!C533)","v":"0"}]
[null,531,{"$f":"'Παρακολούθηση βαθμολογίας'!C534&COUNTIF('Παρακολούθηση βαθμολογίας'!$C$4:C534,'Παρακολούθηση βαθμολογίας'!C534)","v":"0"}]
[null,532,{"$f":"'Παρακολούθηση βαθμολογίας'!C535&COUNTIF('Παρακολούθηση βαθμολογίας'!$C$4:C535,'Παρακολούθηση βαθμολογίας'!C535)","v":"0"}]
[null,533,{"$f":"'Παρακολούθηση βαθμολογίας'!C536&COUNTIF('Παρακολούθηση βαθμολογίας'!$C$4:C536,'Παρακολούθηση βαθμολογίας'!C536)","v":"0"}]
[null,534,{"$f":"'Παρακολούθηση βαθμολογίας'!C537&COUNTIF('Παρακολούθηση βαθμολογίας'!$C$4:C537,'Παρακολούθηση βαθμολογίας'!C537)","v":"0"}]
[null,535,{"$f":"'Παρακολούθηση βαθμολογίας'!C538&COUNTIF('Παρακολούθηση βαθμολογίας'!$C$4:C538,'Παρακολούθηση βαθμολογίας'!C538)","v":"0"}]
[null,536,{"$f":"'Παρακολούθηση βαθμολογίας'!C539&COUNTIF('Παρακολούθηση βαθμολογίας'!$C$4:C539,'Παρακολούθηση βαθμολογίας'!C539)","v":"0"}]
[null,537,{"$f":"'Παρακολούθηση βαθμολογίας'!C540&COUNTIF('Παρακολούθηση βαθμολογίας'!$C$4:C540,'Παρακολούθηση βαθμολογίας'!C540)","v":"0"}]
[null,538,{"$f":"'Παρακολούθηση βαθμολογίας'!C541&COUNTIF('Παρακολούθηση βαθμολογίας'!$C$4:C541,'Παρακολούθηση βαθμολογίας'!C541)","v":"0"}]
[null,539,{"$f":"'Παρακολούθηση βαθμολογίας'!C542&COUNTIF('Παρακολούθηση βαθμολογίας'!$C$4:C542,'Παρακολούθηση βαθμολογίας'!C542)","v":"0"}]
[null,540,{"$f":"'Παρακολούθηση βαθμολογίας'!C543&COUNTIF('Παρακολούθηση βαθμολογίας'!$C$4:C543,'Παρακολούθηση βαθμολογίας'!C543)","v":"0"}]
[null,541,{"$f":"'Παρακολούθηση βαθμολογίας'!C544&COUNTIF('Παρακολούθηση βαθμολογίας'!$C$4:C544,'Παρακολούθηση βαθμολογίας'!C544)","v":"0"}]
[null,542,{"$f":"'Παρακολούθηση βαθμολογίας'!C545&COUNTIF('Παρακολούθηση βαθμολογίας'!$C$4:C545,'Παρακολούθηση βαθμολογίας'!C545)","v":"0"}]
[null,543,{"$f":"'Παρακολούθηση βαθμολογίας'!C546&COUNTIF('Παρακολούθηση βαθμολογίας'!$C$4:C546,'Παρακολούθηση βαθμολογίας'!C546)","v":"0"}]
[null,544,{"$f":"'Παρακολούθηση βαθμολογίας'!C547&COUNTIF('Παρακολούθηση βαθμολογίας'!$C$4:C547,'Παρακολούθηση βαθμολογίας'!C547)","v":"0"}]
[null,545,{"$f":"'Παρακολούθηση βαθμολογίας'!C548&COUNTIF('Παρακολούθηση βαθμολογίας'!$C$4:C548,'Παρακολούθηση βαθμολογίας'!C548)","v":"0"}]
[null,546,{"$f":"'Παρακολούθηση βαθμολογίας'!C549&COUNTIF('Παρακολούθηση βαθμολογίας'!$C$4:C549,'Παρακολούθηση βαθμολογίας'!C549)","v":"0"}]
[null,547,{"$f":"'Παρακολούθηση βαθμολογίας'!C550&COUNTIF('Παρακολούθηση βαθμολογίας'!$C$4:C550,'Παρακολούθηση βαθμολογίας'!C550)","v":"0"}]
[null,548,{"$f":"'Παρακολούθηση βαθμολογίας'!C551&COUNTIF('Παρακολούθηση βαθμολογίας'!$C$4:C551,'Παρακολούθηση βαθμολογίας'!C551)","v":"0"}]
[null,549,{"$f":"'Παρακολούθηση βαθμολογίας'!C552&COUNTIF('Παρακολούθηση βαθμολογίας'!$C$4:C552,'Παρακολούθηση βαθμολογίας'!C552)","v":"0"}]
[null,550,{"$f":"'Παρακολούθηση βαθμολογίας'!C553&COUNTIF('Παρακολούθηση βαθμολογίας'!$C$4:C553,'Παρακολούθηση βαθμολογίας'!C553)","v":"0"}]
[null,551,{"$f":"'Παρακολούθηση βαθμολογίας'!C554&COUNTIF('Παρακολούθηση βαθμολογίας'!$C$4:C554,'Παρακολούθηση βαθμολογίας'!C554)","v":"0"}]
[null,552,{"$f":"'Παρακολούθηση βαθμολογίας'!C555&COUNTIF('Παρακολούθηση βαθμολογίας'!$C$4:C555,'Παρακολούθηση βαθμολογίας'!C555)","v":"0"}]
[null,553,{"$f":"'Παρακολούθηση βαθμολογίας'!C556&COUNTIF('Παρακολούθηση βαθμολογίας'!$C$4:C556,'Παρακολούθηση βαθμολογίας'!C556)","v":"0"}]
[null,554,{"$f":"'Παρακολούθηση βαθμολογίας'!C557&COUNTIF('Παρακολούθηση βαθμολογίας'!$C$4:C557,'Παρακολούθηση βαθμολογίας'!C557)","v":"0"}]
[null,555,{"$f":"'Παρακολούθηση βαθμολογίας'!C558&COUNTIF('Παρακολούθηση βαθμολογίας'!$C$4:C558,'Παρακολούθηση βαθμολογίας'!C558)","v":"0"}]
[null,556,{"$f":"'Παρακολούθηση βαθμολογίας'!C559&COUNTIF('Παρακολούθηση βαθμολογίας'!$C$4:C559,'Παρακολούθηση βαθμολογίας'!C559)","v":"0"}]
[null,557,{"$f":"'Παρακολούθηση βαθμολογίας'!C560&COUNTIF('Παρακολούθηση βαθμολογίας'!$C$4:C560,'Παρακολούθηση βαθμολογίας'!C560)","v":"0"}]
[null,558,{"$f":"'Παρακολούθηση βαθμολογίας'!C561&COUNTIF('Παρακολούθηση βαθμολογίας'!$C$4:C561,'Παρακολούθηση βαθμολογίας'!C561)","v":"0"}]
[null,559,{"$f":"'Παρακολούθηση βαθμολογίας'!C562&COUNTIF('Παρακολούθηση βαθμολογίας'!$C$4:C562,'Παρακολούθηση βαθμολογίας'!C562)","v":"0"}]
[null,560,{"$f":"'Παρακολούθηση βαθμολογίας'!C563&COUNTIF('Παρακολούθηση βαθμολογίας'!$C$4:C563,'Παρακολούθηση βαθμολογίας'!C563)","v":"0"}]
[null,561,{"$f":"'Παρακολούθηση βαθμολογίας'!C564&COUNTIF('Παρακολούθηση βαθμολογίας'!$C$4:C564,'Παρακολούθηση βαθμολογίας'!C564)","v":"0"}]
[null,562,{"$f":"'Παρακολούθηση βαθμολογίας'!C565&COUNTIF('Παρακολούθηση βαθμολογίας'!$C$4:C565,'Παρακολούθηση βαθμολογίας'!C565)","v":"0"}]
[null,563,{"$f":"'Παρακολούθηση βαθμολογίας'!C566&COUNTIF('Παρακολούθηση βαθμολογίας'!$C$4:C566,'Παρακολούθηση βαθμολογίας'!C566)","v":"0"}]
[null,564,{"$f":"'Παρακολούθηση βαθμολογίας'!C567&COUNTIF('Παρακολούθηση βαθμολογίας'!$C$4:C567,'Παρακολούθηση βαθμολογίας'!C567)","v":"0"}]
[null,565,{"$f":"'Παρακολούθηση βαθμολογίας'!C568&COUNTIF('Παρακολούθηση βαθμολογίας'!$C$4:C568,'Παρακολούθηση βαθμολογίας'!C568)","v":"0"}]
[null,566,{"$f":"'Παρακολούθηση βαθμολογίας'!C569&COUNTIF('Παρακολούθηση βαθμολογίας'!$C$4:C569,'Παρακολούθηση βαθμολογίας'!C569)","v":"0"}]
[null,567,{"$f":"'Παρακολούθηση βαθμολογίας'!C570&COUNTIF('Παρακολούθηση βαθμολογίας'!$C$4:C570,'Παρακολούθηση βαθμολογίας'!C570)","v":"0"}]
[null,568,{"$f":"'Παρακολούθηση βαθμολογίας'!C571&COUNTIF('Παρακολούθηση βαθμολογίας'!$C$4:C571,'Παρακολούθηση βαθμολογίας'!C571)","v":"0"}]
[null,569,{"$f":"'Παρακολούθηση βαθμολογίας'!C572&COUNTIF('Παρακολούθηση βαθμολογίας'!$C$4:C572,'Παρακολούθηση βαθμολογίας'!C572)","v":"0"}]
[null,570,{"$f":"'Παρακολούθηση βαθμολογίας'!C573&COUNTIF('Παρακολούθηση βαθμολογίας'!$C$4:C573,'Παρακολούθηση βαθμολογίας'!C573)","v":"0"}]
[null,571,{"$f":"'Παρακολούθηση βαθμολογίας'!C574&COUNTIF('Παρακολούθηση βαθμολογίας'!$C$4:C574,'Παρακολούθηση βαθμολογίας'!C574)","v":"0"}]
[null,572,{"$f":"'Παρακολούθηση βαθμολογίας'!C575&COUNTIF('Παρακολούθηση βαθμολογίας'!$C$4:C575,'Παρακολούθηση βαθμολογίας'!C575)","v":"0"}]
[null,573,{"$f":"'Παρακολούθηση βαθμολογίας'!C576&COUNTIF('Παρακολούθηση βαθμολογίας'!$C$4:C576,'Παρακολούθηση βαθμολογίας'!C576)","v":"0"}]
[null,574,{"$f":"'Παρακολούθηση βαθμολογίας'!C577&COUNTIF('Παρακολούθηση βαθμολογίας'!$C$4:C577,'Παρακολούθηση βαθμολογίας'!C577)","v":"0"}]
[null,575,{"$f":"'Παρακολούθηση βαθμολογίας'!C578&COUNTIF('Παρακολούθηση βαθμολογίας'!$C$4:C578,'Παρακολούθηση βαθμολογίας'!C578)","v":"0"}]
[null,576,{"$f":"'Παρακολούθηση βαθμολογίας'!C579&COUNTIF('Παρακολούθηση βαθμολογίας'!$C$4:C579,'Παρακολούθηση βαθμολογίας'!C579)","v":"0"}]
[null,577,{"$f":"'Παρακολούθηση βαθμολογίας'!C580&COUNTIF('Παρακολούθηση βαθμολογίας'!$C$4:C580,'Παρακολούθηση βαθμολογίας'!C580)","v":"0"}]
[null,578,{"$f":"'Παρακολούθηση βαθμολογίας'!C581&COUNTIF('Παρακολούθηση βαθμολογίας'!$C$4:C581,'Παρακολούθηση βαθμολογίας'!C581)","v":"0"}]
[null,579,{"$f":"'Παρακολούθηση βαθμολογίας'!C582&COUNTIF('Παρακολούθηση βαθμολογίας'!$C$4:C582,'Παρακολούθηση βαθμολογίας'!C582)","v":"0"}]
[null,580,{"$f":"'Παρακολούθηση βαθμολογίας'!C583&COUNTIF('Παρακολούθηση βαθμολογίας'!$C$4:C583,'Παρακολούθηση βαθμολογίας'!C583)","v":"0"}]
[null,581,{"$f":"'Παρακολούθηση βαθμολογίας'!C584&COUNTIF('Παρακολούθηση βαθμολογίας'!$C$4:C584,'Παρακολούθηση βαθμολογίας'!C584)","v":"0"}]
[null,582,{"$f":"'Παρακολούθηση βαθμολογίας'!C585&COUNTIF('Παρακολούθηση βαθμολογίας'!$C$4:C585,'Παρακολούθηση βαθμολογίας'!C585)","v":"0"}]
[null,583,{"$f":"'Παρακολούθηση βαθμολογίας'!C586&COUNTIF('Παρακολούθηση βαθμολογίας'!$C$4:C586,'Παρακολούθηση βαθμολογίας'!C586)","v":"0"}]
[null,584,{"$f":"'Παρακολούθηση βαθμολογίας'!C587&COUNTIF('Παρακολούθηση βαθμολογίας'!$C$4:C587,'Παρακολούθηση βαθμολογίας'!C587)","v":"0"}]
[null,585,{"$f":"'Παρακολούθηση βαθμολογίας'!C588&COUNTIF('Παρακολούθηση βαθμολογίας'!$C$4:C588,'Παρακολούθηση βαθμολογίας'!C588)","v":"0"}]
[null,586,{"$f":"'Παρακολούθηση βαθμολογίας'!C589&COUNTIF('Παρακολούθηση βαθμολογίας'!$C$4:C589,'Παρακολούθηση βαθμολογίας'!C589)","v":"0"}]
[null,587,{"$f":"'Παρακολούθηση βαθμολογίας'!C590&COUNTIF('Παρακολούθηση βαθμολογίας'!$C$4:C590,'Παρακολούθηση βαθμολογίας'!C590)","v":"0"}]
[null,588,{"$f":"'Παρακολούθηση βαθμολογίας'!C591&COUNTIF('Παρακολούθηση βαθμολογίας'!$C$4:C591,'Παρακολούθηση βαθμολογίας'!C591)","v":"0"}]
[null,589,{"$f":"'Παρακολούθηση βαθμολογίας'!C592&COUNTIF('Παρακολούθηση βαθμολογίας'!$C$4:C592,'Παρακολούθηση βαθμολογίας'!C592)","v":"0"}]
[null,590,{"$f":"'Παρακολούθηση βαθμολογίας'!C593&COUNTIF('Παρακολούθηση βαθμολογίας'!$C$4:C593,'Παρακολούθηση βαθμολογίας'!C593)","v":"0"}]
[null,591,{"$f":"'Παρακολούθηση βαθμολογίας'!C594&COUNTIF('Παρακολούθηση βαθμολογίας'!$C$4:C594,'Παρακολούθηση βαθμολογίας'!C594)","v":"0"}]
[null,592,{"$f":"'Παρακολούθηση βαθμολογίας'!C595&COUNTIF('Παρακολούθηση βαθμολογίας'!$C$4:C595,'Παρακολούθηση βαθμολογίας'!C595)","v":"0"}]
[null,593,{"$f":"'Παρακολούθηση βαθμολογίας'!C596&COUNTIF('Παρακολούθηση βαθμολογίας'!$C$4:C596,'Παρακολούθηση βαθμολογίας'!C596)","v":"0"}]
[null,594,{"$f":"'Παρακολούθηση βαθμολογίας'!C597&COUNTIF('Παρακολούθηση βαθμολογίας'!$C$4:C597,'Παρακολούθηση βαθμολογίας'!C597)","v":"0"}]
[null,595,{"$f":"'Παρακολούθηση βαθμολογίας'!C598&COUNTIF('Παρακολούθηση βαθμολογίας'!$C$4:C598,'Παρακολούθηση βαθμολογίας'!C598)","v":"0"}]
[null,596,{"$f":"'Παρακολούθηση βαθμολογίας'!C599&COUNTIF('Παρακολούθηση βαθμολογίας'!$C$4:C599,'Παρακολούθηση βαθμολογίας'!C599)","v":"0"}]
[null,597,{"$f":"'Παρακολούθηση βαθμολογίας'!C600&COUNTIF('Παρακολούθηση βαθμολογίας'!$C$4:C600,'Παρακολούθηση βαθμολογίας'!C600)","v":"0"}]
[null,598,{"$f":"'Παρακολούθηση βαθμολογίας'!C601&COUNTIF('Παρακολούθηση βαθμολογίας'!$C$4:C601,'Παρακολούθηση βαθμολογίας'!C601)","v":"0"}]
[null,599,{"$f":"'Παρακολούθηση βαθμολογίας'!C602&COUNTIF('Παρακολούθηση βαθμολογίας'!$C$4:C602,'Παρακολούθηση βαθμολογίας'!C602)","v":"0"}]
[null,600,{"$f":"'Παρακολούθηση βαθμολογίας'!C603&COUNTIF('Παρακολούθηση βαθμολογίας'!$C$4:C603,'Παρακολούθηση βαθμολογίας'!C603)","v":"0"}]
[null,601,{"$f":"'Παρακολούθηση βαθμολογίας'!C604&COUNTIF('Παρακολούθηση βαθμολογίας'!$C$4:C604,'Παρακολούθηση βαθμολογίας'!C604)","v":"0"}]
[null,602,{"$f":"'Παρακολούθηση βαθμολογίας'!C605&COUNTIF('Παρακολούθηση βαθμολογίας'!$C$4:C605,'Παρακολούθηση βαθμολογίας'!C605)","v":"0"}]
[null,603,{"$f":"'Παρακολούθηση βαθμολογίας'!C606&COUNTIF('Παρακολούθηση βαθμολογίας'!$C$4:C606,'Παρακολούθηση βαθμολογίας'!C606)","v":"0"}]
[null,604,{"$f":"'Παρακολούθηση βαθμολογίας'!C607&COUNTIF('Παρακολούθηση βαθμολογίας'!$C$4:C607,'Παρακολούθηση βαθμολογίας'!C607)","v":"0"}]
[null,605,{"$f":"'Παρακολούθηση βαθμολογίας'!C608&COUNTIF('Παρακολούθηση βαθμολογίας'!$C$4:C608,'Παρακολούθηση βαθμολογίας'!C608)","v":"0"}]
[null,606,{"$f":"'Παρακολούθηση βαθμολογίας'!C609&COUNTIF('Παρακολούθηση βαθμολογίας'!$C$4:C609,'Παρακολούθηση βαθμολογίας'!C609)","v":"0"}]
[null,607,{"$f":"'Παρακολούθηση βαθμολογίας'!C610&COUNTIF('Παρακολούθηση βαθμολογίας'!$C$4:C610,'Παρακολούθηση βαθμολογίας'!C610)","v":"0"}]
[null,608,{"$f":"'Παρακολούθηση βαθμολογίας'!C611&COUNTIF('Παρακολούθηση βαθμολογίας'!$C$4:C611,'Παρακολούθηση βαθμολογίας'!C611)","v":"0"}]
[null,609,{"$f":"'Παρακολούθηση βαθμολογίας'!C612&COUNTIF('Παρακολούθηση βαθμολογίας'!$C$4:C612,'Παρακολούθηση βαθμολογίας'!C612)","v":"0"}]
[null,610,{"$f":"'Παρακολούθηση βαθμολογίας'!C613&COUNTIF('Παρακολούθηση βαθμολογίας'!$C$4:C613,'Παρακολούθηση βαθμολογίας'!C613)","v":"0"}]
[null,611,{"$f":"'Παρακολούθηση βαθμολογίας'!C614&COUNTIF('Παρακολούθηση βαθμολογίας'!$C$4:C614,'Παρακολούθηση βαθμολογίας'!C614)","v":"0"}]
[null,612,{"$f":"'Παρακολούθηση βαθμολογίας'!C615&COUNTIF('Παρακολούθηση βαθμολογίας'!$C$4:C615,'Παρακολούθηση βαθμολογίας'!C615)","v":"0"}]
[null,613,{"$f":"'Παρακολούθηση βαθμολογίας'!C616&COUNTIF('Παρακολούθηση βαθμολογίας'!$C$4:C616,'Παρακολούθηση βαθμολογίας'!C616)","v":"0"}]
[null,614,{"$f":"'Παρακολούθηση βαθμολογίας'!C617&COUNTIF('Παρακολούθηση βαθμολογίας'!$C$4:C617,'Παρακολούθηση βαθμολογίας'!C617)","v":"0"}]
[null,615,{"$f":"'Παρακολούθηση βαθμολογίας'!C618&COUNTIF('Παρακολούθηση βαθμολογίας'!$C$4:C618,'Παρακολούθηση βαθμολογίας'!C618)","v":"0"}]
[null,616,{"$f":"'Παρακολούθηση βαθμολογίας'!C619&COUNTIF('Παρακολούθηση βαθμολογίας'!$C$4:C619,'Παρακολούθηση βαθμολογίας'!C619)","v":"0"}]
[null,617,{"$f":"'Παρακολούθηση βαθμολογίας'!C620&COUNTIF('Παρακολούθηση βαθμολογίας'!$C$4:C620,'Παρακολούθηση βαθμολογίας'!C620)","v":"0"}]
[null,618,{"$f":"'Παρακολούθηση βαθμολογίας'!C621&COUNTIF('Παρακολούθηση βαθμολογίας'!$C$4:C621,'Παρακολούθηση βαθμολογίας'!C621)","v":"0"}]
[null,619,{"$f":"'Παρακολούθηση βαθμολογίας'!C622&COUNTIF('Παρακολούθηση βαθμολογίας'!$C$4:C622,'Παρακολούθηση βαθμολογίας'!C622)","v":"0"}]
[null,620,{"$f":"'Παρακολούθηση βαθμολογίας'!C623&COUNTIF('Παρακολούθηση βαθμολογίας'!$C$4:C623,'Παρακολούθηση βαθμολογίας'!C623)","v":"0"}]
[null,621,{"$f":"'Παρακολούθηση βαθμολογίας'!C624&COUNTIF('Παρακολούθηση βαθμολογίας'!$C$4:C624,'Παρακολούθηση βαθμολογίας'!C624)","v":"0"}]
[null,622,{"$f":"'Παρακολούθηση βαθμολογίας'!C625&COUNTIF('Παρακολούθηση βαθμολογίας'!$C$4:C625,'Παρακολούθηση βαθμολογίας'!C625)","v":"0"}]
[null,623,{"$f":"'Παρακολούθηση βαθμολογίας'!C626&COUNTIF('Παρακολούθηση βαθμολογίας'!$C$4:C626,'Παρακολούθηση βαθμολογίας'!C626)","v":"0"}]
[null,624,{"$f":"'Παρακολούθηση βαθμολογίας'!C627&COUNTIF('Παρακολούθηση βαθμολογίας'!$C$4:C627,'Παρακολούθηση βαθμολογίας'!C627)","v":"0"}]
[null,625,{"$f":"'Παρακολούθηση βαθμολογίας'!C628&COUNTIF('Παρακολούθηση βαθμολογίας'!$C$4:C628,'Παρακολούθηση βαθμολογίας'!C628)","v":"0"}]